Workbook

Sheet График
A1: График сервисного обслуживания оборудования вокзала | Q1: =D10 -> октябрь | R1: 2022 года
A3: СОГЛАСОВАНО | AA3: УТВЕРЖДАЮ
A6: " " 2022 г | Y6: " " 2022 г.
A10: Наименование ед. обслуживания | B10: Ед. изм. | C10: Кол-во ед. | D10: октябрь
D12: 2022-10-01 | E12: 2022-10-02 | F12: 2022-10-03 | G12: 2022-10-04 | H12: 2022-10-05 | I12: 2022-10-06 | J12: 2022-10-07 | K12: 2022-10-08 | L12: 2022-10-09 | M12: 2022-10-10 | N12: 2022-10-11 | O12: 2022-10-12 | P12: 2022-10-13 | Q12: 2022-10-14 | R12: 2022-10-15 | S12: 2022-10-16 | T12: 2022-10-17 | U12: 2022-10-18 | V12: 2022-10-19 | W12: 2022-10-20 | X12: 2022-10-21 | Y12: 2022-10-22 | Z12: 2022-10-23 | AA12: 2022-10-24 | AB12: 2022-10-25 | AC12: 2022-10-26 | AD12: 2022-10-27 | AE12: 2022-10-28 | AF12: 2022-10-29 | AG12: 2022-10-30 | AH12: 2022-10-31 | AI12: ТО-0 | AJ12: ТО-1 | AK12: ТО-2 | AL12: ТО-3 | AM12: ТО-4 | AN12: ТО-5
A13: Установки вентиляции и кондиционирования воздуха
A14: Система вентиляциии кондиционирования инв. № 14003312 | B14: ед. | C14: 1 | I14: ТО-1 | P14: ТО-1 | W14: ТО-1 | AD14: ТО-1 | AE14: ТО-2 | AJ14: =IF(COUNTIF(D14:AH14,"ТО-1"),COUNTIF(D14:AH14,"ТО-1")) -> 4 | AK14: =IF(COUNTIF(D14:AH14,"ТО-2"),1,"0") -> 1 | AL14: =IF(COUNTIF(D14:AH14,"ТО-3"),1,"0") -> 0 | AM14: =IF(COUNTIF(D14:AH14,"ТО-4"),1,"0") -> 0 | AN14: =IF(COUNTIF(D14:AH14,"ТО-5"),1,"0") -> 0
A15: Тепловые завесы
A16: Viento А1 инв. № 14001186 | B16: шт. | C16: 1 | I16: ТО-1 | P16: ТО-1 | Q16: ТО-2 | W16: ТО-1 | AD16: ТО-1 | AJ16: =IF(COUNTIF(D16:AH16,"ТО-1"),COUNTIF(D16:AH16,"ТО-1")) -> 4 | AK16: =IF(COUNTIF(D16:AH16,"ТО-2"),1,"0") -> 1 | AL16: =IF(COUNTIF(D16:AH16,"ТО-3"),1,"0") -> 0 | AM16: =IF(COUNTIF(D16:AH16,"ТО-4"),1,"0") -> 0 | AN16: =IF(COUNTIF(D16:AH16,"ТО-5"),1,"0") -> 0
A17: Viento А2 без нагрева инв. № 14001188 | B17: шт. | C17: 1 | I17: ТО-1 | P17: ТО-1 | Q17: ТО-2 | W17: ТО-1 | AD17: ТО-1 | AJ17: =IF(COUNTIF(D17:AH17,"ТО-1"),COUNTIF(D17:AH17,"ТО-1")) -> 4 | AK17: 1 | AL17: 0 | AM17: 0 | AN17: 0
A18: Viento А1 без нагрева инв. № 14001189 | B18: шт. | C18: 1 | J18: ТО-1 | Q18: ТО-1 | X18: ТО-1 | Y18: ТО-2 | AE18: ТО-1 | AJ18: =IF(COUNTIF(D18:AH18,"ТО-1"),COUNTIF(D18:AH18,"ТО-1")) -> 4 | AK18: 1 | AL18: 0 | AM18: 0 | AN18: 0
A19: Viento А2 инв. № 14001187 | B19: шт. | C19: 1 | J19: ТО-1 | Q19: ТО-1 | X19: ТО-1 | Y19: ТО-2 | AE19: ТО-1 | AJ19: =IF(COUNTIF(D19:AH19,"ТО-1"),COUNTIF(D19:AH19,"ТО-1")) -> 4 | AK19: 1 | AL19: 0 | AM19: 0 | AN19: 0
A20: Аппаратура местного климатконтроля (фанкойлы)
A21: CARRIER, 42GW04 | B21: шт. | C21: 75 | D21: ТО-1 | E21: ТО-1 | K21: ТО-1 | L21: ТО-1 | M21: ТО-2 | N21: ТО-2 | R21: ТО-1 | S21: ТО-1 | Y21: ТО-1 | Z21: ТО-1 | AF21: ТО-1 | AG21: ТО-1 | AJ21: =_xlfn.CEILING.MATH(IF(COUNTIF(D21:AH21,"ТО-1"),COUNTIF(D21:AH21,"ТО-1"))/2,1,) -> 5 | AK21: 1 | AL21: 0 | AM21: 0 | AN21: 0
A22: CARRIER, 42DW07 | B22: шт. | C22: 6 | I22: ТО-1 | J22: ТО-2 | P22: ТО-1 | W22: ТО-1 | AD22: ТО-1 | AJ22: =IF(COUNTIF(D22:AH22,"ТО-1"),COUNTIF(D22:AH22,"ТО-1")) -> 4 | AK22: 1 | AL22: 0 | AM22: 0 | AN22: 0
A23: CARRIER, 42DW09 | B23: шт. | C23: 6 | J23: ТО-1 | Q23: ТО-1 | R23: ТО-2 | X23: ТО-1 | AE23: ТО-1 | AJ23: =IF(COUNTIF(D23:AH23,"ТО-1"),COUNTIF(D23:AH23,"ТО-1")) -> 4 | AK23: 1 | AL23: 0 | AM23: 0 | AN23: 0
A24: MOHLENHOFF, QSK HK360-140-2750 | B24: шт. | C24: 64 | G24: ТО-1 | H24: ТО-1 | N24: ТО-1 | O24: ТО-1 | U24: ТО-1 | V24: ТО-1 | W24: ТО-2 | X24: ТО-2 | AB24: ТО-1 | AC24: ТО-1 | AJ24: 4 | AK24: 1 | AL24: 0 | AM24: 0 | AN24: 0
A25: Чиллеры
A26: Blue Box OMEGA VECHOS-95.2 | B26: шт. | C26: 2 | D26: ТО-1 | K26: ТО-1 | R26: ТО-1 | Y26: ТО-1 | Z26: ТО-2 | AF26: ТО-1 | AJ26: =IF(COUNTIF(D26:AH26,"ТО-1"),COUNTIF(D26:AH26,"ТО-1")) -> 5 | AK26: 1 | AL26: 0 | AM26: 0 | AN26: 0
A27: Сплит системы
A28: CHIGO, CS/CU-61H3A-P124 | B28: шт. | C28: 2 | AL28: 0 | AM28: 0 | AN28: 0
A29: KENTATSU, KSRE70HFAN1 | B29: шт. | C29: 1 | AL29: 0 | AM29: 0 | AN29: 0
A30: CHIGO, CS/CU-25H3A-V124 | B30: шт. | C30: 1 | AL30: 0 | AM30: 0 | AN30: 0
A31: CHIGO, CS/CU-61H3A-P124 | B31: шт. | C31: 2 | AL31: 0 | AM31: 0 | AN31: 0
A32: DAIKIN, 2MXS50H | B32: шт. | C32: 5 | AL32: 0 | AM32: 0 | AN32: 0
A33: DAIKIN, 3MXS68G | B33: шт. | C33: 1 | AL33: 0 | AM33: 0 | AN33: 0
A34: DAIKIN, 5MXS90E | B34: шт. | C34: 3 | AL34: 0 | AM34: 0 | AN34: 0
A35: DAIKIN, FFQ35B | B35: шт. | C35: 8 | AL35: 0 | AM35: 0 | AN35: 0
A36: DAIKIN, FFQ25B | B36: шт. | C36: 4 | AL36: 0 | AM36: 0 | AN36: 0
A37: DAIKIN, FFQ50B | B37: шт. | C37: 6 | AL37: 0 | AM37: 0 | AN37: 0
A38: DAIKIN, FAQ71B/RR71BV-W | B38: шт. | C38: 2 | AL38: 0 | AM38: 0 | AN38: 0
A39: DAIKIN, FAQ100B/RR100BV | B39: шт. | C39: 2 | AL39: 0 | AM39: 0 | AN39: 0
A40: DAIKIN, FFT25/R25 | B40: шт. | C40: 2 | AL40: 0 | AM40: 0 | AN40: 0
A41: DAIKIN, FFQ35B/RX35J | B41: шт. | C41: 1 | AL41: 0 | AM41: 0 | AN41: 0
A42: DAIKIN, FFQ50B/RX50J | B42: шт. | C42: 4 | AL42: 0 | AM42: 0 | AN42: 0
A43: Шлагбаумы, автоматические двери, автоматические ворота, механические (распашные) и противопожарные двери
A44: Шлагбаум CAME G0402 | B44: шт. | C44: 3 | AD44: ТО-2 | AK44: 1 | AL44: 0
A45: Автоматические ворота Doorhan | B45: шт. | C45: 2 | AE45: ТО-2 | AK45: 1
A46: Автоматические двери GEZE SlimDrive | B46: шт. | C46: 10 | AA46: ТО-2 | AK46: 1
A47: Механические (распашные), пожарные двери Krilak | B47: шт. | C47: 467 | U47: ТО-2 | V47: ТО-2 | W47: ТО-2 | X47: ТО-2 | AB47: ТО-2 | AC47: ТО-2 | AD47: ТО-2 | AE47: ТО-2 | AK47: 1
A48: Электрооборудование
A49: Шкаф универсальный (щит ЩРН-12;18;24;36) | B49: шт. | C49: 95 | D49: ТО-0 | E49: ТО-0 | F49: ТО-0 | G49: ТО-0 | H49: ТО-0 | I49: ТО-0 | J49: ТО-0 | K49: ТО-0 | L49: ТО-3 | M49: ТО-3 | N49: ТО-3 | O49: ТО-5 | P49: ТО-5 | Q49: ТО-5 | R49: ТО-0 | S49: ТО-0 | T49: ТО-0 | U49: ТО-0 | V49: ТО-0 | W49: ТО-0 | X49: ТО-0 | Y49: ТО-0 | Z49: ТО-0 | AA49: ТО-0 | AB49: ТО-0 | AC49: ТО-0 | AD49: ТО-0 | AE49: ТО-0 | AF49: ТО-0 | AG49: ТО-0 | AH49: ТО-0 | AI49: =COUNTA(D49:AH49) -> 31 | AL49: 1 | AN49: 1
A50: Внутреннее электроосвещение: Щиты 1.1.ЩО-1, ЩАО-1; 1.2.ЩО-1, ЩАО-1; 1.3.ЩО-1, ЩАО-1; 1.3.ЩО-2, ЩАО-2; 1.5.ЩО-1, ЩАО-1; 1.6.ЩО-1, ЩАО-1; 1.7.ЩО-1, ЩО-2, ЩАО-1; 2.1.ЩО-1, ЩАО-1; 2.2.ЩО-1, ЩО-2, ЩАО-1; 2.3.ЩО-1; 3.1.ЩО-1, ЩАО-1; 4.1.ЩО-1, ЩАО-1; | B50: шт. | C50: 25 | D50: ТО-0 | E50: ТО-0 | F50: ТО-0 | G50: ТО-0 | H50: ТО-0 | I50: ТО-0 | J50: ТО-0 | K50: ТО-0 | L50: ТО-0 | M50: ТО-0 | N50: ТО-0 | O50: ТО-0 | P50: ТО-0 | Q50: ТО-0 | R50: ТО-0 | S50: ТО-3 | T50: ТО-3 | U50: ТО-3 | V50: ТО-3 | W50: ТО-3 | X50: ТО-3 | Y50: ТО-3 | Z50: ТО-5 | AA50: ТО-5 | AB50: ТО-5 | AC50: ТО-5 | AD50: ТО-5 | AE50: ТО-5 | AF50: ТО-5 | AG50: ТО-0 | AH50: ТО-0 | AI50: 31 | AL50: 1 | AN50: 1
A51: Шкаф универсальный (ВРУ-21Л-80-308К УХЛ4;ВРУ-21Л-200-200К УХЛ4;ВРУ-21Л-32-301К УХЛ4;УКМ58-0,4-50-10УЗ;УКМ58-0,4-30-10УЗ; ПМ12-063120У2;ПМ12-040120У2) | B51: шт. | C51: 15 | D51: ТО-0 | E51: ТО-0 | F51: ТО-0 | G51: ТО-0 | H51: ТО-0 | I51: ТО-0 | J51: ТО-0 | K51: ТО-0 | L51: ТО-0 | M51: ТО-0 | N51: ТО-0 | O51: ТО-0 | P51: ТО-0 | Q51: ТО-0 | R51: ТО-0 | S51: ТО-3 | T51: ТО-3 | U51: ТО-3 | V51: ТО-3 | W51: ТО-3 | X51: ТО-3 | Y51: ТО-3 | Z51: ТО-5 | AA51: ТО-5 | AB51: ТО-5 | AC51: ТО-5 | AD51: ТО-5 | AE51: ТО-5 | AF51: ТО-5 | AG51: ТО-0 | AH51: ТО-0 | AI51: 31 | AL51: 1 | AN51: 1
A52: Коробки установочные EAE | B52: шт. | C52: 238 | D52: ТО-0 | E52: ТО-0 | F52: ТО-0 | G52: ТО-0 | H52: ТО-0 | I52: ТО-0 | J52: ТО-0 | K52: ТО-0 | L52: ТО-0 | M52: ТО-0 | N52: ТО-0 | O52: ТО-0 | P52: ТО-0 | Q52: ТО-0 | R52: ТО-0 | S52: ТО-0 | T52: ТО-0 | U52: ТО-0 | V52: ТО-0 | W52: ТО-0 | X52: ТО-0 | Y52: ТО-0 | Z52: ТО-3 | AA52: ТО-3 | AB52: ТО-3 | AC52: ТО-3 | AD52: ТО-3 | AE52: ТО-3 | AF52: ТО-3 | AG52: ТО-0 | AH52: ТО-0 | AI52: 31 | AL52: 1 | AN52: 0
A53: Ящик с трансформатором ABB | B53: шт. | C53: 38 | D53: ТО-0 | E53: ТО-0 | F53: ТО-0 | G53: ТО-0 | H53: ТО-0 | I53: ТО-0 | J53: ТО-0 | K53: ТО-0 | L53: ТО-0 | M53: ТО-0 | N53: ТО-0 | O53: ТО-0 | P53: ТО-0 | Q53: ТО-0 | R53: ТО-0 | S53: ТО-3 | T53: ТО-3 | U53: ТО-3 | V53: ТО-3 | W53: ТО-3 | X53: ТО-3 | Y53: ТО-3 | Z53: ТО-0 | AA53: ТО-0 | AB53: ТО-0 | AC53: ТО-0 | AD53: ТО-0 | AE53: ТО-0 | AF53: ТО-0 | AG53: ТО-0 | AH53: ТО-0 | AI53: 31 | AL53: 1 | AN53: 0
A54: Коробка разветвительная JB-701, 720, 730 | B54: шт. | C54: 500 | D54: ТО-0 | E54: ТО-0 | F54: ТО-0 | G54: ТО-0 | H54: ТО-0 | I54: ТО-0 | J54: ТО-0 | K54: ТО-0 | L54: ТО-0 | M54: ТО-0 | N54: ТО-0 | O54: ТО-3 | P54: ТО-3 | Q54: ТО-3 | R54: ТО-3 | S54: ТО-0 | T54: ТО-0 | U54: ТО-0 | V54: ТО-0 | W54: ТО-0 | X54: ТО-0 | Y54: ТО-0 | Z54: ТО-0 | AA54: ТО-0 | AB54: ТО-0 | AC54: ТО-0 | AD54: ТО-0 | AE54: ТО-0 | AF54: ТО-0 | AG54: ТО-0 | AH54: ТО-0 | AI54: 31 | AL54: 1 | AN54: 0
A55: Кабельные линии связи, проложенные на лотках | B55: м. | C55: 31020 | D55: ТО-0 | E55: ТО-0 | F55: ТО-0 | G55: ТО-0 | H55: ТО-0 | I55: ТО-0 | J55: ТО-0 | K55: ТО-0 | L55: ТО-0 | M55: ТО-0 | N55: ТО-0 | O55: ТО-0 | P55: ТО-0 | Q55: ТО-0 | R55: ТО-0 | S55: ТО-0 | T55: ТО-0 | U55: ТО-0 | V55: ТО-0 | W55: ТО-0 | X55: ТО-0 | Y55: ТО-0 | Z55: ТО-0 | AA55: ТО-0 | AB55: ТО-0 | AC55: ТО-0 | AD55: ТО-0 | AE55: ТО-0 | AF55: ТО-0 | AG55: ТО-0 | AH55: ТО-0 | AI55: 31 | AL55: 0 | AN55: 0
A56: Кабельные линии связи, проложенные в коробах с открываемыми крышками | B56: шт. | C56: 162 | D56: ТО-0 | E56: ТО-0 | F56: ТО-0 | G56: ТО-0 | H56: ТО-0 | I56: ТО-0 | J56: ТО-0 | K56: ТО-0 | L56: ТО-0 | M56: ТО-0 | N56: ТО-0 | O56: ТО-0 | P56: ТО-0 | Q56: ТО-0 | R56: ТО-0 | S56: ТО-0 | T56: ТО-0 | U56: ТО-0 | V56: ТО-0 | W56: ТО-0 | X56: ТО-0 | Y56: ТО-0 | Z56: ТО-0 | AA56: ТО-0 | AB56: ТО-0 | AC56: ТО-0 | AD56: ТО-0 | AE56: ТО-0 | AF56: ТО-0 | AG56: ТО-0 | AH56: ТО-0 | AI56: 31 | AL56: 0 | AN56: 0
A57: Выключатели Shneider Electric | B57: шт. | C57: 423 | D57: ТО-0 | E57: ТО-3 | F57: ТО-3 | G57: ТО-3 | H57: ТО-3 | I57: ТО-3 | J57: ТО-3 | K57: ТО-3 | L57: ТО-0 | M57: ТО-0 | N57: ТО-0 | O57: ТО-0 | P57: ТО-0 | Q57: ТО-0 | R57: ТО-0 | S57: ТО-0 | T57: ТО-0 | U57: ТО-0 | V57: ТО-0 | W57: ТО-0 | X57: ТО-0 | Y57: ТО-0 | Z57: ТО-0 | AA57: ТО-0 | AB57: ТО-0 | AC57: ТО-0 | AD57: ТО-0 | AE57: ТО-0 | AF57: ТО-0 | AG57: ТО-0 | AH57: ТО-0 | AI57: 31 | AL57: 1 | AN57: 0
A58: Розетки Shneider Electric | B58: шт. | C58: 595 | D58: ТО-0 | E58: ТО-3 | F58: ТО-3 | G58: ТО-3 | H58: ТО-3 | I58: ТО-3 | J58: ТО-3 | K58: ТО-3 | L58: ТО-0 | M58: ТО-0 | N58: ТО-0 | O58: ТО-0 | P58: ТО-0 | Q58: ТО-0 | R58: ТО-0 | S58: ТО-0 | T58: ТО-0 | U58: ТО-0 | V58: ТО-0 | W58: ТО-0 | X58: ТО-0 | Y58: ТО-0 | Z58: ТО-0 | AA58: ТО-0 | AB58: ТО-0 | AC58: ТО-0 | AD58: ТО-0 | AE58: ТО-0 | AF58: ТО-0 | AG58: ТО-0 | AH58: ТО-0 | AI58: 31 | AL58: 1 | AN58: 0
A59: Прожектор с натриевыми лампами IP66 Т5, IP65 | B59: шт. | C59: 168 | D59: ТО-0 | E59: ТО-0 | F59: ТО-0 | G59: ТО-0 | H59: ТО-0 | I59: ТО-0 | J59: ТО-0 | K59: ТО-0 | L59: ТО-3 | M59: ТО-3 | N59: ТО-3 | O59: ТО-3 | P59: ТО-3 | Q59: ТО-3 | R59: ТО-3 | S59: ТО-0 | T59: ТО-0 | U59: ТО-0 | V59: ТО-0 | W59: ТО-0 | X59: ТО-0 | Y59: ТО-0 | Z59: ТО-0 | AA59: ТО-0 | AB59: ТО-0 | AC59: ТО-0 | AD59: ТО-0 | AE59: ТО-0 | AF59: ТО-0 | AG59: ТО-0 | AH59: ТО-0 | AI59: 31 | AL59: 1 | AN59: 0
A60: Лампа люминесцентная Т5, IP54 | B60: шт. | C60: 545 | D60: ТО-0 | E60: ТО-0 | F60: ТО-0 | G60: ТО-0 | H60: ТО-0 | I60: ТО-0 | J60: ТО-0 | K60: ТО-0 | L60: ТО-0 | M60: ТО-0 | N60: ТО-0 | O60: ТО-0 | P60: ТО-0 | Q60: ТО-0 | R60: ТО-0 | S60: ТО-0 | T60: ТО-0 | U60: ТО-0 | V60: ТО-0 | W60: ТО-0 | X60: ТО-0 | Y60: ТО-0 | Z60: ТО-0 | AA60: ТО-0 | AB60: ТО-0 | AC60: ТО-0 | AD60: ТО-0 | AE60: ТО-0 | AF60: ТО-0 | AG60: ТО-0 | AH60: ТО-0 | AI60: 31 | AL60: 0 | AN60: 0
A61: Светильники с ЭПРА, для ЛЛ Т5, IP54 | B61: шт. | C61: 1704 | D61: ТО-0 | E61: ТО-0 | F61: ТО-0 | G61: ТО-0 | H61: ТО-0 | I61: ТО-0 | J61: ТО-0 | K61: ТО-0 | L61: ТО-0 | M61: ТО-0 | N61: ТО-0 | O61: ТО-0 | P61: ТО-0 | Q61: ТО-0 | R61: ТО-0 | S61: ТО-3 | T61: ТО-3 | U61: ТО-3 | V61: ТО-3 | W61: ТО-3 | X61: ТО-3 | Y61: ТО-3 | Z61: ТО-3 | AA61: ТО-3 | AB61: ТО-3 | AC61: ТО-3 | AD61: ТО-3 | AE61: ТО-3 | AF61: ТО-3 | AG61: ТО-0 | AH61: ТО-0 | AI61: 31 | AL61: 1 | AN61: 0
A62: Счетчик потребления электроэнергии Меркурий 230AR-03С | B62: шт. | C62: 4 | AL62: 0 | AN62: 0
A63: Системы наружного освещения
A64: Фасадная вывеска ЗАО «Информсвязь Холдинг» | B64: шт. | C64: 9 | K64: ТО-3 | L64: ТО-3 | AL64: 1
A65: Светильник наружнего освещения на опоре c лампой ДРЛ IP65 (светильник Alumet Control/I) | B65: шт. | C65: 1346 | S65: ТО-3 | T65: ТО-3 | U65: ТО-3 | V65: ТО-3 | AL65: 1
A66: Системы молниезащиты | B66: ед. | C66: 1 | AL66: 0 | AN66: 0
A67: Системы технологического и рабочего заземления | B67: ед. | C67: 1 | AL67: 0
A68: Системы уравнивания потенциалов | B68: шт. | C68: 95 | AL68: 0
A69: Дизель-генераторные установки
A70: FG Wilson P635P5 | B70: шт. | C70: 1 | J70: ТО-1 | Q70: ТО-1 | X70: ТО-1 | AE70: ТО-1 | AF70: ТО-2 | AJ70: =IF(COUNTIF(D70:AH70,"ТО-1"),COUNTIF(D70:AH70,"ТО-1")) -> 4 | AK70: 1 | AN70: 0
A71: Блоки бесперебойного питания
A72: APC SymmetraPX 250/500кВт | B72: шт. | C72: 1 | AG72: ТО-3 | AL72: 1 | AN72: 0
A73: Система холодного и горячего водоснабжения
A74: Запорная арматура
A75: Кран шаровой шаровой Ду32,24 | B75: шт. | C75: 370 | I75: ТО-1 | J75: ТО-1 | P75: ТО-1 | Q75: ТО-1 | R75: ТО-2 | S75: ТО-2 | W75: ТО-1 | X75: ТО-1 | AD75: ТО-1 | AE75: ТО-1 | AJ75: 4 | AK75: 1 | AN75: 0
A76: Задвижка AVK магистральная | B76: шт. | C76: 13 | J76: ТО-1 | Q76: ТО-1 | R76: ТО-2 | X76: ТО-1 | AE76: ТО-1 | AJ76: =IF(COUNTIF(D76:AH76,"ТО-1"),COUNTIF(D76:AH76,"ТО-1")) -> 4 | AK76: 1 | AN76: 0
A77: Трубопроводы
A78: Трубы оцинкованные ЭСВ | B78: м | C78: 918 | D78: ТО-1 | E78: ТО-0 | F78: ТО-0 | G78: ТО-0 | H78: ТО-0 | I78: ТО-0 | J78: ТО-0 | K78: ТО-1 | L78: ТО-0 | M78: ТО-0 | N78: ТО-0 | O78: ТО-0 | P78: ТО-0 | Q78: ТО-0 | R78: ТО-1 | S78: ТО-0 | T78: ТО-0 | U78: ТО-0 | V78: ТО-0 | W78: ТО-0 | X78: ТО-0 | Y78: ТО-1 | Z78: ТО-0 | AA78: ТО-0 | AB78: ТО-0 | AC78: ТО-0 | AD78: ТО-0 | AE78: ТО-0 | AF78: ТО-1 | AG78: ТО-0 | AH78: ТО-0 | AI78: 31 | AJ78: =IF(COUNTIF(D78:AH78,"ТО-1"),COUNTIF(D78:AH78,"ТО-1")) -> 5 | AN78: 0
A79: Труба полиэтиленовая ПНД | B79: м | C79: 806 | D79: ТО-1 | E79: ТО-0 | F79: ТО-0 | G79: ТО-0 | H79: ТО-0 | I79: ТО-0 | J79: ТО-0 | K79: ТО-1 | L79: ТО-0 | M79: ТО-0 | N79: ТО-0 | O79: ТО-0 | P79: ТО-0 | Q79: ТО-0 | R79: ТО-1 | S79: ТО-0 | T79: ТО-0 | U79: ТО-0 | V79: ТО-0 | W79: ТО-0 | X79: ТО-0 | Y79: ТО-1 | Z79: ТО-0 | AA79: ТО-0 | AB79: ТО-0 | AC79: ТО-0 | AD79: ТО-0 | AE79: ТО-0 | AF79: ТО-1 | AG79: ТО-0 | AH79: ТО-0 | AI79: 31 | AJ79: =IF(COUNTIF(D79:AH79,"ТО-1"),COUNTIF(D79:AH79,"ТО-1")) -> 5 | AN79: =IF(COUNTIF(D79:AH79,"ТО-5"),1,"0") -> 0
A80: Ревизии | B80: шт. | C80: 23 | D80: ТО-1 | E80: ТО-0 | F80: ТО-0 | G80: ТО-0 | H80: ТО-0 | I80: ТО-0 | J80: ТО-0 | K80: ТО-1 | L80: ТО-0 | M80: ТО-0 | N80: ТО-0 | O80: ТО-0 | P80: ТО-0 | Q80: ТО-0 | R80: ТО-1 | S80: ТО-0 | T80: ТО-0 | U80: ТО-0 | V80: ТО-0 | W80: ТО-0 | X80: ТО-0 | Y80: ТО-1 | Z80: ТО-2 | AA80: ТО-0 | AB80: ТО-0 | AC80: ТО-0 | AD80: ТО-0 | AE80: ТО-0 | AF80: ТО-1 | AG80: ТО-0 | AH80: ТО-0 | AI80: 31 | AJ80: =IF(COUNTIF(D80:AH80,"ТО-1"),COUNTIF(D80:AH80,"ТО-1")) -> 5 | AK80: =IF(COUNTIF(D80:AH80,"ТО-2"),1,"0") -> 1 | AN80: 0
A81: Трубопроводы и подземные линии
A82: Трубы оцинкованные ЭСВ | B82: м | C82: 918 | D82: ТО-1 | E82: ТО-0 | F82: ТО-0 | G82: ТО-0 | H82: ТО-0 | I82: ТО-0 | J82: ТО-0 | K82: ТО-1 | L82: ТО-2 | M82: ТО-0 | N82: ТО-0 | O82: ТО-0 | P82: ТО-0 | Q82: ТО-0 | R82: ТО-1 | S82: ТО-0 | T82: ТО-0 | U82: ТО-0 | V82: ТО-0 | W82: ТО-0 | X82: ТО-0 | Y82: ТО-1 | Z82: ТО-0 | AA82: ТО-0 | AB82: ТО-0 | AC82: ТО-0 | AD82: ТО-0 | AE82: ТО-0 | AF82: ТО-1 | AG82: ТО-0 | AH82: ТО-0 | AI82: 31 | AJ82: =IF(COUNTIF(D82:AH82,"ТО-1"),COUNTIF(D82:AH82,"ТО-1")) -> 5 | AK82: 1 | AM82: =IF(COUNTIF(D82:AH82,"ТО-4"),1,"0") -> 0 | AN82: 0
A83: Трапы чугунные
A84: Трапы | B84: шт. | C84: 56 | AA84: ТО-2 | AB84: ТО-2 | AK84: 1 | AM84: 0
A85: Унитазы, писсуары, раковины, душевые поддоны
A86: Унитаз для МГН типа Ibo | B86: шт. | C86: 10 | D86: ТО-1 | E86: ТО-2 | K86: ТО-1 | R86: ТО-1 | Y86: ТО-1 | AF86: ТО-1 | AJ86: =IF(COUNTIF(D86:AH86,"ТО-1"),COUNTIF(D86:AH86,"ТО-1")) -> 5 | AK86: 1 | AM86: 0 | AN86: 0
A87: Писсуар Lira | B87: шт. | C87: 16 | D87: ТО-1 | E87: ТО-2 | K87: ТО-1 | R87: ТО-1 | Y87: ТО-1 | AF87: ТО-1 | AJ87: 5 | AK87: 1 | AM87: 0 | AN87: 0
A88: Унитаз открытой установки Ideal | B88: шт. | C88: 39 | D88: ТО-1 | K88: ТО-1 | R88: ТО-1 | S88: ТО-2 | Y88: ТО-1 | AF88: ТО-1 | AJ88: 5 | AK88: 1 | AM88: 0 | AN88: 0
A89: Умывальник обычный Ideal | B89: шт. | C89: 76 | D89: ТО-1 | K89: ТО-1 | R89: ТО-1 | S89: ТО-2 | Y89: ТО-1 | AF89: ТО-1 | AJ89: 5 | AK89: 1 | AM89: 0 | AN89: 0
A90: Мини – раковина Ideal | B90: шт. | C90: 24 | D90: ТО-1 | K90: ТО-1 | R90: ТО-1 | Y90: ТО-1 | Z90: ТО-2 | AF90: ТО-1 | AJ90: 5 | AK90: 1 | AM90: 0 | AN90: 0
A91: Встраиваемые в столешницу раковины | B91: шт. | C91: 24 | D91: ТО-1 | K91: ТО-1 | R91: ТО-1 | Y91: ТО-1 | Z91: ТО-2 | AF91: ТО-1 | AJ91: 5 | AK91: 1 | AM91: 0 | AN91: 0
A92: Умывальник МГН | B92: шт. | C92: 10 | D92: ТО-1 | K92: ТО-1 | R92: ТО-1 | Y92: ТО-1 | AF92: ТО-1 | AG92: ТО-2 | AJ92: 5 | AK92: 1 | AM92: 0 | AN92: 0
A93: Душевой поддон | B93: шт. | C93: 62 | D93: ТО-1 | K93: ТО-1 | R93: ТО-1 | Y93: ТО-1 | AF93: ТО-1 | AG93: ТО-2 | AJ93: 5 | AK93: 1 | AM93: 0 | AN93: 0
A94: Отопительные приборы
A95: Радиаторы | B95: шт. | C95: 118 | D95: ТО-0 | E95: ТО-0 | F95: ТО-0 | G95: ТО-0 | H95: ТО-0 | I95: ТО-1 | J95: ТО-0 | K95: ТО-0 | L95: ТО-0 | M95: ТО-0 | N95: ТО-0 | O95: ТО-0 | P95: ТО-1 | Q95: ТО-0 | R95: ТО-0 | S95: ТО-0 | T95: ТО-0 | U95: ТО-0 | V95: ТО-0 | W95: ТО-1 | X95: ТО-2 | Y95: ТО-5 | Z95: ТО-5 | AA95: ТО-5 | AB95: ТО-0 | AC95: ТО-0 | AD95: ТО-1 | AE95: ТО-0 | AF95: ТО-0 | AG95: ТО-0 | AH95: ТО-0 | AI95: 31 | AJ95: =IF(COUNTIF(D95:AH95,"ТО-1"),COUNTIF(D95:AH95,"ТО-1")) -> 4 | AK95: 1 | AL95: =IF(COUNTIF(D95:AH95,"ТО-3"),1,"0") -> 0 | AN95: 1
A96: Фонтанный комплекс
A97: Фонтанный комплекс | B97: шт. | C97: 1 | T97: ТО-2 | U97: ТО-2 | V97: ТО-2 | W97: ТО-3 | X97: ТО-3 | Y97: ТО-3 | AK97: 1 | AL97: 1 | AN97: 0
A98: Комплексная система информатизации, автоматизации, и связи
A99: Система коллективного информирования
A100: Информационный статический указатель Trecom | B100: шт. | C100: 193 | H100: ТО-1 | I100: ТО-1 | J100: ТО-1 | O100: ТО-1 | P100: ТО-1 | Q100: ТО-1 | R100: ТО-3 | S100: ТО-3 | T100: ТО-3 | V100: ТО-1 | W100: ТО-1 | X100: ТО-1 | AC100: ТО-1 | AD100: ТО-1 | AE100: ТО-1 | AJ100: 4 | AL100: 1 | AM100: 0 | AN100: 0
A101: Информационный пилон Trecom | B101: шт. | C101: 1 | J101: ТО-1 | Q101: ТО-1 | X101: ТО-1 | AE101: ТО-1 | AF101: ТО-3 | AJ101: =IF(COUNTIF(D101:AH101,"ТО-1"),COUNTIF(D101:AH101,"ТО-1")) -> 4 | AL101: 1 | AM101: 0 | AN101: 0
A102: Информационный модуль Trecom | B102: шт. | C102: 11 | J102: ТО-1 | Q102: ТО-1 | X102: ТО-1 | AE102: ТО-1 | AF102: ТО-3 | AJ102: 4 | AL102: 1 | AM102: 0 | AN102: 0
A103: Щит платформенный ЗАО «Информсвязь Холдинг» | B103: шт. | C103: 18 | J103: ТО-1 | Q103: ТО-1 | X103: ТО-1 | AE103: ТО-1 | AF103: ТО-3 | AJ103: 4 | AL103: 1 | AM103: 0 | AN103: 0
A104: Фасадная вывеска ЗАО «Информсвязь Холдинг» | B104: шт. | C104: 9 | I104: ТО-1 | P104: ТО-1 | Q104: ТО-3 | W104: ТО-1 | AD104: ТО-1 | AJ104: 4 | AL104: 1 | AM104: 0 | AN104: 0
A105: Система телефонной, оперативно – технологической связи Cisco System, Philips | B105: ед. | C105: 1 | I105: ТО-1 | P105: ТО-1 | Q105: ТО-3 | W105: ТО-1 | AD105: ТО-1 | AJ105: 4 | AL105: 1 | AM105: 0 | AN105: 0
A106: Система экстренной связи (терминалы пассажир – кассир, пассажир – дежурный по вокзалу) Stentofon | B106: шт. | C106: 41 | I106: ТО-1 | P106: ТО-1 | Q106: ТО-3 | R106: ТО-3 | W106: ТО-1 | AD106: ТО-1 | AJ106: 4 | AL106: 1 | AM106: 0 | AN106: 0
A107: Система часофикации MobaTime | B107: ед. | C107: 1 | I107: ТО-1 | P107: ТО-1 | Q107: ТО-3 | W107: ТО-1 | AD107: ТО-1 | AJ107: 4 | AL107: 1 | AM107: 0 | AN107: 0
A108: Система телевидения и радиотрансляции EXTRON | B108: ед. | C108: 1 | I108: ТО-1 | P108: ТО-1 | Q108: ТО-3 | W108: ТО-1 | AD108: ТО-1 | AJ108: 4 | AL108: 1 | AM108: 0 | AN108: 0
A109: Динамик громкоговорящего оповещения Bosch LB1H-UW06-L, LB1H-UM06E. LBC3200. LBC3201 | B109: шт. | C109: 918 | H109: ТО-1 | I109: ТО-1 | J109: ТО-1 | L109: ТО-3 | M109: ТО-3 | N109: ТО-3 | O109: ТО-1 | P109: ТО-1 | Q109: ТО-1 | V109: ТО-1 | W109: ТО-1 | X109: ТО-1 | Z109: ТО-3 | AA109: ТО-3 | AB109: ТО-3 | AC109: ТО-1 | AD109: ТО-1 | AE109: ТО-1 | AJ109: 4 | AL109: 1 | AM109: 0 | AN109: 0
A110: Система позиционных датчиков для навигации на вокзале Датчик Smart Beacon | B110: шт. | C110: 74 | J110: ТО-1 | Q110: ТО-1 | X110: ТО-1 | AC110: ТО-3 | AD110: ТО-3 | AE110: ТО-1 | AJ110: =IF(COUNTIF(D110:AH110,"ТО-1"),COUNTIF(D110:AH110,"ТО-1")) -> 4 | AL110: 1 | AM110: 0 | AN110: 0
A111: Система управления и диспетчеризации инженерного оборудования (СУДИО)
A112: Система управления и диспетчеризации инженерного оборудования (СУДИО) Siemens | B112: ед. | C112: 1 | D112: ТО-1 | K112: ТО-1 | R112: ТО-1 | Y112: ТО-1 | AF112: ТО-1 | AG112: ТО-3 | AJ112: =IF(COUNTIF(D112:AH112,"ТО-1"),COUNTIF(D112:AH112,"ТО-1")) -> 5 | AL112: 1 | AM112: 0 | AN112: 0

Sheet еППР
B1: А К Т
B2: Выполненных работ
B6: № п/п | C6: Наименование оборудования / системы | D6: Отметка о выполнении | E6: =График!D12 -> 2022-10-01 | F6: =График!E12 -> 2022-10-02 | G6: =График!F12 -> 2022-10-03 | H6: =График!G12 -> 2022-10-04 | I6: =График!H12 -> 2022-10-05 | J6: =График!I12 -> 2022-10-06 | K6: =График!J12 -> 2022-10-07 | L6: =График!K12 -> 2022-10-08 | M6: =График!L12 -> 2022-10-09 | N6: =График!M12 -> 2022-10-10 | O6: =График!N12 -> 2022-10-11 | P6: =График!O12 -> 2022-10-12 | Q6: =График!P12 -> 2022-10-13 | R6: =График!Q12 -> 2022-10-14 | S6: =График!R12 -> 2022-10-15 | T6: =График!S12 -> 2022-10-16 | U6: =График!T12 -> 2022-10-17 | V6: =График!U12 -> 2022-10-18 | W6: =График!V12 -> 2022-10-19 | X6: =График!W12 -> 2022-10-20 | Y6: =График!X12 -> 2022-10-21 | Z6: =График!Y12 -> 2022-10-22 | AA6: =График!Z12 -> 2022-10-23 | AB6: =График!AA12 -> 2022-10-24 | AC6: =График!AB12 -> 2022-10-25 | AD6: =График!AC12 -> 2022-10-26 | AE6: =График!AD12 -> 2022-10-27 | AF6: =График!AE12 -> 2022-10-28 | AG6: =График!AF12 -> 2022-10-29 | AH6: =График!AG12 -> 2022-10-30 | AI6: =График!AH12 -> 2022-10-31
E7: Вид ТО | F7: Вид ТО | G7: Вид ТО | H7: Вид ТО | I7: Вид ТО | J7: Вид ТО | K7: Вид ТО | L7: Вид ТО | M7: Вид ТО | N7: Вид ТО | O7: Вид ТО | P7: Вид ТО | Q7: Вид ТО | R7: Вид ТО | S7: Вид ТО | T7: Вид ТО | U7: Вид ТО | V7: Вид ТО | W7: Вид ТО | X7: Вид ТО | Y7: Вид ТО | Z7: Вид ТО | AA7: Вид ТО | AB7: Вид ТО | AC7: Вид ТО | AD7: Вид ТО | AE7: Вид ТО | AF7: Вид ТО | AG7: Вид ТО | AH7: Вид ТО | AI7: Вид ТО
B8: 1 | C8: Установки вентиляции и кондиционирования воздуха | E8: =IF(E9="","","*") ->  | F8: =IF(F9="","","*") ->  | J8: * | Q8: * | X8: * | AE8: * | AF8: *
B9: 1.1 | C9: Система вентиляциии кондиционирования инв. № 14003312 | E9: =IF(График!D14>0,График!D14,"") ->  | F9: =IF(График!E14>0,График!E14,"") ->  | G9: =IF(График!F14>0,График!F14,"") ->  | H9: =IF(График!G14>0,График!G14,"") ->  | I9: =IF(График!H14>0,График!H14,"") ->  | J9: =IF(График!I14>0,График!I14,"") -> ТО-1 | K9: =IF(График!J14>0,График!J14,"") ->  | L9: =IF(График!K14>0,График!K14,"") ->  | M9: =IF(График!L14>0,График!L14,"") ->  | N9: =IF(График!M14>0,График!M14,"") ->  | O9: =IF(График!N14>0,График!N14,"") ->  | P9: =IF(График!O14>0,График!O14,"") ->  | Q9: =IF(График!P14>0,График!P14,"") -> ТО-1 | R9: =IF(График!Q14>0,График!Q14,"") ->  | S9: =IF(График!R14>0,График!R14,"") ->  | T9: =IF(График!S14>0,График!S14,"") ->  | U9: =IF(График!T14>0,График!T14,"") ->  | V9: =IF(График!U14>0,График!U14,"") ->  | W9: =IF(График!V14>0,График!V14,"") ->  | X9: =IF(График!W14>0,График!W14,"") -> ТО-1 | Y9: =IF(График!X14>0,График!X14,"") ->  | Z9: =IF(График!Y14>0,График!Y14,"") ->  | AA9: =IF(График!Z14>0,График!Z14,"") ->  | AB9: =IF(График!AA14>0,График!AA14,"") ->  | AC9: =IF(График!AB14>0,График!AB14,"") ->  | AD9: =IF(График!AC14>0,График!AC14,"") ->  | AE9: =IF(График!AD14>0,График!AD14,"") -> ТО-1 | AF9: =IF(График!AE14>0,График!AE14,"") -> ТО-2 | AG9: =IF(График!AF14>0,График!AF14,"") ->  | AH9: =IF(График!AG14>0,График!AG14,"") ->  | AI9: =IF(График!AH14>0,График!AH14,"") -> 
B10: 2 | C10: Тепловые завесы | E10: =IF(OR(E11<>"",E12<>"",E13<>"",E14<>""),"*","") ->  | F10: =IF(OR(F11<>"",F12<>"",F13<>"",F14<>""),"*","") ->  | J10: * | K10: * | Q10: * | R10: * | X10: * | Y10: * | Z10: * | AE10: * | AF10: *
B11: 2.1 | C11: Viento А1 инв. № 14001186 | E11: =IF(График!D16>0,График!D16,"") ->  | F11: =IF(График!E16>0,График!E16,"") ->  | G11: =IF(График!F16>0,График!F16,"") ->  | H11: =IF(График!G16>0,График!G16,"") ->  | I11: =IF(График!H16>0,График!H16,"") ->  | J11: =IF(График!I16>0,График!I16,"") -> ТО-1 | K11: =IF(График!J16>0,График!J16,"") ->  | L11: =IF(График!K16>0,График!K16,"") ->  | M11: =IF(График!L16>0,График!L16,"") ->  | N11: =IF(График!M16>0,График!M16,"") ->  | O11: =IF(График!N16>0,График!N16,"") ->  | P11: =IF(График!O16>0,График!O16,"") ->  | Q11: =IF(График!P16>0,График!P16,"") -> ТО-1 | R11: =IF(График!Q16>0,График!Q16,"") -> ТО-2 | S11: =IF(График!R16>0,График!R16,"") ->  | T11: =IF(График!S16>0,График!S16,"") ->  | U11: =IF(График!T16>0,График!T16,"") ->  | V11: =IF(График!U16>0,График!U16,"") ->  | W11: =IF(График!V16>0,График!V16,"") ->  | X11: =IF(График!W16>0,График!W16,"") -> ТО-1 | Y11: =IF(График!X16>0,График!X16,"") ->  | Z11: =IF(График!Y16>0,График!Y16,"") ->  | AA11: =IF(График!Z16>0,График!Z16,"") ->  | AB11: =IF(График!AA16>0,График!AA16,"") ->  | AC11: =IF(График!AB16>0,График!AB16,"") ->  | AD11: =IF(График!AC16>0,График!AC16,"") ->  | AE11: =IF(График!AD16>0,График!AD16,"") -> ТО-1 | AF11: =IF(График!AE16>0,График!AE16,"") ->  | AG11: =IF(График!AF16>0,График!AF16,"") ->  | AH11: =IF(График!AG16>0,График!AG16,"") ->  | AI11: =IF(График!AH16>0,График!AH16,"") -> 
B12: 2.2 | C12: Viento А2 без нагрева инв. № 14001188 | E12: =IF(График!D17>0,График!D17,"") ->  | F12: =IF(График!E17>0,График!E17,"") ->  | G12: =IF(График!F17>0,График!F17,"") ->  | H12: =IF(График!G17>0,График!G17,"") ->  | I12: =IF(График!H17>0,График!H17,"") ->  | J12: =IF(График!I17>0,График!I17,"") -> ТО-1 | K12: =IF(График!J17>0,График!J17,"") ->  | L12: =IF(График!K17>0,График!K17,"") ->  | M12: =IF(График!L17>0,График!L17,"") ->  | N12: =IF(График!M17>0,График!M17,"") ->  | O12: =IF(График!N17>0,График!N17,"") ->  | P12: =IF(График!O17>0,График!O17,"") ->  | Q12: =IF(График!P17>0,График!P17,"") -> ТО-1 | R12: =IF(График!Q17>0,График!Q17,"") -> ТО-2 | S12: =IF(График!R17>0,График!R17,"") ->  | T12: =IF(График!S17>0,График!S17,"") ->  | U12: =IF(График!T17>0,График!T17,"") ->  | V12: =IF(График!U17>0,График!U17,"") ->  | W12: =IF(График!V17>0,График!V17,"") ->  | X12: =IF(График!W17>0,График!W17,"") -> ТО-1 | Y12: =IF(График!X17>0,График!X17,"") ->  | Z12: =IF(График!Y17>0,График!Y17,"") ->  | AA12: =IF(График!Z17>0,График!Z17,"") ->  | AB12: =IF(График!AA17>0,График!AA17,"") ->  | AC12: =IF(График!AB17>0,График!AB17,"") ->  | AD12: =IF(График!AC17>0,График!AC17,"") ->  | AE12: =IF(График!AD17>0,График!AD17,"") -> ТО-1 | AF12: =IF(График!AE17>0,График!AE17,"") ->  | AG12: =IF(График!AF17>0,График!AF17,"") ->  | AH12: =IF(График!AG17>0,График!AG17,"") ->  | AI12: =IF(График!AH17>0,График!AH17,"") -> 
B13: 2.3 | C13: Viento А1 без нагрева инв. № 14001189 | E13: =IF(График!D18>0,График!D18,"") ->  | F13: =IF(График!E18>0,График!E18,"") ->  | G13: =IF(График!F18>0,График!F18,"") ->  | H13: =IF(График!G18>0,График!G18,"") ->  | I13: =IF(График!H18>0,График!H18,"") ->  | J13: =IF(График!I18>0,График!I18,"") ->  | K13: =IF(График!J18>0,График!J18,"") -> ТО-1 | L13: =IF(График!K18>0,График!K18,"") ->  | M13: =IF(График!L18>0,График!L18,"") ->  | N13: =IF(График!M18>0,График!M18,"") ->  | O13: =IF(График!N18>0,График!N18,"") ->  | P13: =IF(График!O18>0,График!O18,"") ->  | Q13: =IF(График!P18>0,График!P18,"") ->  | R13: =IF(График!Q18>0,График!Q18,"") -> ТО-1 | S13: =IF(График!R18>0,График!R18,"") ->  | T13: =IF(График!S18>0,График!S18,"") ->  | U13: =IF(График!T18>0,График!T18,"") ->  | V13: =IF(График!U18>0,График!U18,"") ->  | W13: =IF(График!V18>0,График!V18,"") ->  | X13: =IF(График!W18>0,График!W18,"") ->  | Y13: =IF(График!X18>0,График!X18,"") -> ТО-1 | Z13: =IF(График!Y18>0,График!Y18,"") -> ТО-2 | AA13: =IF(График!Z18>0,График!Z18,"") ->  | AB13: =IF(График!AA18>0,График!AA18,"") ->  | AC13: =IF(График!AB18>0,График!AB18,"") ->  | AD13: =IF(График!AC18>0,График!AC18,"") ->  | AE13: =IF(График!AD18>0,График!AD18,"") ->  | AF13: =IF(График!AE18>0,График!AE18,"") -> ТО-1 | AG13: =IF(График!AF18>0,График!AF18,"") ->  | AH13: =IF(График!AG18>0,График!AG18,"") ->  | AI13: =IF(График!AH18>0,График!AH18,"") -> 
B14: 2.4 | C14: Viento А2 инв. № 14001187 | E14: =IF(График!D19>0,График!D19,"") ->  | F14: =IF(График!E19>0,График!E19,"") ->  | G14: =IF(График!F19>0,График!F19,"") ->  | H14: =IF(График!G19>0,График!G19,"") ->  | I14: =IF(График!H19>0,График!H19,"") ->  | J14: =IF(График!I19>0,График!I19,"") ->  | K14: =IF(График!J19>0,График!J19,"") -> ТО-1 | L14: =IF(График!K19>0,График!K19,"") ->  | M14: =IF(График!L19>0,График!L19,"") ->  | N14: =IF(График!M19>0,График!M19,"") ->  | O14: =IF(График!N19>0,График!N19,"") ->  | P14: =IF(График!O19>0,График!O19,"") ->  | Q14: =IF(График!P19>0,График!P19,"") ->  | R14: =IF(График!Q19>0,График!Q19,"") -> ТО-1 | S14: =IF(График!R19>0,График!R19,"") ->  | T14: =IF(График!S19>0,График!S19,"") ->  | U14: =IF(График!T19>0,График!T19,"") ->  | V14: =IF(График!U19>0,График!U19,"") ->  | W14: =IF(График!V19>0,График!V19,"") ->  | X14: =IF(График!W19>0,График!W19,"") ->  | Y14: =IF(График!X19>0,График!X19,"") -> ТО-1 | Z14: =IF(График!Y19>0,График!Y19,"") -> ТО-2 | AA14: =IF(График!Z19>0,График!Z19,"") ->  | AB14: =IF(График!AA19>0,График!AA19,"") ->  | AC14: =IF(График!AB19>0,График!AB19,"") ->  | AD14: =IF(График!AC19>0,График!AC19,"") ->  | AE14: =IF(График!AD19>0,График!AD19,"") ->  | AF14: =IF(График!AE19>0,График!AE19,"") -> ТО-1 | AG14: =IF(График!AF19>0,График!AF19,"") ->  | AH14: =IF(График!AG19>0,График!AG19,"") ->  | AI14: =IF(График!AH19>0,График!AH19,"") -> 
B15: 3 | C15: Аппаратура местного климатконтроля (фанкойлы) | E15: =IF(OR(E16<>"",E17<>"",E18<>"",E19<>""),"*","") -> * | F15: =IF(OR(F16<>"",F17<>"",F18<>"",F19<>""),"*","") -> * | H15: * | I15: * | J15: * | K15: * | L15: * | M15: * | N15: * | O15: * | P15: * | Q15: * | R15: * | S15: * | T15: * | V15: * | W15: * | X15: * | Y15: * | Z15: * | AA15: * | AC15: * | AD15: * | AE15: * | AF15: * | AG15: * | AH15: *
B16: 3.1 | C16: CARRIER, 42GW04 | E16: =IF(График!D21>0,График!D21,"") -> ТО-1 | F16: =IF(График!E21>0,График!E21,"") -> ТО-1 | G16: =IF(График!F21>0,График!F21,"") ->  | H16: =IF(График!G21>0,График!G21,"") ->  | I16: =IF(График!H21>0,График!H21,"") ->  | J16: =IF(График!I21>0,График!I21,"") ->  | K16: =IF(График!J21>0,График!J21,"") ->  | L16: =IF(График!K21>0,График!K21,"") -> ТО-1 | M16: =IF(График!L21>0,График!L21,"") -> ТО-1 | N16: =IF(График!M21>0,График!M21,"") -> ТО-2 | O16: =IF(График!N21>0,График!N21,"") -> ТО-2 | P16: =IF(График!O21>0,График!O21,"") ->  | Q16: =IF(График!P21>0,График!P21,"") ->  | R16: =IF(График!Q21>0,График!Q21,"") ->  | S16: =IF(График!R21>0,График!R21,"") -> ТО-1 | T16: =IF(График!S21>0,График!S21,"") -> ТО-1 | U16: =IF(График!T21>0,График!T21,"") ->  | V16: =IF(График!U21>0,График!U21,"") ->  | W16: =IF(График!V21>0,График!V21,"") ->  | X16: =IF(График!W21>0,График!W21,"") ->  | Y16: =IF(График!X21>0,График!X21,"") ->  | Z16: =IF(График!Y21>0,График!Y21,"") -> ТО-1 | AA16: =IF(График!Z21>0,График!Z21,"") -> ТО-1 | AB16: =IF(График!AA21>0,График!AA21,"") ->  | AC16: =IF(График!AB21>0,График!AB21,"") ->  | AD16: =IF(График!AC21>0,График!AC21,"") ->  | AE16: =IF(График!AD21>0,График!AD21,"") ->  | AF16: =IF(График!AE21>0,График!AE21,"") ->  | AG16: =IF(График!AF21>0,График!AF21,"") -> ТО-1 | AH16: =IF(График!AG21>0,График!AG21,"") -> ТО-1 | AI16: =IF(График!AH21>0,График!AH21,"") -> 
B17: 3.2 | C17: CARRIER, 42DW07 | E17: =IF(График!D22>0,График!D22,"") ->  | F17: =IF(График!E22>0,График!E22,"") ->  | G17: =IF(График!F22>0,График!F22,"") ->  | H17: =IF(График!G22>0,График!G22,"") ->  | I17: =IF(График!H22>0,График!H22,"") ->  | J17: =IF(График!I22>0,График!I22,"") -> ТО-1 | K17: =IF(График!J22>0,График!J22,"") -> ТО-2 | L17: =IF(График!K22>0,График!K22,"") ->  | M17: =IF(График!L22>0,График!L22,"") ->  | N17: =IF(График!M22>0,График!M22,"") ->  | O17: =IF(График!N22>0,График!N22,"") ->  | P17: =IF(График!O22>0,График!O22,"") ->  | Q17: =IF(График!P22>0,График!P22,"") -> ТО-1 | R17: =IF(График!Q22>0,График!Q22,"") ->  | S17: =IF(График!R22>0,График!R22,"") ->  | T17: =IF(График!S22>0,График!S22,"") ->  | U17: =IF(График!T22>0,График!T22,"") ->  | V17: =IF(График!U22>0,График!U22,"") ->  | W17: =IF(График!V22>0,График!V22,"") ->  | X17: =IF(График!W22>0,График!W22,"") -> ТО-1 | Y17: =IF(График!X22>0,График!X22,"") ->  | Z17: =IF(График!Y22>0,График!Y22,"") ->  | AA17: =IF(График!Z22>0,График!Z22,"") ->  | AB17: =IF(График!AA22>0,График!AA22,"") ->  | AC17: =IF(График!AB22>0,График!AB22,"") ->  | AD17: =IF(График!AC22>0,График!AC22,"") ->  | AE17: =IF(График!AD22>0,График!AD22,"") -> ТО-1 | AF17: =IF(График!AE22>0,График!AE22,"") ->  | AG17: =IF(График!AF22>0,График!AF22,"") ->  | AH17: =IF(График!AG22>0,График!AG22,"") ->  | AI17: =IF(График!AH22>0,График!AH22,"") -> 
B18: 3.3. | C18: CARRIER, 42DW09 | E18: =IF(График!D23>0,График!D23,"") ->  | F18: =IF(График!E23>0,График!E23,"") ->  | G18: =IF(График!F23>0,График!F23,"") ->  | H18: =IF(График!G23>0,График!G23,"") ->  | I18: =IF(График!H23>0,График!H23,"") ->  | J18: =IF(График!I23>0,График!I23,"") ->  | K18: =IF(График!J23>0,График!J23,"") -> ТО-1 | L18: =IF(График!K23>0,График!K23,"") ->  | M18: =IF(График!L23>0,График!L23,"") ->  | N18: =IF(График!M23>0,График!M23,"") ->  | O18: =IF(График!N23>0,График!N23,"") ->  | P18: =IF(График!O23>0,График!O23,"") ->  | Q18: =IF(График!P23>0,График!P23,"") ->  | R18: =IF(График!Q23>0,График!Q23,"") -> ТО-1 | S18: =IF(График!R23>0,График!R23,"") -> ТО-2 | T18: =IF(График!S23>0,График!S23,"") ->  | U18: =IF(График!T23>0,График!T23,"") ->  | V18: =IF(График!U23>0,График!U23,"") ->  | W18: =IF(График!V23>0,График!V23,"") ->  | X18: =IF(График!W23>0,График!W23,"") ->  | Y18: =IF(График!X23>0,График!X23,"") -> ТО-1 | Z18: =IF(График!Y23>0,График!Y23,"") ->  | AA18: =IF(График!Z23>0,График!Z23,"") ->  | AB18: =IF(График!AA23>0,График!AA23,"") ->  | AC18: =IF(График!AB23>0,График!AB23,"") ->  | AD18: =IF(График!AC23>0,График!AC23,"") ->  | AE18: =IF(График!AD23>0,График!AD23,"") ->  | AF18: =IF(График!AE23>0,График!AE23,"") -> ТО-1 | AG18: =IF(График!AF23>0,График!AF23,"") ->  | AH18: =IF(График!AG23>0,График!AG23,"") ->  | AI18: =IF(График!AH23>0,График!AH23,"") -> 
B19: 3.4 | C19: MOHLENHOFF, QSK HK360-140-2750 | E19: =IF(График!D24>0,График!D24,"") ->  | F19: =IF(График!E24>0,График!E24,"") ->  | G19: =IF(График!F24>0,График!F24,"") ->  | H19: =IF(График!G24>0,График!G24,"") -> ТО-1 | I19: =IF(График!H24>0,График!H24,"") -> ТО-1 | J19: =IF(График!I24>0,График!I24,"") ->  | K19: =IF(График!J24>0,График!J24,"") ->  | L19: =IF(График!K24>0,График!K24,"") ->  | M19: =IF(График!L24>0,График!L24,"") ->  | N19: =IF(График!M24>0,График!M24,"") ->  | O19: =IF(График!N24>0,График!N24,"") -> ТО-1 | P19: =IF(График!O24>0,График!O24,"") -> ТО-1 | Q19: =IF(График!P24>0,График!P24,"") ->  | R19: =IF(График!Q24>0,График!Q24,"") ->  | S19: =IF(График!R24>0,График!R24,"") ->  | T19: =IF(График!S24>0,График!S24,"") ->  | U19: =IF(График!T24>0,График!T24,"") ->  | V19: =IF(График!U24>0,График!U24,"") -> ТО-1 | W19: =IF(График!V24>0,График!V24,"") -> ТО-1 | X19: =IF(График!W24>0,График!W24,"") -> ТО-2 | Y19: =IF(График!X24>0,График!X24,"") -> ТО-2 | Z19: =IF(График!Y24>0,График!Y24,"") ->  | AA19: =IF(График!Z24>0,График!Z24,"") ->  | AB19: =IF(График!AA24>0,График!AA24,"") ->  | AC19: =IF(График!AB24>0,График!AB24,"") -> ТО-1 | AD19: =IF(График!AC24>0,График!AC24,"") -> ТО-1 | AE19: =IF(График!AD24>0,График!AD24,"") ->  | AF19: =IF(График!AE24>0,График!AE24,"") ->  | AG19: =IF(График!AF24>0,График!AF24,"") ->  | AH19: =IF(График!AG24>0,График!AG24,"") ->  | AI19: =IF(График!AH24>0,График!AH24,"") -> 
B20: 4 | C20: Чиллеры | E20: =IF(E21="","","*") -> * | F20: =IF(F21="","","*") ->  | L20: * | S20: * | Z20: * | AA20: * | AG20: *
B21: 4.1 | C21: Blue Box OMEGA VECHOS-95.2 | E21: =IF(График!D26>0,График!D26,"") -> ТО-1 | F21: =IF(График!E26>0,График!E26,"") ->  | G21: =IF(График!F26>0,График!F26,"") ->  | H21: =IF(График!G26>0,График!G26,"") ->  | I21: =IF(График!H26>0,График!H26,"") ->  | J21: =IF(График!I26>0,График!I26,"") ->  | K21: =IF(График!J26>0,График!J26,"") ->  | L21: =IF(График!K26>0,График!K26,"") -> ТО-1 | M21: =IF(График!L26>0,График!L26,"") ->  | N21: =IF(График!M26>0,График!M26,"") ->  | O21: =IF(График!N26>0,График!N26,"") ->  | P21: =IF(График!O26>0,График!O26,"") ->  | Q21: =IF(График!P26>0,График!P26,"") ->  | R21: =IF(График!Q26>0,График!Q26,"") ->  | S21: =IF(График!R26>0,График!R26,"") -> ТО-1 | T21: =IF(График!S26>0,График!S26,"") ->  | U21: =IF(График!T26>0,График!T26,"") ->  | V21: =IF(График!U26>0,График!U26,"") ->  | W21: =IF(График!V26>0,График!V26,"") ->  | X21: =IF(График!W26>0,График!W26,"") ->  | Y21: =IF(График!X26>0,График!X26,"") ->  | Z21: =IF(График!Y26>0,График!Y26,"") -> ТО-1 | AA21: =IF(График!Z26>0,График!Z26,"") -> ТО-2 | AB21: =IF(График!AA26>0,График!AA26,"") ->  | AC21: =IF(График!AB26>0,График!AB26,"") ->  | AD21: =IF(График!AC26>0,График!AC26,"") ->  | AE21: =IF(График!AD26>0,График!AD26,"") ->  | AF21: =IF(График!AE26>0,График!AE26,"") ->  | AG21: =IF(График!AF26>0,График!AF26,"") -> ТО-1 | AH21: =IF(График!AG26>0,График!AG26,"") ->  | AI21: =IF(График!AH26>0,График!AH26,"") -> 
B22: 5 | C22: Сплит системы | E22: =IF(OR(E23<>"",E24<>"",E25<>"",E26<>"",E27<>"",E28<>"",E29<>"",E30<>"",E31<>"",E32<>"",E33<>"",E34<>"",E35<>"",E36<>"",E37<>""),"*","") ->  | F22: =IF(OR(F23<>"",F24<>"",F25<>"",F26<>"",F27<>"",F28<>"",F29<>"",F30<>"",F31<>"",F32<>"",F33<>"",F34<>"",F35<>"",F36<>"",F37<>""),"*","") -> 
B23: 5.1 | C23: CHIGO, CS/CU-61H3A-P124 | E23: =IF(График!D28>0,График!D28,"") ->  | F23: =IF(График!E28>0,График!E28,"") ->  | G23: =IF(График!F28>0,График!F28,"") ->  | H23: =IF(График!G28>0,График!G28,"") ->  | I23: =IF(График!H28>0,График!H28,"") ->  | J23: =IF(График!I28>0,График!I28,"") ->  | K23: =IF(График!J28>0,График!J28,"") ->  | L23: =IF(График!K28>0,График!K28,"") ->  | M23: =IF(График!L28>0,График!L28,"") ->  | N23: =IF(График!M28>0,График!M28,"") ->  | O23: =IF(График!N28>0,График!N28,"") ->  | P23: =IF(График!O28>0,График!O28,"") ->  | Q23: =IF(График!P28>0,График!P28,"") ->  | R23: =IF(График!Q28>0,График!Q28,"") ->  | S23: =IF(График!R28>0,График!R28,"") ->  | T23: =IF(График!S28>0,График!S28,"") ->  | U23: =IF(График!T28>0,График!T28,"") ->  | V23: =IF(График!U28>0,График!U28,"") ->  | W23: =IF(График!V28>0,График!V28,"") ->  | X23: =IF(График!W28>0,График!W28,"") ->  | Y23: =IF(График!X28>0,График!X28,"") ->  | Z23: =IF(График!Y28>0,График!Y28,"") ->  | AA23: =IF(График!Z28>0,График!Z28,"") ->  | AB23: =IF(График!AA28>0,График!AA28,"") ->  | AC23: =IF(График!AB28>0,График!AB28,"") ->  | AD23: =IF(График!AC28>0,График!AC28,"") ->  | AE23: =IF(График!AD28>0,График!AD28,"") ->  | AF23: =IF(График!AE28>0,График!AE28,"") ->  | AG23: =IF(График!AF28>0,График!AF28,"") ->  | AH23: =IF(График!AG28>0,График!AG28,"") ->  | AI23: =IF(График!AH28>0,График!AH28,"") -> 
B24: 5.2 | C24: KENTATSU, KSRE70HFAN1 | E24: =IF(График!D29>0,График!D29,"") ->  | F24: =IF(График!E29>0,График!E29,"") ->  | G24: =IF(График!F29>0,График!F29,"") ->  | H24: =IF(График!G29>0,График!G29,"") ->  | I24: =IF(График!H29>0,График!H29,"") ->  | J24: =IF(График!I29>0,График!I29,"") ->  | K24: =IF(График!J29>0,График!J29,"") ->  | L24: =IF(График!K29>0,График!K29,"") ->  | M24: =IF(График!L29>0,График!L29,"") ->  | N24: =IF(График!M29>0,График!M29,"") ->  | O24: =IF(График!N29>0,График!N29,"") ->  | P24: =IF(График!O29>0,График!O29,"") ->  | Q24: =IF(График!P29>0,График!P29,"") ->  | R24: =IF(График!Q29>0,График!Q29,"") ->  | S24: =IF(График!R29>0,График!R29,"") ->  | T24: =IF(График!S29>0,График!S29,"") ->  | U24: =IF(График!T29>0,График!T29,"") ->  | V24: =IF(График!U29>0,График!U29,"") ->  | W24: =IF(График!V29>0,График!V29,"") ->  | X24: =IF(График!W29>0,График!W29,"") ->  | Y24: =IF(График!X29>0,График!X29,"") ->  | Z24: =IF(График!Y29>0,График!Y29,"") ->  | AA24: =IF(График!Z29>0,График!Z29,"") ->  | AB24: =IF(График!AA29>0,График!AA29,"") ->  | AC24: =IF(График!AB29>0,График!AB29,"") ->  | AD24: =IF(График!AC29>0,График!AC29,"") ->  | AE24: =IF(График!AD29>0,График!AD29,"") ->  | AF24: =IF(График!AE29>0,График!AE29,"") ->  | AG24: =IF(График!AF29>0,График!AF29,"") ->  | AH24: =IF(График!AG29>0,График!AG29,"") ->  | AI24: =IF(График!AH29>0,График!AH29,"") -> 
B25: 5.3 | C25: CHIGO, CS/CU-25H3A-V124 | E25: =IF(График!D30>0,График!D30,"") ->  | F25: =IF(График!E30>0,График!E30,"") ->  | G25: =IF(График!F30>0,График!F30,"") ->  | H25: =IF(График!G30>0,График!G30,"") ->  | I25: =IF(График!H30>0,График!H30,"") ->  | J25: =IF(График!I30>0,График!I30,"") ->  | K25: =IF(График!J30>0,График!J30,"") ->  | L25: =IF(График!K30>0,График!K30,"") ->  | M25: =IF(График!L30>0,График!L30,"") ->  | N25: =IF(График!M30>0,График!M30,"") ->  | O25: =IF(График!N30>0,График!N30,"") ->  | P25: =IF(График!O30>0,График!O30,"") ->  | Q25: =IF(График!P30>0,График!P30,"") ->  | R25: =IF(График!Q30>0,График!Q30,"") ->  | S25: =IF(График!R30>0,График!R30,"") ->  | T25: =IF(График!S30>0,График!S30,"") ->  | U25: =IF(График!T30>0,График!T30,"") ->  | V25: =IF(График!U30>0,График!U30,"") ->  | W25: =IF(График!V30>0,График!V30,"") ->  | X25: =IF(График!W30>0,График!W30,"") ->  | Y25: =IF(График!X30>0,График!X30,"") ->  | Z25: =IF(График!Y30>0,График!Y30,"") ->  | AA25: =IF(График!Z30>0,График!Z30,"") ->  | AB25: =IF(График!AA30>0,График!AA30,"") ->  | AC25: =IF(График!AB30>0,График!AB30,"") ->  | AD25: =IF(График!AC30>0,График!AC30,"") ->  | AE25: =IF(График!AD30>0,График!AD30,"") ->  | AF25: =IF(График!AE30>0,График!AE30,"") ->  | AG25: =IF(График!AF30>0,График!AF30,"") ->  | AH25: =IF(График!AG30>0,График!AG30,"") ->  | AI25: =IF(График!AH30>0,График!AH30,"") -> 
B26: 5.4 | C26: CHIGO, CS/CU-61H3A-P124 | E26: =IF(График!D31>0,График!D31,"") ->  | F26: =IF(График!E31>0,График!E31,"") ->  | G26: =IF(График!F31>0,График!F31,"") ->  | H26: =IF(График!G31>0,График!G31,"") ->  | I26: =IF(График!H31>0,График!H31,"") ->  | J26: =IF(График!I31>0,График!I31,"") ->  | K26: =IF(График!J31>0,График!J31,"") ->  | L26: =IF(График!K31>0,График!K31,"") ->  | M26: =IF(График!L31>0,График!L31,"") ->  | N26: =IF(График!M31>0,График!M31,"") ->  | O26: =IF(График!N31>0,График!N31,"") ->  | P26: =IF(График!O31>0,График!O31,"") ->  | Q26: =IF(График!P31>0,График!P31,"") ->  | R26: =IF(График!Q31>0,График!Q31,"") ->  | S26: =IF(График!R31>0,График!R31,"") ->  | T26: =IF(График!S31>0,График!S31,"") ->  | U26: =IF(График!T31>0,График!T31,"") ->  | V26: =IF(График!U31>0,График!U31,"") ->  | W26: =IF(График!V31>0,График!V31,"") ->  | X26: =IF(График!W31>0,График!W31,"") ->  | Y26: =IF(График!X31>0,График!X31,"") ->  | Z26: =IF(График!Y31>0,График!Y31,"") ->  | AA26: =IF(График!Z31>0,График!Z31,"") ->  | AB26: =IF(График!AA31>0,График!AA31,"") ->  | AC26: =IF(График!AB31>0,График!AB31,"") ->  | AD26: =IF(График!AC31>0,График!AC31,"") ->  | AE26: =IF(График!AD31>0,График!AD31,"") ->  | AF26: =IF(График!AE31>0,График!AE31,"") ->  | AG26: =IF(График!AF31>0,График!AF31,"") ->  | AH26: =IF(График!AG31>0,График!AG31,"") ->  | AI26: =IF(График!AH31>0,График!AH31,"") -> 
B27: 5.5 | C27: DAIKIN, 2MXS50H | E27: =IF(График!D32>0,График!D32,"") ->  | F27: =IF(График!E32>0,График!E32,"") ->  | G27: =IF(График!F32>0,График!F32,"") ->  | H27: =IF(График!G32>0,График!G32,"") ->  | I27: =IF(График!H32>0,График!H32,"") ->  | J27: =IF(График!I32>0,График!I32,"") ->  | K27: =IF(График!J32>0,График!J32,"") ->  | L27: =IF(График!K32>0,График!K32,"") ->  | M27: =IF(График!L32>0,График!L32,"") ->  | N27: =IF(График!M32>0,График!M32,"") ->  | O27: =IF(График!N32>0,График!N32,"") ->  | P27: =IF(График!O32>0,График!O32,"") ->  | Q27: =IF(График!P32>0,График!P32,"") ->  | R27: =IF(График!Q32>0,График!Q32,"") ->  | S27: =IF(График!R32>0,График!R32,"") ->  | T27: =IF(График!S32>0,График!S32,"") ->  | U27: =IF(График!T32>0,График!T32,"") ->  | V27: =IF(График!U32>0,График!U32,"") ->  | W27: =IF(График!V32>0,График!V32,"") ->  | X27: =IF(График!W32>0,График!W32,"") ->  | Y27: =IF(График!X32>0,График!X32,"") ->  | Z27: =IF(График!Y32>0,График!Y32,"") ->  | AA27: =IF(График!Z32>0,График!Z32,"") ->  | AB27: =IF(График!AA32>0,График!AA32,"") ->  | AC27: =IF(График!AB32>0,График!AB32,"") ->  | AD27: =IF(График!AC32>0,График!AC32,"") ->  | AE27: =IF(График!AD32>0,График!AD32,"") ->  | AF27: =IF(График!AE32>0,График!AE32,"") ->  | AG27: =IF(График!AF32>0,График!AF32,"") ->  | AH27: =IF(График!AG32>0,График!AG32,"") ->  | AI27: =IF(График!AH32>0,График!AH32,"") -> 
B28: 5.6 | C28: DAIKIN, 3MXS68G | E28: =IF(График!D33>0,График!D33,"") ->  | F28: =IF(График!E33>0,График!E33,"") ->  | G28: =IF(График!F33>0,График!F33,"") ->  | H28: =IF(График!G33>0,График!G33,"") ->  | I28: =IF(График!H33>0,График!H33,"") ->  | J28: =IF(График!I33>0,График!I33,"") ->  | K28: =IF(График!J33>0,График!J33,"") ->  | L28: =IF(График!K33>0,График!K33,"") ->  | M28: =IF(График!L33>0,График!L33,"") ->  | N28: =IF(График!M33>0,График!M33,"") ->  | O28: =IF(График!N33>0,График!N33,"") ->  | P28: =IF(График!O33>0,График!O33,"") ->  | Q28: =IF(График!P33>0,График!P33,"") ->  | R28: =IF(График!Q33>0,График!Q33,"") ->  | S28: =IF(График!R33>0,График!R33,"") ->  | T28: =IF(График!S33>0,График!S33,"") ->  | U28: =IF(График!T33>0,График!T33,"") ->  | V28: =IF(График!U33>0,График!U33,"") ->  | W28: =IF(График!V33>0,График!V33,"") ->  | X28: =IF(График!W33>0,График!W33,"") ->  | Y28: =IF(График!X33>0,График!X33,"") ->  | Z28: =IF(График!Y33>0,График!Y33,"") ->  | AA28: =IF(График!Z33>0,График!Z33,"") ->  | AB28: =IF(График!AA33>0,График!AA33,"") ->  | AC28: =IF(График!AB33>0,График!AB33,"") ->  | AD28: =IF(График!AC33>0,График!AC33,"") ->  | AE28: =IF(График!AD33>0,График!AD33,"") ->  | AF28: =IF(График!AE33>0,График!AE33,"") ->  | AG28: =IF(График!AF33>0,График!AF33,"") ->  | AH28: =IF(График!AG33>0,График!AG33,"") ->  | AI28: =IF(График!AH33>0,График!AH33,"") -> 
B29: 5.7 | C29: DAIKIN, 5MXS90E | E29: =IF(График!D34>0,График!D34,"") ->  | F29: =IF(График!E34>0,График!E34,"") ->  | G29: =IF(График!F34>0,График!F34,"") ->  | H29: =IF(График!G34>0,График!G34,"") ->  | I29: =IF(График!H34>0,График!H34,"") ->  | J29: =IF(График!I34>0,График!I34,"") ->  | K29: =IF(График!J34>0,График!J34,"") ->  | L29: =IF(График!K34>0,График!K34,"") ->  | M29: =IF(График!L34>0,График!L34,"") ->  | N29: =IF(График!M34>0,График!M34,"") ->  | O29: =IF(График!N34>0,График!N34,"") ->  | P29: =IF(График!O34>0,График!O34,"") ->  | Q29: =IF(График!P34>0,График!P34,"") ->  | R29: =IF(График!Q34>0,График!Q34,"") ->  | S29: =IF(График!R34>0,График!R34,"") ->  | T29: =IF(График!S34>0,График!S34,"") ->  | U29: =IF(График!T34>0,График!T34,"") ->  | V29: =IF(График!U34>0,График!U34,"") ->  | W29: =IF(График!V34>0,График!V34,"") ->  | X29: =IF(График!W34>0,График!W34,"") ->  | Y29: =IF(График!X34>0,График!X34,"") ->  | Z29: =IF(График!Y34>0,График!Y34,"") ->  | AA29: =IF(График!Z34>0,График!Z34,"") ->  | AB29: =IF(График!AA34>0,График!AA34,"") ->  | AC29: =IF(График!AB34>0,График!AB34,"") ->  | AD29: =IF(График!AC34>0,График!AC34,"") ->  | AE29: =IF(График!AD34>0,График!AD34,"") ->  | AF29: =IF(График!AE34>0,График!AE34,"") ->  | AG29: =IF(График!AF34>0,График!AF34,"") ->  | AH29: =IF(График!AG34>0,График!AG34,"") ->  | AI29: =IF(График!AH34>0,График!AH34,"") -> 
B30: 5.8 | C30: DAIKIN, FFQ35B | E30: =IF(График!D35>0,График!D35,"") ->  | F30: =IF(График!E35>0,График!E35,"") ->  | G30: =IF(График!F35>0,График!F35,"") ->  | H30: =IF(График!G35>0,График!G35,"") ->  | I30: =IF(График!H35>0,График!H35,"") ->  | J30: =IF(График!I35>0,График!I35,"") ->  | K30: =IF(График!J35>0,График!J35,"") ->  | L30: =IF(График!K35>0,График!K35,"") ->  | M30: =IF(График!L35>0,График!L35,"") ->  | N30: =IF(График!M35>0,График!M35,"") ->  | O30: =IF(График!N35>0,График!N35,"") ->  | P30: =IF(График!O35>0,График!O35,"") ->  | Q30: =IF(График!P35>0,График!P35,"") ->  | R30: =IF(График!Q35>0,График!Q35,"") ->  | S30: =IF(График!R35>0,График!R35,"") ->  | T30: =IF(График!S35>0,График!S35,"") ->  | U30: =IF(График!T35>0,График!T35,"") ->  | V30: =IF(График!U35>0,График!U35,"") ->  | W30: =IF(График!V35>0,График!V35,"") ->  | X30: =IF(График!W35>0,График!W35,"") ->  | Y30: =IF(График!X35>0,График!X35,"") ->  | Z30: =IF(График!Y35>0,График!Y35,"") ->  | AA30: =IF(График!Z35>0,График!Z35,"") ->  | AB30: =IF(График!AA35>0,График!AA35,"") ->  | AC30: =IF(График!AB35>0,График!AB35,"") ->  | AD30: =IF(График!AC35>0,График!AC35,"") ->  | AE30: =IF(График!AD35>0,График!AD35,"") ->  | AF30: =IF(График!AE35>0,График!AE35,"") ->  | AG30: =IF(График!AF35>0,График!AF35,"") ->  | AH30: =IF(График!AG35>0,График!AG35,"") ->  | AI30: =IF(График!AH35>0,График!AH35,"") -> 
B31: 5.9 | C31: DAIKIN, FFQ25B | E31: =IF(График!D36>0,График!D36,"") ->  | F31: =IF(График!E36>0,График!E36,"") ->  | G31: =IF(График!F36>0,График!F36,"") ->  | H31: =IF(График!G36>0,График!G36,"") ->  | I31: =IF(График!H36>0,График!H36,"") ->  | J31: =IF(График!I36>0,График!I36,"") ->  | K31: =IF(График!J36>0,График!J36,"") ->  | L31: =IF(График!K36>0,График!K36,"") ->  | M31: =IF(График!L36>0,График!L36,"") ->  | N31: =IF(График!M36>0,График!M36,"") ->  | O31: =IF(График!N36>0,График!N36,"") ->  | P31: =IF(График!O36>0,График!O36,"") ->  | Q31: =IF(График!P36>0,График!P36,"") ->  | R31: =IF(График!Q36>0,График!Q36,"") ->  | S31: =IF(График!R36>0,График!R36,"") ->  | T31: =IF(График!S36>0,График!S36,"") ->  | U31: =IF(График!T36>0,График!T36,"") ->  | V31: =IF(График!U36>0,График!U36,"") ->  | W31: =IF(График!V36>0,График!V36,"") ->  | X31: =IF(График!W36>0,График!W36,"") ->  | Y31: =IF(График!X36>0,График!X36,"") ->  | Z31: =IF(График!Y36>0,График!Y36,"") ->  | AA31: =IF(График!Z36>0,График!Z36,"") ->  | AB31: =IF(График!AA36>0,График!AA36,"") ->  | AC31: =IF(График!AB36>0,График!AB36,"") ->  | AD31: =IF(График!AC36>0,График!AC36,"") ->  | AE31: =IF(График!AD36>0,График!AD36,"") ->  | AF31: =IF(График!AE36>0,График!AE36,"") ->  | AG31: =IF(График!AF36>0,График!AF36,"") ->  | AH31: =IF(График!AG36>0,График!AG36,"") ->  | AI31: =IF(График!AH36>0,График!AH36,"") -> 
B32: 5.10 | C32: DAIKIN, FFQ50B | E32: =IF(График!D37>0,График!D37,"") ->  | F32: =IF(График!E37>0,График!E37,"") ->  | G32: =IF(График!F37>0,График!F37,"") ->  | H32: =IF(График!G37>0,График!G37,"") ->  | I32: =IF(График!H37>0,График!H37,"") ->  | J32: =IF(График!I37>0,График!I37,"") ->  | K32: =IF(График!J37>0,График!J37,"") ->  | L32: =IF(График!K37>0,График!K37,"") ->  | M32: =IF(График!L37>0,График!L37,"") ->  | N32: =IF(График!M37>0,График!M37,"") ->  | O32: =IF(График!N37>0,График!N37,"") ->  | P32: =IF(График!O37>0,График!O37,"") ->  | Q32: =IF(График!P37>0,График!P37,"") ->  | R32: =IF(График!Q37>0,График!Q37,"") ->  | S32: =IF(График!R37>0,График!R37,"") ->  | T32: =IF(График!S37>0,График!S37,"") ->  | U32: =IF(График!T37>0,График!T37,"") ->  | V32: =IF(График!U37>0,График!U37,"") ->  | W32: =IF(График!V37>0,График!V37,"") ->  | X32: =IF(График!W37>0,График!W37,"") ->  | Y32: =IF(График!X37>0,График!X37,"") ->  | Z32: =IF(График!Y37>0,График!Y37,"") ->  | AA32: =IF(График!Z37>0,График!Z37,"") ->  | AB32: =IF(График!AA37>0,График!AA37,"") ->  | AC32: =IF(График!AB37>0,График!AB37,"") ->  | AD32: =IF(График!AC37>0,График!AC37,"") ->  | AE32: =IF(График!AD37>0,График!AD37,"") ->  | AF32: =IF(График!AE37>0,График!AE37,"") ->  | AG32: =IF(График!AF37>0,График!AF37,"") ->  | AH32: =IF(График!AG37>0,График!AG37,"") ->  | AI32: =IF(График!AH37>0,График!AH37,"") -> 
B33: 5.11 | C33: DAIKIN, FAQ71B/RR71BV-W | E33: =IF(График!D38>0,График!D38,"") ->  | F33: =IF(График!E38>0,График!E38,"") ->  | G33: =IF(График!F38>0,График!F38,"") ->  | H33: =IF(График!G38>0,График!G38,"") ->  | I33: =IF(График!H38>0,График!H38,"") ->  | J33: =IF(График!I38>0,График!I38,"") ->  | K33: =IF(График!J38>0,График!J38,"") ->  | L33: =IF(График!K38>0,График!K38,"") ->  | M33: =IF(График!L38>0,График!L38,"") ->  | N33: =IF(График!M38>0,График!M38,"") ->  | O33: =IF(График!N38>0,График!N38,"") ->  | P33: =IF(График!O38>0,График!O38,"") ->  | Q33: =IF(График!P38>0,График!P38,"") ->  | R33: =IF(График!Q38>0,График!Q38,"") ->  | S33: =IF(График!R38>0,График!R38,"") ->  | T33: =IF(График!S38>0,График!S38,"") ->  | U33: =IF(График!T38>0,График!T38,"") ->  | V33: =IF(График!U38>0,График!U38,"") ->  | W33: =IF(График!V38>0,График!V38,"") ->  | X33: =IF(График!W38>0,График!W38,"") ->  | Y33: =IF(График!X38>0,График!X38,"") ->  | Z33: =IF(График!Y38>0,График!Y38,"") ->  | AA33: =IF(График!Z38>0,График!Z38,"") ->  | AB33: =IF(График!AA38>0,График!AA38,"") ->  | AC33: =IF(График!AB38>0,График!AB38,"") ->  | AD33: =IF(График!AC38>0,График!AC38,"") ->  | AE33: =IF(График!AD38>0,График!AD38,"") ->  | AF33: =IF(График!AE38>0,График!AE38,"") ->  | AG33: =IF(График!AF38>0,График!AF38,"") ->  | AH33: =IF(График!AG38>0,График!AG38,"") ->  | AI33: =IF(График!AH38>0,График!AH38,"") -> 
B34: 5.12 | C34: DAIKIN, FAQ100B/RR100BV | E34: =IF(График!D39>0,График!D39,"") ->  | F34: =IF(График!E39>0,График!E39,"") ->  | G34: =IF(График!F39>0,График!F39,"") ->  | H34: =IF(График!G39>0,График!G39,"") ->  | I34: =IF(График!H39>0,График!H39,"") ->  | J34: =IF(График!I39>0,График!I39,"") ->  | K34: =IF(График!J39>0,График!J39,"") ->  | L34: =IF(График!K39>0,График!K39,"") ->  | M34: =IF(График!L39>0,График!L39,"") ->  | N34: =IF(График!M39>0,График!M39,"") ->  | O34: =IF(График!N39>0,График!N39,"") ->  | P34: =IF(График!O39>0,График!O39,"") ->  | Q34: =IF(График!P39>0,График!P39,"") ->  | R34: =IF(График!Q39>0,График!Q39,"") ->  | S34: =IF(График!R39>0,График!R39,"") ->  | T34: =IF(График!S39>0,График!S39,"") ->  | U34: =IF(График!T39>0,График!T39,"") ->  | V34: =IF(График!U39>0,График!U39,"") ->  | W34: =IF(График!V39>0,График!V39,"") ->  | X34: =IF(График!W39>0,График!W39,"") ->  | Y34: =IF(График!X39>0,График!X39,"") ->  | Z34: =IF(График!Y39>0,График!Y39,"") ->  | AA34: =IF(График!Z39>0,График!Z39,"") ->  | AB34: =IF(График!AA39>0,График!AA39,"") ->  | AC34: =IF(График!AB39>0,График!AB39,"") ->  | AD34: =IF(График!AC39>0,График!AC39,"") ->  | AE34: =IF(График!AD39>0,График!AD39,"") ->  | AF34: =IF(График!AE39>0,График!AE39,"") ->  | AG34: =IF(График!AF39>0,График!AF39,"") ->  | AH34: =IF(График!AG39>0,График!AG39,"") ->  | AI34: =IF(График!AH39>0,График!AH39,"") -> 
B35: 5.13 | C35: DAIKIN, FFT25/R25 | E35: =IF(График!D40>0,График!D40,"") ->  | F35: =IF(График!E40>0,График!E40,"") ->  | G35: =IF(График!F40>0,График!F40,"") ->  | H35: =IF(График!G40>0,График!G40,"") ->  | I35: =IF(График!H40>0,График!H40,"") ->  | J35: =IF(График!I40>0,График!I40,"") ->  | K35: =IF(График!J40>0,График!J40,"") ->  | L35: =IF(График!K40>0,График!K40,"") ->  | M35: =IF(График!L40>0,График!L40,"") ->  | N35: =IF(График!M40>0,График!M40,"") ->  | O35: =IF(График!N40>0,График!N40,"") ->  | P35: =IF(График!O40>0,График!O40,"") ->  | Q35: =IF(График!P40>0,График!P40,"") ->  | R35: =IF(График!Q40>0,График!Q40,"") ->  | S35: =IF(График!R40>0,График!R40,"") ->  | T35: =IF(График!S40>0,График!S40,"") ->  | U35: =IF(График!T40>0,График!T40,"") ->  | V35: =IF(График!U40>0,График!U40,"") ->  | W35: =IF(График!V40>0,График!V40,"") ->  | X35: =IF(График!W40>0,График!W40,"") ->  | Y35: =IF(График!X40>0,График!X40,"") ->  | Z35: =IF(График!Y40>0,График!Y40,"") ->  | AA35: =IF(График!Z40>0,График!Z40,"") ->  | AB35: =IF(График!AA40>0,График!AA40,"") ->  | AC35: =IF(График!AB40>0,График!AB40,"") ->  | AD35: =IF(График!AC40>0,График!AC40,"") ->  | AE35: =IF(График!AD40>0,График!AD40,"") ->  | AF35: =IF(График!AE40>0,График!AE40,"") ->  | AG35: =IF(График!AF40>0,График!AF40,"") ->  | AH35: =IF(График!AG40>0,График!AG40,"") ->  | AI35: =IF(График!AH40>0,График!AH40,"") -> 
B36: 5.14 | C36: DAIKIN, FFQ35B/RX35J | E36: =IF(График!D41>0,График!D41,"") ->  | F36: =IF(График!E41>0,График!E41,"") ->  | G36: =IF(График!F41>0,График!F41,"") ->  | H36: =IF(График!G41>0,График!G41,"") ->  | I36: =IF(График!H41>0,График!H41,"") ->  | J36: =IF(График!I41>0,График!I41,"") ->  | K36: =IF(График!J41>0,График!J41,"") ->  | L36: =IF(График!K41>0,График!K41,"") ->  | M36: =IF(График!L41>0,График!L41,"") ->  | N36: =IF(График!M41>0,График!M41,"") ->  | O36: =IF(График!N41>0,График!N41,"") ->  | P36: =IF(График!O41>0,График!O41,"") ->  | Q36: =IF(График!P41>0,График!P41,"") ->  | R36: =IF(График!Q41>0,График!Q41,"") ->  | S36: =IF(График!R41>0,График!R41,"") ->  | T36: =IF(График!S41>0,График!S41,"") ->  | U36: =IF(График!T41>0,График!T41,"") ->  | V36: =IF(График!U41>0,График!U41,"") ->  | W36: =IF(График!V41>0,График!V41,"") ->  | X36: =IF(График!W41>0,График!W41,"") ->  | Y36: =IF(График!X41>0,График!X41,"") ->  | Z36: =IF(График!Y41>0,График!Y41,"") ->  | AA36: =IF(График!Z41>0,График!Z41,"") ->  | AB36: =IF(График!AA41>0,График!AA41,"") ->  | AC36: =IF(График!AB41>0,График!AB41,"") ->  | AD36: =IF(График!AC41>0,График!AC41,"") ->  | AE36: =IF(График!AD41>0,График!AD41,"") ->  | AF36: =IF(График!AE41>0,График!AE41,"") ->  | AG36: =IF(График!AF41>0,График!AF41,"") ->  | AH36: =IF(График!AG41>0,График!AG41,"") ->  | AI36: =IF(График!AH41>0,График!AH41,"") -> 
B37: 5.15 | C37: DAIKIN, FFQ50B/RX50J | E37: =IF(График!D42>0,График!D42,"") ->  | F37: =IF(График!E42>0,График!E42,"") ->  | G37: =IF(График!F42>0,График!F42,"") ->  | H37: =IF(График!G42>0,График!G42,"") ->  | I37: =IF(График!H42>0,График!H42,"") ->  | J37: =IF(График!I42>0,График!I42,"") ->  | K37: =IF(График!J42>0,График!J42,"") ->  | L37: =IF(График!K42>0,График!K42,"") ->  | M37: =IF(График!L42>0,График!L42,"") ->  | N37: =IF(График!M42>0,График!M42,"") ->  | O37: =IF(График!N42>0,График!N42,"") ->  | P37: =IF(График!O42>0,График!O42,"") ->  | Q37: =IF(График!P42>0,График!P42,"") ->  | R37: =IF(График!Q42>0,График!Q42,"") ->  | S37: =IF(График!R42>0,График!R42,"") ->  | T37: =IF(График!S42>0,График!S42,"") ->  | U37: =IF(График!T42>0,График!T42,"") ->  | V37: =IF(График!U42>0,График!U42,"") ->  | W37: =IF(График!V42>0,График!V42,"") ->  | X37: =IF(График!W42>0,График!W42,"") ->  | Y37: =IF(График!X42>0,График!X42,"") ->  | Z37: =IF(График!Y42>0,График!Y42,"") ->  | AA37: =IF(График!Z42>0,График!Z42,"") ->  | AB37: =IF(График!AA42>0,График!AA42,"") ->  | AC37: =IF(График!AB42>0,График!AB42,"") ->  | AD37: =IF(График!AC42>0,График!AC42,"") ->  | AE37: =IF(График!AD42>0,График!AD42,"") ->  | AF37: =IF(График!AE42>0,График!AE42,"") ->  | AG37: =IF(График!AF42>0,График!AF42,"") ->  | AH37: =IF(График!AG42>0,График!AG42,"") ->  | AI37: =IF(График!AH42>0,График!AH42,"") -> 
B38: 6 | C38: Шлагбаумы, автоматические двери, автоматические ворота, механические (распашные) и противопожарные двери | E38: =IF(OR(E39<>"",E40<>"",E41<>"",E42<>""),"*","") ->  | F38: =IF(OR(F39<>"",F40<>"",F41<>"",F42<>""),"*","") ->  | V38: * | W38: * | X38: * | Y38: * | AB38: * | AC38: * | AD38: * | AE38: * | AF38: *
B39: 6.1 | C39: Шлагбаум CAME G0402 | E39: =IF(График!D44>0,График!D44,"") ->  | F39: =IF(График!E44>0,График!E44,"") ->  | G39: =IF(График!F44>0,График!F44,"") ->  | H39: =IF(График!G44>0,График!G44,"") ->  | I39: =IF(График!H44>0,График!H44,"") ->  | J39: =IF(График!I44>0,График!I44,"") ->  | K39: =IF(График!J44>0,График!J44,"") ->  | L39: =IF(График!K44>0,График!K44,"") ->  | M39: =IF(График!L44>0,График!L44,"") ->  | N39: =IF(График!M44>0,График!M44,"") ->  | O39: =IF(График!N44>0,График!N44,"") ->  | P39: =IF(График!O44>0,График!O44,"") ->  | Q39: =IF(График!P44>0,График!P44,"") ->  | R39: =IF(График!Q44>0,График!Q44,"") ->  | S39: =IF(График!R44>0,График!R44,"") ->  | T39: =IF(График!S44>0,График!S44,"") ->  | U39: =IF(График!T44>0,График!T44,"") ->  | V39: =IF(График!U44>0,График!U44,"") ->  | W39: =IF(График!V44>0,График!V44,"") ->  | X39: =IF(График!W44>0,График!W44,"") ->  | Y39: =IF(График!X44>0,График!X44,"") ->  | Z39: =IF(График!Y44>0,График!Y44,"") ->  | AA39: =IF(График!Z44>0,График!Z44,"") ->  | AB39: =IF(График!AA44>0,График!AA44,"") ->  | AC39: =IF(График!AB44>0,График!AB44,"") ->  | AD39: =IF(График!AC44>0,График!AC44,"") ->  | AE39: =IF(График!AD44>0,График!AD44,"") -> ТО-2 | AF39: =IF(График!AE44>0,График!AE44,"") ->  | AG39: =IF(График!AF44>0,График!AF44,"") ->  | AH39: =IF(График!AG44>0,График!AG44,"") ->  | AI39: =IF(График!AH44>0,График!AH44,"") -> 
B40: 6.2 | C40: Автоматические ворота Doorhan | E40: =IF(График!D45>0,График!D45,"") ->  | F40: =IF(График!E45>0,График!E45,"") ->  | G40: =IF(График!F45>0,График!F45,"") ->  | H40: =IF(График!G45>0,График!G45,"") ->  | I40: =IF(График!H45>0,График!H45,"") ->  | J40: =IF(График!I45>0,График!I45,"") ->  | K40: =IF(График!J45>0,График!J45,"") ->  | L40: =IF(График!K45>0,График!K45,"") ->  | M40: =IF(График!L45>0,График!L45,"") ->  | N40: =IF(График!M45>0,График!M45,"") ->  | O40: =IF(График!N45>0,График!N45,"") ->  | P40: =IF(График!O45>0,График!O45,"") ->  | Q40: =IF(График!P45>0,График!P45,"") ->  | R40: =IF(График!Q45>0,График!Q45,"") ->  | S40: =IF(График!R45>0,График!R45,"") ->  | T40: =IF(График!S45>0,График!S45,"") ->  | U40: =IF(График!T45>0,График!T45,"") ->  | V40: =IF(График!U45>0,График!U45,"") ->  | W40: =IF(График!V45>0,График!V45,"") ->  | X40: =IF(График!W45>0,График!W45,"") ->  | Y40: =IF(График!X45>0,График!X45,"") ->  | Z40: =IF(График!Y45>0,График!Y45,"") ->  | AA40: =IF(График!Z45>0,График!Z45,"") ->  | AB40: =IF(График!AA45>0,График!AA45,"") ->  | AC40: =IF(График!AB45>0,График!AB45,"") ->  | AD40: =IF(График!AC45>0,График!AC45,"") ->  | AE40: =IF(График!AD45>0,График!AD45,"") ->  | AF40: =IF(График!AE45>0,График!AE45,"") -> ТО-2 | AG40: =IF(График!AF45>0,График!AF45,"") ->  | AH40: =IF(График!AG45>0,График!AG45,"") ->  | AI40: =IF(График!AH45>0,График!AH45,"") -> 
B41: 6.3 | C41: Автоматические двери GEZE SlimDrive | E41: =IF(График!D46>0,График!D46,"") ->  | F41: =IF(График!E46>0,График!E46,"") ->  | G41: =IF(График!F46>0,График!F46,"") ->  | H41: =IF(График!G46>0,График!G46,"") ->  | I41: =IF(График!H46>0,График!H46,"") ->  | J41: =IF(График!I46>0,График!I46,"") ->  | K41: =IF(График!J46>0,График!J46,"") ->  | L41: =IF(График!K46>0,График!K46,"") ->  | M41: =IF(График!L46>0,График!L46,"") ->  | N41: =IF(График!M46>0,График!M46,"") ->  | O41: =IF(График!N46>0,График!N46,"") ->  | P41: =IF(График!O46>0,График!O46,"") ->  | Q41: =IF(График!P46>0,График!P46,"") ->  | R41: =IF(График!Q46>0,График!Q46,"") ->  | S41: =IF(График!R46>0,График!R46,"") ->  | T41: =IF(График!S46>0,График!S46,"") ->  | U41: =IF(График!T46>0,График!T46,"") ->  | V41: =IF(График!U46>0,График!U46,"") ->  | W41: =IF(График!V46>0,График!V46,"") ->  | X41: =IF(График!W46>0,График!W46,"") ->  | Y41: =IF(График!X46>0,График!X46,"") ->  | Z41: =IF(График!Y46>0,График!Y46,"") ->  | AA41: =IF(График!Z46>0,График!Z46,"") ->  | AB41: =IF(График!AA46>0,График!AA46,"") -> ТО-2 | AC41: =IF(График!AB46>0,График!AB46,"") ->  | AD41: =IF(График!AC46>0,График!AC46,"") ->  | AE41: =IF(График!AD46>0,График!AD46,"") ->  | AF41: =IF(График!AE46>0,График!AE46,"") ->  | AG41: =IF(График!AF46>0,График!AF46,"") ->  | AH41: =IF(График!AG46>0,График!AG46,"") ->  | AI41: =IF(График!AH46>0,График!AH46,"") -> 
B42: 6.4 | C42: Механические (распашные), пожарные двери Krilak | E42: =IF(График!D47>0,График!D47,"") ->  | F42: =IF(График!E47>0,График!E47,"") ->  | G42: =IF(График!F47>0,График!F47,"") ->  | H42: =IF(График!G47>0,График!G47,"") ->  | I42: =IF(График!H47>0,График!H47,"") ->  | J42: =IF(График!I47>0,График!I47,"") ->  | K42: =IF(График!J47>0,График!J47,"") ->  | L42: =IF(График!K47>0,График!K47,"") ->  | M42: =IF(График!L47>0,График!L47,"") ->  | N42: =IF(График!M47>0,График!M47,"") ->  | O42: =IF(График!N47>0,График!N47,"") ->  | P42: =IF(График!O47>0,График!O47,"") ->  | Q42: =IF(График!P47>0,График!P47,"") ->  | R42: =IF(График!Q47>0,График!Q47,"") ->  | S42: =IF(График!R47>0,График!R47,"") ->  | T42: =IF(График!S47>0,График!S47,"") ->  | U42: =IF(График!T47>0,График!T47,"") ->  | V42: =IF(График!U47>0,График!U47,"") -> ТО-2 | W42: =IF(График!V47>0,График!V47,"") -> ТО-2 | X42: =IF(График!W47>0,График!W47,"") -> ТО-2 | Y42: =IF(График!X47>0,График!X47,"") -> ТО-2 | Z42: =IF(График!Y47>0,График!Y47,"") ->  | AA42: =IF(График!Z47>0,График!Z47,"") ->  | AB42: =IF(График!AA47>0,График!AA47,"") ->  | AC42: =IF(График!AB47>0,График!AB47,"") -> ТО-2 | AD42: =IF(График!AC47>0,График!AC47,"") -> ТО-2 | AE42: =IF(График!AD47>0,График!AD47,"") -> ТО-2 | AF42: =IF(График!AE47>0,График!AE47,"") -> ТО-2 | AG42: =IF(График!AF47>0,График!AF47,"") ->  | AH42: =IF(График!AG47>0,График!AG47,"") ->  | AI42: =IF(График!AH47>0,График!AH47,"") -> 
B43: 7 | C43: Электрооборудование | E43: =IF(OR(E44<>"",E45<>"",E46<>"",E47<>"",E48<>"",E49<>"",E50<>"",E51<>"",E52<>"",E53<>"",E54<>"",E55<>"",E56<>"",E57<>""),"*","") -> * | F43: =IF(OR(F44<>"",F45<>"",F46<>"",F47<>"",F48<>"",F49<>"",F50<>"",F51<>"",F52<>"",F53<>"",F54<>"",F55<>"",F56<>"",F57<>""),"*","") -> * | G43: * | H43: * | I43: * | J43: * | K43: * | L43: * | M43: * | N43: * | O43: * | P43: * | Q43: * | R43: * | S43: * | T43: * | U43: * | V43: * | W43: * | X43: * | Y43: * | Z43: * | AA43: * | AB43: * | AC43: * | AD43: * | AE43: * | AF43: * | AG43: * | AH43: * | AI43: *
B44: 7.1 | C44: Шкаф универсальный (щит ЩРН-12;18;24;36) | E44: =IF(График!D49>0,График!D49,"") -> ТО-0 | F44: =IF(График!E49>0,График!E49,"") -> ТО-0 | G44: =IF(График!F49>0,График!F49,"") -> ТО-0 | H44: =IF(График!G49>0,График!G49,"") -> ТО-0 | I44: =IF(График!H49>0,График!H49,"") -> ТО-0 | J44: =IF(График!I49>0,График!I49,"") -> ТО-0 | K44: =IF(График!J49>0,График!J49,"") -> ТО-0 | L44: =IF(График!K49>0,График!K49,"") -> ТО-0 | M44: =IF(График!L49>0,График!L49,"") -> ТО-3 | N44: =IF(График!M49>0,График!M49,"") -> ТО-3 | O44: =IF(График!N49>0,График!N49,"") -> ТО-3 | P44: =IF(График!O49>0,График!O49,"") -> ТО-5 | Q44: =IF(График!P49>0,График!P49,"") -> ТО-5 | R44: =IF(График!Q49>0,График!Q49,"") -> ТО-5 | S44: =IF(График!R49>0,График!R49,"") -> ТО-0 | T44: =IF(График!S49>0,График!S49,"") -> ТО-0 | U44: =IF(График!T49>0,График!T49,"") -> ТО-0 | V44: =IF(График!U49>0,График!U49,"") -> ТО-0 | W44: =IF(График!V49>0,График!V49,"") -> ТО-0 | X44: =IF(График!W49>0,График!W49,"") -> ТО-0 | Y44: =IF(График!X49>0,График!X49,"") -> ТО-0 | Z44: =IF(График!Y49>0,График!Y49,"") -> ТО-0 | AA44: =IF(График!Z49>0,График!Z49,"") -> ТО-0 | AB44: =IF(График!AA49>0,График!AA49,"") -> ТО-0 | AC44: =IF(График!AB49>0,График!AB49,"") -> ТО-0 | AD44: =IF(График!AC49>0,График!AC49,"") -> ТО-0 | AE44: =IF(График!AD49>0,График!AD49,"") -> ТО-0 | AF44: =IF(График!AE49>0,График!AE49,"") -> ТО-0 | AG44: =IF(График!AF49>0,График!AF49,"") -> ТО-0 | AH44: =IF(График!AG49>0,График!AG49,"") -> ТО-0 | AI44: =IF(График!AH49>0,График!AH49,"") -> ТО-0
B45: 7.2 | C45: Внутреннее электроосвещение: Щиты 1.1.ЩО-1, ЩАО-1; 1.2.ЩО-1, ЩАО-1; 1.3.ЩО-1, ЩАО-1; 1.3.ЩО-2, ЩАО-2; 1.5.ЩО-1, ЩАО-1; 1.6.ЩО-1, ЩАО-1; 1.7.ЩО-1, ЩО-2, ЩАО-1; 2.1.ЩО-1, ЩАО-1; 2.2.ЩО-1, ЩО-2, ЩАО-1; 2.3.ЩО-1; 3.1.ЩО-1, ЩАО-1; 4.1.ЩО-1, ЩАО-1; | E45: =IF(График!D50>0,График!D50,"") -> ТО-0 | F45: =IF(График!E50>0,График!E50,"") -> ТО-0 | G45: =IF(График!F50>0,График!F50,"") -> ТО-0 | H45: =IF(График!G50>0,График!G50,"") -> ТО-0 | I45: =IF(График!H50>0,График!H50,"") -> ТО-0 | J45: =IF(График!I50>0,График!I50,"") -> ТО-0 | K45: =IF(График!J50>0,График!J50,"") -> ТО-0 | L45: =IF(График!K50>0,График!K50,"") -> ТО-0 | M45: =IF(График!L50>0,График!L50,"") -> ТО-0 | N45: =IF(График!M50>0,График!M50,"") -> ТО-0 | O45: =IF(График!N50>0,График!N50,"") -> ТО-0 | P45: =IF(График!O50>0,График!O50,"") -> ТО-0 | Q45: =IF(График!P50>0,График!P50,"") -> ТО-0 | R45: =IF(График!Q50>0,График!Q50,"") -> ТО-0 | S45: =IF(График!R50>0,График!R50,"") -> ТО-0 | T45: =IF(График!S50>0,График!S50,"") -> ТО-3 | U45: =IF(График!T50>0,График!T50,"") -> ТО-3 | V45: =IF(График!U50>0,График!U50,"") -> ТО-3 | W45: =IF(График!V50>0,График!V50,"") -> ТО-3 | X45: =IF(График!W50>0,График!W50,"") -> ТО-3 | Y45: =IF(График!X50>0,График!X50,"") -> ТО-3 | Z45: =IF(График!Y50>0,График!Y50,"") -> ТО-3 | AA45: =IF(График!Z50>0,График!Z50,"") -> ТО-5 | AB45: =IF(График!AA50>0,График!AA50,"") -> ТО-5 | AC45: =IF(График!AB50>0,График!AB50,"") -> ТО-5 | AD45: =IF(График!AC50>0,График!AC50,"") -> ТО-5 | AE45: =IF(График!AD50>0,График!AD50,"") -> ТО-5 | AF45: =IF(График!AE50>0,График!AE50,"") -> ТО-5 | AG45: =IF(График!AF50>0,График!AF50,"") -> ТО-5 | AH45: =IF(График!AG50>0,График!AG50,"") -> ТО-0 | AI45: =IF(График!AH50>0,График!AH50,"") -> ТО-0
B46: 7.3 | C46: Шкаф универсальный (ВРУ-21Л-80-308К УХЛ4;ВРУ-21Л-200-200К УХЛ4;ВРУ-21Л-32-301К УХЛ4;УКМ58-0,4-50-10УЗ;УКМ58-0,4-30-10УЗ; ПМ12-063120У2;ПМ12-040120У2) | E46: =IF(График!D51>0,График!D51,"") -> ТО-0 | F46: =IF(График!E51>0,График!E51,"") -> ТО-0 | G46: =IF(График!F51>0,График!F51,"") -> ТО-0 | H46: =IF(График!G51>0,График!G51,"") -> ТО-0 | I46: =IF(График!H51>0,График!H51,"") -> ТО-0 | J46: =IF(График!I51>0,График!I51,"") -> ТО-0 | K46: =IF(График!J51>0,График!J51,"") -> ТО-0 | L46: =IF(График!K51>0,График!K51,"") -> ТО-0 | M46: =IF(График!L51>0,График!L51,"") -> ТО-0 | N46: =IF(График!M51>0,График!M51,"") -> ТО-0 | O46: =IF(График!N51>0,График!N51,"") -> ТО-0 | P46: =IF(График!O51>0,График!O51,"") -> ТО-0 | Q46: =IF(График!P51>0,График!P51,"") -> ТО-0 | R46: =IF(График!Q51>0,График!Q51,"") -> ТО-0 | S46: =IF(График!R51>0,График!R51,"") -> ТО-0 | T46: =IF(График!S51>0,График!S51,"") -> ТО-3 | U46: =IF(График!T51>0,График!T51,"") -> ТО-3 | V46: =IF(График!U51>0,График!U51,"") -> ТО-3 | W46: =IF(График!V51>0,График!V51,"") -> ТО-3 | X46: =IF(График!W51>0,График!W51,"") -> ТО-3 | Y46: =IF(График!X51>0,График!X51,"") -> ТО-3 | Z46: =IF(График!Y51>0,График!Y51,"") -> ТО-3 | AA46: =IF(График!Z51>0,График!Z51,"") -> ТО-5 | AB46: =IF(График!AA51>0,График!AA51,"") -> ТО-5 | AC46: =IF(График!AB51>0,График!AB51,"") -> ТО-5 | AD46: =IF(График!AC51>0,График!AC51,"") -> ТО-5 | AE46: =IF(График!AD51>0,График!AD51,"") -> ТО-5 | AF46: =IF(График!AE51>0,График!AE51,"") -> ТО-5 | AG46: =IF(График!AF51>0,График!AF51,"") -> ТО-5 | AH46: =IF(График!AG51>0,График!AG51,"") -> ТО-0 | AI46: =IF(График!AH51>0,График!AH51,"") -> ТО-0
B47: 7.4 | C47: Коробки установочные EAE | E47: =IF(График!D52>0,График!D52,"") -> ТО-0 | F47: =IF(График!E52>0,График!E52,"") -> ТО-0 | G47: =IF(График!F52>0,График!F52,"") -> ТО-0 | H47: =IF(График!G52>0,График!G52,"") -> ТО-0 | I47: =IF(График!H52>0,График!H52,"") -> ТО-0 | J47: =IF(График!I52>0,График!I52,"") -> ТО-0 | K47: =IF(График!J52>0,График!J52,"") -> ТО-0 | L47: =IF(График!K52>0,График!K52,"") -> ТО-0 | M47: =IF(График!L52>0,График!L52,"") -> ТО-0 | N47: =IF(График!M52>0,График!M52,"") -> ТО-0 | O47: =IF(График!N52>0,График!N52,"") -> ТО-0 | P47: =IF(График!O52>0,График!O52,"") -> ТО-0 | Q47: =IF(График!P52>0,График!P52,"") -> ТО-0 | R47: =IF(График!Q52>0,График!Q52,"") -> ТО-0 | S47: =IF(График!R52>0,График!R52,"") -> ТО-0 | T47: =IF(График!S52>0,График!S52,"") -> ТО-0 | U47: =IF(График!T52>0,График!T52,"") -> ТО-0 | V47: =IF(График!U52>0,График!U52,"") -> ТО-0 | W47: =IF(График!V52>0,График!V52,"") -> ТО-0 | X47: =IF(График!W52>0,График!W52,"") -> ТО-0 | Y47: =IF(График!X52>0,График!X52,"") -> ТО-0 | Z47: =IF(График!Y52>0,График!Y52,"") -> ТО-0 | AA47: =IF(График!Z52>0,График!Z52,"") -> ТО-3 | AB47: =IF(График!AA52>0,График!AA52,"") -> ТО-3 | AC47: =IF(График!AB52>0,График!AB52,"") -> ТО-3 | AD47: =IF(График!AC52>0,График!AC52,"") -> ТО-3 | AE47: =IF(График!AD52>0,График!AD52,"") -> ТО-3 | AF47: =IF(График!AE52>0,График!AE52,"") -> ТО-3 | AG47: =IF(График!AF52>0,График!AF52,"") -> ТО-3 | AH47: =IF(График!AG52>0,График!AG52,"") -> ТО-0 | AI47: =IF(График!AH52>0,График!AH52,"") -> ТО-0
B48: 7.5 | C48: Ящик с трансформатором ABB | E48: =IF(График!D53>0,График!D53,"") -> ТО-0 | F48: =IF(График!E53>0,График!E53,"") -> ТО-0 | G48: =IF(График!F53>0,График!F53,"") -> ТО-0 | H48: =IF(График!G53>0,График!G53,"") -> ТО-0 | I48: =IF(График!H53>0,График!H53,"") -> ТО-0 | J48: =IF(График!I53>0,График!I53,"") -> ТО-0 | K48: =IF(График!J53>0,График!J53,"") -> ТО-0 | L48: =IF(График!K53>0,График!K53,"") -> ТО-0 | M48: =IF(График!L53>0,График!L53,"") -> ТО-0 | N48: =IF(График!M53>0,График!M53,"") -> ТО-0 | O48: =IF(График!N53>0,График!N53,"") -> ТО-0 | P48: =IF(График!O53>0,График!O53,"") -> ТО-0 | Q48: =IF(График!P53>0,График!P53,"") -> ТО-0 | R48: =IF(График!Q53>0,График!Q53,"") -> ТО-0 | S48: =IF(График!R53>0,График!R53,"") -> ТО-0 | T48: =IF(График!S53>0,График!S53,"") -> ТО-3 | U48: =IF(График!T53>0,График!T53,"") -> ТО-3 | V48: =IF(График!U53>0,График!U53,"") -> ТО-3 | W48: =IF(График!V53>0,График!V53,"") -> ТО-3 | X48: =IF(График!W53>0,График!W53,"") -> ТО-3 | Y48: =IF(График!X53>0,График!X53,"") -> ТО-3 | Z48: =IF(График!Y53>0,График!Y53,"") -> ТО-3 | AA48: =IF(График!Z53>0,График!Z53,"") -> ТО-0 | AB48: =IF(График!AA53>0,График!AA53,"") -> ТО-0 | AC48: =IF(График!AB53>0,График!AB53,"") -> ТО-0 | AD48: =IF(График!AC53>0,График!AC53,"") -> ТО-0 | AE48: =IF(График!AD53>0,График!AD53,"") -> ТО-0 | AF48: =IF(График!AE53>0,График!AE53,"") -> ТО-0 | AG48: =IF(График!AF53>0,График!AF53,"") -> ТО-0 | AH48: =IF(График!AG53>0,График!AG53,"") -> ТО-0 | AI48: =IF(График!AH53>0,График!AH53,"") -> ТО-0
B49: 7.6 | C49: Коробка разветвительная JB-701, 720, 730 | E49: =IF(График!D54>0,График!D54,"") -> ТО-0 | F49: =IF(График!E54>0,График!E54,"") -> ТО-0 | G49: =IF(График!F54>0,График!F54,"") -> ТО-0 | H49: =IF(График!G54>0,График!G54,"") -> ТО-0 | I49: =IF(График!H54>0,График!H54,"") -> ТО-0 | J49: =IF(График!I54>0,График!I54,"") -> ТО-0 | K49: =IF(График!J54>0,График!J54,"") -> ТО-0 | L49: =IF(График!K54>0,График!K54,"") -> ТО-0 | M49: =IF(График!L54>0,График!L54,"") -> ТО-0 | N49: =IF(График!M54>0,График!M54,"") -> ТО-0 | O49: =IF(График!N54>0,График!N54,"") -> ТО-0 | P49: =IF(График!O54>0,График!O54,"") -> ТО-3 | Q49: =IF(График!P54>0,График!P54,"") -> ТО-3 | R49: =IF(График!Q54>0,График!Q54,"") -> ТО-3 | S49: =IF(График!R54>0,График!R54,"") -> ТО-3 | T49: =IF(График!S54>0,График!S54,"") -> ТО-0 | U49: =IF(График!T54>0,График!T54,"") -> ТО-0 | V49: =IF(График!U54>0,График!U54,"") -> ТО-0 | W49: =IF(График!V54>0,График!V54,"") -> ТО-0 | X49: =IF(График!W54>0,График!W54,"") -> ТО-0 | Y49: =IF(График!X54>0,График!X54,"") -> ТО-0 | Z49: =IF(График!Y54>0,График!Y54,"") -> ТО-0 | AA49: =IF(График!Z54>0,График!Z54,"") -> ТО-0 | AB49: =IF(График!AA54>0,График!AA54,"") -> ТО-0 | AC49: =IF(График!AB54>0,График!AB54,"") -> ТО-0 | AD49: =IF(График!AC54>0,График!AC54,"") -> ТО-0 | AE49: =IF(График!AD54>0,График!AD54,"") -> ТО-0 | AF49: =IF(График!AE54>0,График!AE54,"") -> ТО-0 | AG49: =IF(График!AF54>0,График!AF54,"") -> ТО-0 | AH49: =IF(График!AG54>0,График!AG54,"") -> ТО-0 | AI49: =IF(График!AH54>0,График!AH54,"") -> ТО-0
B50: 7.7 | C50: Кабельные линии связи, проложенные на лотках | E50: =IF(График!D55>0,График!D55,"") -> ТО-0 | F50: =IF(График!E55>0,График!E55,"") -> ТО-0 | G50: =IF(График!F55>0,График!F55,"") -> ТО-0 | H50: =IF(График!G55>0,График!G55,"") -> ТО-0 | I50: =IF(График!H55>0,График!H55,"") -> ТО-0 | J50: =IF(График!I55>0,График!I55,"") -> ТО-0 | K50: =IF(График!J55>0,График!J55,"") -> ТО-0 | L50: =IF(График!K55>0,График!K55,"") -> ТО-0 | M50: =IF(График!L55>0,График!L55,"") -> ТО-0 | N50: =IF(График!M55>0,График!M55,"") -> ТО-0 | O50: =IF(График!N55>0,График!N55,"") -> ТО-0 | P50: =IF(График!O55>0,График!O55,"") -> ТО-0 | Q50: =IF(График!P55>0,График!P55,"") -> ТО-0 | R50: =IF(График!Q55>0,График!Q55,"") -> ТО-0 | S50: =IF(График!R55>0,График!R55,"") -> ТО-0 | T50: =IF(График!S55>0,График!S55,"") -> ТО-0 | U50: =IF(График!T55>0,График!T55,"") -> ТО-0 | V50: =IF(График!U55>0,График!U55,"") -> ТО-0 | W50: =IF(График!V55>0,График!V55,"") -> ТО-0 | X50: =IF(График!W55>0,График!W55,"") -> ТО-0 | Y50: =IF(График!X55>0,График!X55,"") -> ТО-0 | Z50: =IF(График!Y55>0,График!Y55,"") -> ТО-0 | AA50: =IF(График!Z55>0,График!Z55,"") -> ТО-0 | AB50: =IF(График!AA55>0,График!AA55,"") -> ТО-0 | AC50: =IF(График!AB55>0,График!AB55,"") -> ТО-0 | AD50: =IF(График!AC55>0,График!AC55,"") -> ТО-0 | AE50: =IF(График!AD55>0,График!AD55,"") -> ТО-0 | AF50: =IF(График!AE55>0,График!AE55,"") -> ТО-0 | AG50: =IF(График!AF55>0,График!AF55,"") -> ТО-0 | AH50: =IF(График!AG55>0,График!AG55,"") -> ТО-0 | AI50: =IF(График!AH55>0,График!AH55,"") -> ТО-0
B51: 7.8 | C51: Кабельные линии связи, проложенные в коробах с открываемыми крышками | E51: =IF(График!D56>0,График!D56,"") -> ТО-0 | F51: =IF(График!E56>0,График!E56,"") -> ТО-0 | G51: =IF(График!F56>0,График!F56,"") -> ТО-0 | H51: =IF(График!G56>0,График!G56,"") -> ТО-0 | I51: =IF(График!H56>0,График!H56,"") -> ТО-0 | J51: =IF(График!I56>0,График!I56,"") -> ТО-0 | K51: =IF(График!J56>0,График!J56,"") -> ТО-0 | L51: =IF(График!K56>0,График!K56,"") -> ТО-0 | M51: =IF(График!L56>0,График!L56,"") -> ТО-0 | N51: =IF(График!M56>0,График!M56,"") -> ТО-0 | O51: =IF(График!N56>0,График!N56,"") -> ТО-0 | P51: =IF(График!O56>0,График!O56,"") -> ТО-0 | Q51: =IF(График!P56>0,График!P56,"") -> ТО-0 | R51: =IF(График!Q56>0,График!Q56,"") -> ТО-0 | S51: =IF(График!R56>0,График!R56,"") -> ТО-0 | T51: =IF(График!S56>0,График!S56,"") -> ТО-0 | U51: =IF(График!T56>0,График!T56,"") -> ТО-0 | V51: =IF(График!U56>0,График!U56,"") -> ТО-0 | W51: =IF(График!V56>0,График!V56,"") -> ТО-0 | X51: =IF(График!W56>0,График!W56,"") -> ТО-0 | Y51: =IF(График!X56>0,График!X56,"") -> ТО-0 | Z51: =IF(График!Y56>0,График!Y56,"") -> ТО-0 | AA51: =IF(График!Z56>0,График!Z56,"") -> ТО-0 | AB51: =IF(График!AA56>0,График!AA56,"") -> ТО-0 | AC51: =IF(График!AB56>0,График!AB56,"") -> ТО-0 | AD51: =IF(График!AC56>0,График!AC56,"") -> ТО-0 | AE51: =IF(График!AD56>0,График!AD56,"") -> ТО-0 | AF51: =IF(График!AE56>0,График!AE56,"") -> ТО-0 | AG51: =IF(График!AF56>0,График!AF56,"") -> ТО-0 | AH51: =IF(График!AG56>0,График!AG56,"") -> ТО-0 | AI51: =IF(График!AH56>0,График!AH56,"") -> ТО-0
B52: 7.9 | C52: Выключатели Shneider Electric | E52: =IF(График!D57>0,График!D57,"") -> ТО-0 | F52: =IF(График!E57>0,График!E57,"") -> ТО-3 | G52: =IF(График!F57>0,График!F57,"") -> ТО-3 | H52: =IF(График!G57>0,График!G57,"") -> ТО-3 | I52: =IF(График!H57>0,График!H57,"") -> ТО-3 | J52: =IF(График!I57>0,График!I57,"") -> ТО-3 | K52: =IF(График!J57>0,График!J57,"") -> ТО-3 | L52: =IF(График!K57>0,График!K57,"") -> ТО-3 | M52: =IF(График!L57>0,График!L57,"") -> ТО-0 | N52: =IF(График!M57>0,График!M57,"") -> ТО-0 | O52: =IF(График!N57>0,График!N57,"") -> ТО-0 | P52: =IF(График!O57>0,График!O57,"") -> ТО-0 | Q52: =IF(График!P57>0,График!P57,"") -> ТО-0 | R52: =IF(График!Q57>0,График!Q57,"") -> ТО-0 | S52: =IF(График!R57>0,График!R57,"") -> ТО-0 | T52: =IF(График!S57>0,График!S57,"") -> ТО-0 | U52: =IF(График!T57>0,График!T57,"") -> ТО-0 | V52: =IF(График!U57>0,График!U57,"") -> ТО-0 | W52: =IF(График!V57>0,График!V57,"") -> ТО-0 | X52: =IF(График!W57>0,График!W57,"") -> ТО-0 | Y52: =IF(График!X57>0,График!X57,"") -> ТО-0 | Z52: =IF(График!Y57>0,График!Y57,"") -> ТО-0 | AA52: =IF(График!Z57>0,График!Z57,"") -> ТО-0 | AB52: =IF(График!AA57>0,График!AA57,"") -> ТО-0 | AC52: =IF(График!AB57>0,График!AB57,"") -> ТО-0 | AD52: =IF(График!AC57>0,График!AC57,"") -> ТО-0 | AE52: =IF(График!AD57>0,График!AD57,"") -> ТО-0 | AF52: =IF(График!AE57>0,График!AE57,"") -> ТО-0 | AG52: =IF(График!AF57>0,График!AF57,"") -> ТО-0 | AH52: =IF(График!AG57>0,График!AG57,"") -> ТО-0 | AI52: =IF(График!AH57>0,График!AH57,"") -> ТО-0
B53: 7.10 | C53: Розетки Shneider Electric | E53: =IF(График!D58>0,График!D58,"") -> ТО-0 | F53: =IF(График!E58>0,График!E58,"") -> ТО-3 | G53: =IF(График!F58>0,График!F58,"") -> ТО-3 | H53: =IF(График!G58>0,График!G58,"") -> ТО-3 | I53: =IF(График!H58>0,График!H58,"") -> ТО-3 | J53: =IF(График!I58>0,График!I58,"") -> ТО-3 | K53: =IF(График!J58>0,График!J58,"") -> ТО-3 | L53: =IF(График!K58>0,График!K58,"") -> ТО-3 | M53: =IF(График!L58>0,График!L58,"") -> ТО-0 | N53: =IF(График!M58>0,График!M58,"") -> ТО-0 | O53: =IF(График!N58>0,График!N58,"") -> ТО-0 | P53: =IF(График!O58>0,График!O58,"") -> ТО-0 | Q53: =IF(График!P58>0,График!P58,"") -> ТО-0 | R53: =IF(График!Q58>0,График!Q58,"") -> ТО-0 | S53: =IF(График!R58>0,График!R58,"") -> ТО-0 | T53: =IF(График!S58>0,График!S58,"") -> ТО-0 | U53: =IF(График!T58>0,График!T58,"") -> ТО-0 | V53: =IF(График!U58>0,График!U58,"") -> ТО-0 | W53: =IF(График!V58>0,График!V58,"") -> ТО-0 | X53: =IF(График!W58>0,График!W58,"") -> ТО-0 | Y53: =IF(График!X58>0,График!X58,"") -> ТО-0 | Z53: =IF(График!Y58>0,График!Y58,"") -> ТО-0 | AA53: =IF(График!Z58>0,График!Z58,"") -> ТО-0 | AB53: =IF(График!AA58>0,График!AA58,"") -> ТО-0 | AC53: =IF(График!AB58>0,График!AB58,"") -> ТО-0 | AD53: =IF(График!AC58>0,График!AC58,"") -> ТО-0 | AE53: =IF(График!AD58>0,График!AD58,"") -> ТО-0 | AF53: =IF(График!AE58>0,График!AE58,"") -> ТО-0 | AG53: =IF(График!AF58>0,График!AF58,"") -> ТО-0 | AH53: =IF(График!AG58>0,График!AG58,"") -> ТО-0 | AI53: =IF(График!AH58>0,График!AH58,"") -> ТО-0
B54: 7.11 | C54: Прожектор с натриевыми лампами IP66 Т5, IP65 | E54: =IF(График!D59>0,График!D59,"") -> ТО-0 | F54: =IF(График!E59>0,График!E59,"") -> ТО-0 | G54: =IF(График!F59>0,График!F59,"") -> ТО-0 | H54: =IF(График!G59>0,График!G59,"") -> ТО-0 | I54: =IF(График!H59>0,График!H59,"") -> ТО-0 | J54: =IF(График!I59>0,График!I59,"") -> ТО-0 | K54: =IF(График!J59>0,График!J59,"") -> ТО-0 | L54: =IF(График!K59>0,График!K59,"") -> ТО-0 | M54: =IF(График!L59>0,График!L59,"") -> ТО-3 | N54: =IF(График!M59>0,График!M59,"") -> ТО-3 | O54: =IF(График!N59>0,График!N59,"") -> ТО-3 | P54: =IF(График!O59>0,График!O59,"") -> ТО-3 | Q54: =IF(График!P59>0,График!P59,"") -> ТО-3 | R54: =IF(График!Q59>0,График!Q59,"") -> ТО-3 | S54: =IF(График!R59>0,График!R59,"") -> ТО-3 | T54: =IF(График!S59>0,График!S59,"") -> ТО-0 | U54: =IF(График!T59>0,График!T59,"") -> ТО-0 | V54: =IF(График!U59>0,График!U59,"") -> ТО-0 | W54: =IF(График!V59>0,График!V59,"") -> ТО-0 | X54: =IF(График!W59>0,График!W59,"") -> ТО-0 | Y54: =IF(График!X59>0,График!X59,"") -> ТО-0 | Z54: =IF(График!Y59>0,График!Y59,"") -> ТО-0 | AA54: =IF(График!Z59>0,График!Z59,"") -> ТО-0 | AB54: =IF(График!AA59>0,График!AA59,"") -> ТО-0 | AC54: =IF(График!AB59>0,График!AB59,"") -> ТО-0 | AD54: =IF(График!AC59>0,График!AC59,"") -> ТО-0 | AE54: =IF(График!AD59>0,График!AD59,"") -> ТО-0 | AF54: =IF(График!AE59>0,График!AE59,"") -> ТО-0 | AG54: =IF(График!AF59>0,График!AF59,"") -> ТО-0 | AH54: =IF(График!AG59>0,График!AG59,"") -> ТО-0 | AI54: =IF(График!AH59>0,График!AH59,"") -> ТО-0
B55: 7.12 | C55: Лампа люминесцентная Т5, IP54 | E55: =IF(График!D60>0,График!D60,"") -> ТО-0 | F55: =IF(График!E60>0,График!E60,"") -> ТО-0 | G55: =IF(График!F60>0,График!F60,"") -> ТО-0 | H55: =IF(График!G60>0,График!G60,"") -> ТО-0 | I55: =IF(График!H60>0,График!H60,"") -> ТО-0 | J55: =IF(График!I60>0,График!I60,"") -> ТО-0 | K55: =IF(График!J60>0,График!J60,"") -> ТО-0 | L55: =IF(График!K60>0,График!K60,"") -> ТО-0 | M55: =IF(График!L60>0,График!L60,"") -> ТО-0 | N55: =IF(График!M60>0,График!M60,"") -> ТО-0 | O55: =IF(График!N60>0,График!N60,"") -> ТО-0 | P55: =IF(График!O60>0,График!O60,"") -> ТО-0 | Q55: =IF(График!P60>0,График!P60,"") -> ТО-0 | R55: =IF(График!Q60>0,График!Q60,"") -> ТО-0 | S55: =IF(График!R60>0,График!R60,"") -> ТО-0 | T55: =IF(График!S60>0,График!S60,"") -> ТО-0 | U55: =IF(График!T60>0,График!T60,"") -> ТО-0 | V55: =IF(График!U60>0,График!U60,"") -> ТО-0 | W55: =IF(График!V60>0,График!V60,"") -> ТО-0 | X55: =IF(График!W60>0,График!W60,"") -> ТО-0 | Y55: =IF(График!X60>0,График!X60,"") -> ТО-0 | Z55: =IF(График!Y60>0,График!Y60,"") -> ТО-0 | AA55: =IF(График!Z60>0,График!Z60,"") -> ТО-0 | AB55: =IF(График!AA60>0,График!AA60,"") -> ТО-0 | AC55: =IF(График!AB60>0,График!AB60,"") -> ТО-0 | AD55: =IF(График!AC60>0,График!AC60,"") -> ТО-0 | AE55: =IF(График!AD60>0,График!AD60,"") -> ТО-0 | AF55: =IF(График!AE60>0,График!AE60,"") -> ТО-0 | AG55: =IF(График!AF60>0,График!AF60,"") -> ТО-0 | AH55: =IF(График!AG60>0,График!AG60,"") -> ТО-0 | AI55: =IF(График!AH60>0,График!AH60,"") -> ТО-0
B56: 7.13 | C56: Светильники с ЭПРА, для ЛЛ Т5, IP54 | E56: =IF(График!D61>0,График!D61,"") -> ТО-0 | F56: =IF(График!E61>0,График!E61,"") -> ТО-0 | G56: =IF(График!F61>0,График!F61,"") -> ТО-0 | H56: =IF(График!G61>0,График!G61,"") -> ТО-0 | I56: =IF(График!H61>0,График!H61,"") -> ТО-0 | J56: =IF(График!I61>0,График!I61,"") -> ТО-0 | K56: =IF(График!J61>0,График!J61,"") -> ТО-0 | L56: =IF(График!K61>0,График!K61,"") -> ТО-0 | M56: =IF(График!L61>0,График!L61,"") -> ТО-0 | N56: =IF(График!M61>0,График!M61,"") -> ТО-0 | O56: =IF(График!N61>0,График!N61,"") -> ТО-0 | P56: =IF(График!O61>0,График!O61,"") -> ТО-0 | Q56: =IF(График!P61>0,График!P61,"") -> ТО-0 | R56: =IF(График!Q61>0,График!Q61,"") -> ТО-0 | S56: =IF(График!R61>0,График!R61,"") -> ТО-0 | T56: =IF(График!S61>0,График!S61,"") -> ТО-3 | U56: =IF(График!T61>0,График!T61,"") -> ТО-3 | V56: =IF(График!U61>0,График!U61,"") -> ТО-3 | W56: =IF(График!V61>0,График!V61,"") -> ТО-3 | X56: =IF(График!W61>0,График!W61,"") -> ТО-3 | Y56: =IF(График!X61>0,График!X61,"") -> ТО-3 | Z56: =IF(График!Y61>0,График!Y61,"") -> ТО-3 | AA56: =IF(График!Z61>0,График!Z61,"") -> ТО-3 | AB56: =IF(График!AA61>0,График!AA61,"") -> ТО-3 | AC56: =IF(График!AB61>0,График!AB61,"") -> ТО-3 | AD56: =IF(График!AC61>0,График!AC61,"") -> ТО-3 | AE56: =IF(График!AD61>0,График!AD61,"") -> ТО-3 | AF56: =IF(График!AE61>0,График!AE61,"") -> ТО-3 | AG56: =IF(График!AF61>0,График!AF61,"") -> ТО-3 | AH56: =IF(График!AG61>0,График!AG61,"") -> ТО-0 | AI56: =IF(График!AH61>0,График!AH61,"") -> ТО-0
B57: 7.14 | C57: Счетчик потребления электроэнергии Меркурий 230AR-03С | E57: =IF(График!D62>0,График!D62,"") ->  | F57: =IF(График!E62>0,График!E62,"") ->  | G57: =IF(График!F62>0,График!F62,"") ->  | H57: =IF(График!G62>0,График!G62,"") ->  | I57: =IF(График!H62>0,График!H62,"") ->  | J57: =IF(График!I62>0,График!I62,"") ->  | K57: =IF(График!J62>0,График!J62,"") ->  | L57: =IF(График!K62>0,График!K62,"") ->  | M57: =IF(График!L62>0,График!L62,"") ->  | N57: =IF(График!M62>0,График!M62,"") ->  | O57: =IF(График!N62>0,График!N62,"") ->  | P57: =IF(График!O62>0,График!O62,"") ->  | Q57: =IF(График!P62>0,График!P62,"") ->  | R57: =IF(График!Q62>0,График!Q62,"") ->  | S57: =IF(График!R62>0,График!R62,"") ->  | T57: =IF(График!S62>0,График!S62,"") ->  | U57: =IF(График!T62>0,График!T62,"") ->  | V57: =IF(График!U62>0,График!U62,"") ->  | W57: =IF(График!V62>0,График!V62,"") ->  | X57: =IF(График!W62>0,График!W62,"") ->  | Y57: =IF(График!X62>0,График!X62,"") ->  | Z57: =IF(График!Y62>0,График!Y62,"") ->  | AA57: =IF(График!Z62>0,График!Z62,"") ->  | AB57: =IF(График!AA62>0,График!AA62,"") ->  | AC57: =IF(График!AB62>0,График!AB62,"") ->  | AD57: =IF(График!AC62>0,График!AC62,"") ->  | AE57: =IF(График!AD62>0,График!AD62,"") ->  | AF57: =IF(График!AE62>0,График!AE62,"") ->  | AG57: =IF(График!AF62>0,График!AF62,"") ->  | AH57: =IF(График!AG62>0,График!AG62,"") ->  | AI57: =IF(График!AH62>0,График!AH62,"") -> 
B58: 8 | C58: Системы наружного освещения | E58: =IF(OR(E59<>"",E60<>"",E61<>"",E62<>"",E63<>""),"*","") ->  | F58: =IF(OR(F59<>"",F60<>"",F61<>"",F62<>"",F63<>""),"*","") ->  | L58: * | M58: * | S58: * | T58: * | U58: * | V58: *
B59: 8.1 | C59: Фасадная вывеска ЗАО «Информсвязь Холдинг» | E59: =IF(График!D64>0,График!D64,"") ->  | F59: =IF(График!E64>0,График!E64,"") ->  | G59: =IF(График!F64>0,График!F64,"") ->  | H59: =IF(График!G64>0,График!G64,"") ->  | I59: =IF(График!H64>0,График!H64,"") ->  | J59: =IF(График!I64>0,График!I64,"") ->  | K59: =IF(График!J64>0,График!J64,"") ->  | L59: =IF(График!K64>0,График!K64,"") -> ТО-3 | M59: =IF(График!L64>0,График!L64,"") -> ТО-3 | N59: =IF(График!M64>0,График!M64,"") ->  | O59: =IF(График!N64>0,График!N64,"") ->  | P59: =IF(График!O64>0,График!O64,"") ->  | Q59: =IF(График!P64>0,График!P64,"") ->  | R59: =IF(График!Q64>0,График!Q64,"") ->  | S59: =IF(График!R64>0,График!R64,"") ->  | T59: =IF(График!S64>0,График!S64,"") ->  | U59: =IF(График!T64>0,График!T64,"") ->  | V59: =IF(График!U64>0,График!U64,"") ->  | W59: =IF(График!V64>0,График!V64,"") ->  | X59: =IF(График!W64>0,График!W64,"") ->  | Y59: =IF(График!X64>0,График!X64,"") ->  | Z59: =IF(График!Y64>0,График!Y64,"") ->  | AA59: =IF(График!Z64>0,График!Z64,"") ->  | AB59: =IF(График!AA64>0,График!AA64,"") ->  | AC59: =IF(График!AB64>0,График!AB64,"") ->  | AD59: =IF(График!AC64>0,График!AC64,"") ->  | AE59: =IF(График!AD64>0,График!AD64,"") ->  | AF59: =IF(График!AE64>0,График!AE64,"") ->  | AG59: =IF(График!AF64>0,График!AF64,"") ->  | AH59: =IF(График!AG64>0,График!AG64,"") ->  | AI59: =IF(График!AH64>0,График!AH64,"") -> 
B60: 8.2 | C60: Светильник наружнего освещения на опоре c лампой ДРЛ IP65 (светильник Alumet Control/I) | E60: =IF(График!D65>0,График!D65,"") ->  | F60: =IF(График!E65>0,График!E65,"") ->  | G60: =IF(График!F65>0,График!F65,"") ->  | H60: =IF(График!G65>0,График!G65,"") ->  | I60: =IF(График!H65>0,График!H65,"") ->  | J60: =IF(График!I65>0,График!I65,"") ->  | K60: =IF(График!J65>0,График!J65,"") ->  | L60: =IF(График!K65>0,График!K65,"") ->  | M60: =IF(График!L65>0,График!L65,"") ->  | N60: =IF(График!M65>0,График!M65,"") ->  | O60: =IF(График!N65>0,График!N65,"") ->  | P60: =IF(График!O65>0,График!O65,"") ->  | Q60: =IF(График!P65>0,График!P65,"") ->  | R60: =IF(График!Q65>0,График!Q65,"") ->  | S60: =IF(График!S65>0,График!S65,"") -> ТО-3 | T60: =IF(График!T65>0,График!T65,"") -> ТО-3 | U60: =IF(График!U65>0,График!U65,"") -> ТО-3 | V60: =IF(График!V65>0,График!V65,"") -> ТО-3 | W60: =IF(График!W65>0,График!W65,"") ->  | X60: =IF(График!X65>0,График!X65,"") ->  | Y60: =IF(График!Y65>0,График!Y65,"") ->  | Z60: =IF(График!Z65>0,График!Z65,"") ->  | AA60: =IF(График!AA65>0,График!AA65,"") ->  | AB60: =IF(График!AB65>0,График!AB65,"") ->  | AC60: =IF(График!AC65>0,График!AC65,"") ->  | AD60: =IF(График!AD65>0,График!AD65,"") ->  | AE60: =IF(График!AE65>0,График!AE65,"") ->  | AF60: =IF(График!AF65>0,График!AF65,"") ->  | AG60: =IF(График!AG65>0,График!AG65,"") ->  | AH60: =IF(График!AH65>0,График!AH65,"") ->  | AI60: =IF(График!AI65>0,График!AI65,"") -> 
B61: 8.3 | C61: Системы молниезащиты | E61: =IF(График!D66>0,График!D66,"") ->  | F61: =IF(График!E66>0,График!E66,"") ->  | G61: =IF(График!F66>0,График!F66,"") ->  | H61: =IF(График!G66>0,График!G66,"") ->  | I61: =IF(График!H66>0,График!H66,"") ->  | J61: =IF(График!I66>0,График!I66,"") ->  | K61: =IF(График!J66>0,График!J66,"") ->  | L61: =IF(График!K66>0,График!K66,"") ->  | M61: =IF(График!L66>0,График!L66,"") ->  | N61: =IF(График!M66>0,График!M66,"") ->  | O61: =IF(График!N66>0,График!N66,"") ->  | P61: =IF(График!O66>0,График!O66,"") ->  | Q61: =IF(График!P66>0,График!P66,"") ->  | R61: =IF(График!Q66>0,График!Q66,"") ->  | S61: =IF(График!R66>0,График!R66,"") ->  | T61: =IF(График!S66>0,График!S66,"") ->  | U61: =IF(График!T66>0,График!T66,"") ->  | V61: =IF(График!U66>0,График!U66,"") ->  | W61: =IF(График!V66>0,График!V66,"") ->  | X61: =IF(График!W66>0,График!W66,"") ->  | Y61: =IF(График!X66>0,График!X66,"") ->  | Z61: =IF(График!Y66>0,График!Y66,"") ->  | AA61: =IF(График!Z66>0,График!Z66,"") ->  | AB61: =IF(График!AA66>0,График!AA66,"") ->  | AC61: =IF(График!AB66>0,График!AB66,"") ->  | AD61: =IF(График!AC66>0,График!AC66,"") ->  | AE61: =IF(График!AD66>0,График!AD66,"") ->  | AF61: =IF(График!AE66>0,График!AE66,"") ->  | AG61: =IF(График!AF66>0,График!AF66,"") ->  | AH61: =IF(График!AG66>0,График!AG66,"") ->  | AI61: =IF(График!AH66>0,График!AH66,"") -> 
B62: 8.4 | C62: Системы технологического и рабочего заземления | E62: =IF(График!D67>0,График!D67,"") ->  | F62: =IF(График!E67>0,График!E67,"") ->  | G62: =IF(График!F67>0,График!F67,"") ->  | H62: =IF(График!G67>0,График!G67,"") ->  | I62: =IF(График!H67>0,График!H67,"") ->  | J62: =IF(График!I67>0,График!I67,"") ->  | K62: =IF(График!J67>0,График!J67,"") ->  | L62: =IF(График!K67>0,График!K67,"") ->  | M62: =IF(График!L67>0,График!L67,"") ->  | N62: =IF(График!M67>0,График!M67,"") ->  | O62: =IF(График!N67>0,График!N67,"") ->  | P62: =IF(График!O67>0,График!O67,"") ->  | Q62: =IF(График!P67>0,График!P67,"") ->  | R62: =IF(График!Q67>0,График!Q67,"") ->  | S62: =IF(График!R67>0,График!R67,"") ->  | T62: =IF(График!S67>0,График!S67,"") ->  | U62: =IF(График!T67>0,График!T67,"") ->  | V62: =IF(График!U67>0,График!U67,"") ->  | W62: =IF(График!V67>0,График!V67,"") ->  | X62: =IF(График!W67>0,График!W67,"") ->  | Y62: =IF(График!X67>0,График!X67,"") ->  | Z62: =IF(График!Y67>0,График!Y67,"") ->  | AA62: =IF(График!Z67>0,График!Z67,"") ->  | AB62: =IF(График!AA67>0,График!AA67,"") ->  | AC62: =IF(График!AB67>0,График!AB67,"") ->  | AD62: =IF(График!AC67>0,График!AC67,"") ->  | AE62: =IF(График!AD67>0,График!AD67,"") ->  | AF62: =IF(График!AE67>0,График!AE67,"") ->  | AG62: =IF(График!AF67>0,График!AF67,"") ->  | AH62: =IF(График!AG67>0,График!AG67,"") ->  | AI62: =IF(График!AH67>0,График!AH67,"") -> 
B63: 8.5 | C63: Системы уравнивания потенциалов | E63: =IF(График!D68>0,График!D68,"") ->  | F63: =IF(График!E68>0,График!E68,"") ->  | G63: =IF(График!F68>0,График!F68,"") ->  | H63: =IF(График!G68>0,График!G68,"") ->  | I63: =IF(График!H68>0,График!H68,"") ->  | J63: =IF(График!I68>0,График!I68,"") ->  | K63: =IF(График!J68>0,График!J68,"") ->  | L63: =IF(График!K68>0,График!K68,"") ->  | M63: =IF(График!L68>0,График!L68,"") ->  | N63: =IF(График!M68>0,График!M68,"") ->  | O63: =IF(График!N68>0,График!N68,"") ->  | P63: =IF(График!O68>0,График!O68,"") ->  | Q63: =IF(График!P68>0,График!P68,"") ->  | R63: =IF(График!Q68>0,График!Q68,"") ->  | S63: =IF(График!R68>0,График!R68,"") ->  | T63: =IF(График!S68>0,График!S68,"") ->  | U63: =IF(График!T68>0,График!T68,"") ->  | V63: =IF(График!U68>0,График!U68,"") ->  | W63: =IF(График!V68>0,График!V68,"") ->  | X63: =IF(График!W68>0,График!W68,"") ->  | Y63: =IF(График!X68>0,График!X68,"") ->  | Z63: =IF(График!Y68>0,График!Y68,"") ->  | AA63: =IF(График!Z68>0,График!Z68,"") ->  | AB63: =IF(График!AA68>0,График!AA68,"") ->  | AC63: =IF(График!AB68>0,График!AB68,"") ->  | AD63: =IF(График!AC68>0,График!AC68,"") ->  | AE63: =IF(График!AD68>0,График!AD68,"") ->  | AF63: =IF(График!AE68>0,График!AE68,"") ->  | AG63: =IF(График!AF68>0,График!AF68,"") ->  | AH63: =IF(График!AG68>0,График!AG68,"") ->  | AI63: =IF(График!AH68>0,График!AH68,"") -> 
B64: 9 | C64: Дизель-генераторные установки | E64: =IF(E65="","","*") ->  | F64: =IF(F65="","","*") ->  | K64: * | R64: * | Y64: * | AF64: * | AG64: *
B65: 9.1 | C65: FG Wilson P635P5 | E65: =IF(График!D70>0,График!D70,"") ->  | F65: =IF(График!E70>0,График!E70,"") ->  | G65: =IF(График!F70>0,График!F70,"") ->  | H65: =IF(График!G70>0,График!G70,"") ->  | I65: =IF(График!H70>0,График!H70,"") ->  | J65: =IF(График!I70>0,График!I70,"") ->  | K65: =IF(График!J70>0,График!J70,"") -> ТО-1 | L65: =IF(График!K70>0,График!K70,"") ->  | M65: =IF(График!L70>0,График!L70,"") ->  | N65: =IF(График!M70>0,График!M70,"") ->  | O65: =IF(График!N70>0,График!N70,"") ->  | P65: =IF(График!O70>0,График!O70,"") ->  | Q65: =IF(График!P70>0,График!P70,"") ->  | R65: =IF(График!Q70>0,График!Q70,"") -> ТО-1 | S65: =IF(График!R70>0,График!R70,"") ->  | T65: =IF(График!S70>0,График!S70,"") ->  | U65: =IF(График!T70>0,График!T70,"") ->  | V65: =IF(График!U70>0,График!U70,"") ->  | W65: =IF(График!V70>0,График!V70,"") ->  | X65: =IF(График!W70>0,График!W70,"") ->  | Y65: =IF(График!X70>0,График!X70,"") -> ТО-1 | Z65: =IF(График!Y70>0,График!Y70,"") ->  | AA65: =IF(График!Z70>0,График!Z70,"") ->  | AB65: =IF(График!AA70>0,График!AA70,"") ->  | AC65: =IF(График!AB70>0,График!AB70,"") ->  | AD65: =IF(График!AC70>0,График!AC70,"") ->  | AE65: =IF(График!AD70>0,График!AD70,"") ->  | AF65: =IF(График!AE70>0,График!AE70,"") -> ТО-1 | AG65: =IF(График!AF70>0,График!AF70,"") -> ТО-2 | AH65: =IF(График!AG70>0,График!AG70,"") ->  | AI65: =IF(График!AH70>0,График!AH70,"") -> 
B66: 10 | C66: Блоки бесперебойного питания | E66: =IF(E67="","","*") ->  | F66: =IF(F67="","","*") ->  | AH66: *
B67: 10.1 | C67: APC SymmetraPX 250/500кВт | E67: =IF(График!D72>0,График!D72,"") ->  | F67: =IF(График!E72>0,График!E72,"") ->  | G67: =IF(График!F72>0,График!F72,"") ->  | H67: =IF(График!G72>0,График!G72,"") ->  | I67: =IF(График!H72>0,График!H72,"") ->  | J67: =IF(График!I72>0,График!I72,"") ->  | K67: =IF(График!J72>0,График!J72,"") ->  | L67: =IF(График!K72>0,График!K72,"") ->  | M67: =IF(График!L72>0,График!L72,"") ->  | N67: =IF(График!M72>0,График!M72,"") ->  | O67: =IF(График!N72>0,График!N72,"") ->  | P67: =IF(График!O72>0,График!O72,"") ->  | Q67: =IF(График!P72>0,График!P72,"") ->  | R67: =IF(График!Q72>0,График!Q72,"") ->  | S67: =IF(График!R72>0,График!R72,"") ->  | T67: =IF(График!S72>0,График!S72,"") ->  | U67: =IF(График!T72>0,График!T72,"") ->  | V67: =IF(График!U72>0,График!U72,"") ->  | W67: =IF(График!V72>0,График!V72,"") ->  | X67: =IF(График!W72>0,График!W72,"") ->  | Y67: =IF(График!X72>0,График!X72,"") ->  | Z67: =IF(График!Y72>0,График!Y72,"") ->  | AA67: =IF(График!Z72>0,График!Z72,"") ->  | AB67: =IF(График!AA72>0,График!AA72,"") ->  | AC67: =IF(График!AB72>0,График!AB72,"") ->  | AD67: =IF(График!AC72>0,График!AC72,"") ->  | AE67: =IF(График!AD72>0,График!AD72,"") ->  | AF67: =IF(График!AE72>0,График!AE72,"") ->  | AG67: =IF(График!AF72>0,График!AF72,"") ->  | AH67: =IF(График!AG72>0,График!AG72,"") -> ТО-3 | AI67: =IF(График!AH72>0,График!AH72,"") -> 
B68: 11 | C68: Система холодного и горячего водоснабжения | E68: =IF(OR(E70<>"",E71<>"",E73<>"",E74<>"",E75<>"",E77<>"",E79<>""),"*","") -> * | F68: =IF(OR(F70<>"",F71<>"",F73<>"",F74<>"",F75<>"",F77<>"",F79<>""),"*","") -> * | G68: * | H68: * | I68: * | J68: * | K68: * | L68: * | M68: * | N68: * | O68: * | P68: * | Q68: * | R68: * | S68: * | T68: * | U68: * | V68: * | W68: * | X68: * | Y68: * | Z68: * | AA68: * | AB68: * | AC68: * | AD68: * | AE68: * | AF68: * | AG68: * | AH68: * | AI68: *
B69: 11.1 | C69: Запорная арматура | E69: =IF(OR(E70<>"",E71<>""),"*","") ->  | F69: =IF(OR(F70<>"",F71<>""),"*","") ->  | J69: * | K69: * | Q69: * | R69: * | S69: * | T69: * | X69: * | Y69: * | AE69: * | AF69: *
B70: 11.1.1 | C70: Кран шаровой шаровой Ду32,24 | E70: =IF(График!D75>0,График!D75,"") ->  | F70: =IF(График!E75>0,График!E75,"") ->  | G70: =IF(График!F75>0,График!F75,"") ->  | H70: =IF(График!G75>0,График!G75,"") ->  | I70: =IF(График!H75>0,График!H75,"") ->  | J70: =IF(График!I75>0,График!I75,"") -> ТО-1 | K70: =IF(График!J75>0,График!J75,"") -> ТО-1 | L70: =IF(График!K75>0,График!K75,"") ->  | M70: =IF(График!L75>0,График!L75,"") ->  | N70: =IF(График!M75>0,График!M75,"") ->  | O70: =IF(График!N75>0,График!N75,"") ->  | P70: =IF(График!O75>0,График!O75,"") ->  | Q70: =IF(График!P75>0,График!P75,"") -> ТО-1 | R70: =IF(График!Q75>0,График!Q75,"") -> ТО-1 | S70: =IF(График!R75>0,График!R75,"") -> ТО-2 | T70: =IF(График!S75>0,График!S75,"") -> ТО-2 | U70: =IF(График!T75>0,График!T75,"") ->  | V70: =IF(График!U75>0,График!U75,"") ->  | W70: =IF(График!V75>0,График!V75,"") ->  | X70: =IF(График!W75>0,График!W75,"") -> ТО-1 | Y70: =IF(График!X75>0,График!X75,"") -> ТО-1 | Z70: =IF(График!Y75>0,График!Y75,"") ->  | AA70: =IF(График!Z75>0,График!Z75,"") ->  | AB70: =IF(График!AA75>0,График!AA75,"") ->  | AC70: =IF(График!AB75>0,График!AB75,"") ->  | AD70: =IF(График!AC75>0,График!AC75,"") ->  | AE70: =IF(График!AD75>0,График!AD75,"") -> ТО-1 | AF70: =IF(График!AE75>0,График!AE75,"") -> ТО-1 | AG70: =IF(График!AF75>0,График!AF75,"") ->  | AH70: =IF(График!AG75>0,График!AG75,"") ->  | AI70: =IF(График!AH75>0,График!AH75,"") -> 
B71: 11.1.2 | C71: Задвижка AVK магистральная | E71: =IF(График!D76>0,График!D76,"") ->  | F71: =IF(График!E76>0,График!E76,"") ->  | G71: =IF(График!F76>0,График!F76,"") ->  | H71: =IF(График!G76>0,График!G76,"") ->  | I71: =IF(График!H76>0,График!H76,"") ->  | J71: =IF(График!I76>0,График!I76,"") ->  | K71: =IF(График!J76>0,График!J76,"") -> ТО-1 | L71: =IF(График!K76>0,График!K76,"") ->  | M71: =IF(График!L76>0,График!L76,"") ->  | N71: =IF(График!M76>0,График!M76,"") ->  | O71: =IF(График!N76>0,График!N76,"") ->  | P71: =IF(График!O76>0,График!O76,"") ->  | Q71: =IF(График!P76>0,График!P76,"") ->  | R71: =IF(График!Q76>0,График!Q76,"") -> ТО-1 | S71: =IF(График!R76>0,График!R76,"") -> ТО-2 | T71: =IF(График!S76>0,График!S76,"") ->  | U71: =IF(График!T76>0,График!T76,"") ->  | V71: =IF(График!U76>0,График!U76,"") ->  | W71: =IF(График!V76>0,График!V76,"") ->  | X71: =IF(График!W76>0,График!W76,"") ->  | Y71: =IF(График!X76>0,График!X76,"") -> ТО-1 | Z71: =IF(График!Y76>0,График!Y76,"") ->  | AA71: =IF(График!Z76>0,График!Z76,"") ->  | AB71: =IF(График!AA76>0,График!AA76,"") ->  | AC71: =IF(График!AB76>0,График!AB76,"") ->  | AD71: =IF(График!AC76>0,График!AC76,"") ->  | AE71: =IF(График!AD76>0,График!AD76,"") ->  | AF71: =IF(График!AE76>0,График!AE76,"") -> ТО-1 | AG71: =IF(График!AF76>0,График!AF76,"") ->  | AH71: =IF(График!AG76>0,График!AG76,"") ->  | AI71: =IF(График!AH76>0,График!AH76,"") -> 
B72: 11.2 | C72: Трубопроводы | E72: =IF(OR(E73<>"",E74<>"",E75<>""),"*","") -> * | F72: =IF(OR(F73<>"",F74<>"",F75<>""),"*","") -> * | G72: * | H72: * | I72: * | J72: * | K72: * | L72: * | M72: * | N72: * | O72: * | P72: * | Q72: * | R72: * | S72: * | T72: * | U72: * | V72: * | W72: * | X72: * | Y72: * | Z72: * | AA72: * | AB72: * | AC72: * | AD72: * | AE72: * | AF72: * | AG72: * | AH72: * | AI72: *
B73: 11.2.1 | C73: Трубы оцинкованные ЭСВ | E73: =IF(График!D78>0,График!D78,"") -> ТО-1 | F73: =IF(График!E78>0,График!E78,"") -> ТО-0 | G73: =IF(График!F78>0,График!F78,"") -> ТО-0 | H73: =IF(График!G78>0,График!G78,"") -> ТО-0 | I73: =IF(График!H78>0,График!H78,"") -> ТО-0 | J73: =IF(График!I78>0,График!I78,"") -> ТО-0 | K73: =IF(График!J78>0,График!J78,"") -> ТО-0 | L73: =IF(График!K78>0,График!K78,"") -> ТО-1 | M73: =IF(График!L78>0,График!L78,"") -> ТО-0 | N73: =IF(График!M78>0,График!M78,"") -> ТО-0 | O73: =IF(График!N78>0,График!N78,"") -> ТО-0 | P73: =IF(График!O78>0,График!O78,"") -> ТО-0 | Q73: =IF(График!P78>0,График!P78,"") -> ТО-0 | R73: =IF(График!Q78>0,График!Q78,"") -> ТО-0 | S73: =IF(График!R78>0,График!R78,"") -> ТО-1 | T73: =IF(График!S78>0,График!S78,"") -> ТО-0 | U73: =IF(График!T78>0,График!T78,"") -> ТО-0 | V73: =IF(График!U78>0,График!U78,"") -> ТО-0 | W73: =IF(График!V78>0,График!V78,"") -> ТО-0 | X73: =IF(График!W78>0,График!W78,"") -> ТО-0 | Y73: =IF(График!X78>0,График!X78,"") -> ТО-0 | Z73: =IF(График!Y78>0,График!Y78,"") -> ТО-1 | AA73: =IF(График!Z78>0,График!Z78,"") -> ТО-0 | AB73: =IF(График!AA78>0,График!AA78,"") -> ТО-0 | AC73: =IF(График!AB78>0,График!AB78,"") -> ТО-0 | AD73: =IF(График!AC78>0,График!AC78,"") -> ТО-0 | AE73: =IF(График!AD78>0,График!AD78,"") -> ТО-0 | AF73: =IF(График!AE78>0,График!AE78,"") -> ТО-0 | AG73: =IF(График!AF78>0,График!AF78,"") -> ТО-1 | AH73: =IF(График!AG78>0,График!AG78,"") -> ТО-0 | AI73: =IF(График!AH78>0,График!AH78,"") -> ТО-0
B74: 11.2.2 | C74: Труба полиэтиленовая ПНД | E74: =IF(График!D79>0,График!D79,"") -> ТО-1 | F74: =IF(График!E79>0,График!E79,"") -> ТО-0 | G74: =IF(График!F79>0,График!F79,"") -> ТО-0 | H74: =IF(График!G79>0,График!G79,"") -> ТО-0 | I74: =IF(График!H79>0,График!H79,"") -> ТО-0 | J74: =IF(График!I79>0,График!I79,"") -> ТО-0 | K74: =IF(График!J79>0,График!J79,"") -> ТО-0 | L74: =IF(График!K79>0,График!K79,"") -> ТО-1 | M74: =IF(График!L79>0,График!L79,"") -> ТО-0 | N74: =IF(График!M79>0,График!M79,"") -> ТО-0 | O74: =IF(График!N79>0,График!N79,"") -> ТО-0 | P74: =IF(График!O79>0,График!O79,"") -> ТО-0 | Q74: =IF(График!P79>0,График!P79,"") -> ТО-0 | R74: =IF(График!Q79>0,График!Q79,"") -> ТО-0 | S74: =IF(График!R79>0,График!R79,"") -> ТО-1 | T74: =IF(График!S79>0,График!S79,"") -> ТО-0 | U74: =IF(График!T79>0,График!T79,"") -> ТО-0 | V74: =IF(График!U79>0,График!U79,"") -> ТО-0 | W74: =IF(График!V79>0,График!V79,"") -> ТО-0 | X74: =IF(График!W79>0,График!W79,"") -> ТО-0 | Y74: =IF(График!X79>0,График!X79,"") -> ТО-0 | Z74: =IF(График!Y79>0,График!Y79,"") -> ТО-1 | AA74: =IF(График!Z79>0,График!Z79,"") -> ТО-0 | AB74: =IF(График!AA79>0,График!AA79,"") -> ТО-0 | AC74: =IF(График!AB79>0,График!AB79,"") -> ТО-0 | AD74: =IF(График!AC79>0,График!AC79,"") -> ТО-0 | AE74: =IF(График!AD79>0,График!AD79,"") -> ТО-0 | AF74: =IF(График!AE79>0,График!AE79,"") -> ТО-0 | AG74: =IF(График!AF79>0,График!AF79,"") -> ТО-1 | AH74: =IF(График!AG79>0,График!AG79,"") -> ТО-0 | AI74: =IF(График!AH79>0,График!AH79,"") -> ТО-0
B75: 11.2.3 | C75: Ревизии | E75: =IF(График!D80>0,График!D80,"") -> ТО-1 | F75: =IF(График!E80>0,График!E80,"") -> ТО-0 | G75: =IF(График!F80>0,График!F80,"") -> ТО-0 | H75: =IF(График!G80>0,График!G80,"") -> ТО-0 | I75: =IF(График!H80>0,График!H80,"") -> ТО-0 | J75: =IF(График!I80>0,График!I80,"") -> ТО-0 | K75: =IF(График!J80>0,График!J80,"") -> ТО-0 | L75: =IF(График!K80>0,График!K80,"") -> ТО-1 | M75: =IF(График!L80>0,График!L80,"") -> ТО-0 | N75: =IF(График!M80>0,График!M80,"") -> ТО-0 | O75: =IF(График!N80>0,График!N80,"") -> ТО-0 | P75: =IF(График!O80>0,График!O80,"") -> ТО-0 | Q75: =IF(График!P80>0,График!P80,"") -> ТО-0 | R75: =IF(График!Q80>0,График!Q80,"") -> ТО-0 | S75: =IF(График!R80>0,График!R80,"") -> ТО-1 | T75: =IF(График!S80>0,График!S80,"") -> ТО-0 | U75: =IF(График!T80>0,График!T80,"") -> ТО-0 | V75: =IF(График!U80>0,График!U80,"") -> ТО-0 | W75: =IF(График!V80>0,График!V80,"") -> ТО-0 | X75: =IF(График!W80>0,График!W80,"") -> ТО-0 | Y75: =IF(График!X80>0,График!X80,"") -> ТО-0 | Z75: =IF(График!Y80>0,График!Y80,"") -> ТО-1 | AA75: =IF(График!Z80>0,График!Z80,"") -> ТО-2 | AB75: =IF(График!AA80>0,График!AA80,"") -> ТО-0 | AC75: =IF(График!AB80>0,График!AB80,"") -> ТО-0 | AD75: =IF(График!AC80>0,График!AC80,"") -> ТО-0 | AE75: =IF(График!AD80>0,График!AD80,"") -> ТО-0 | AF75: =IF(График!AE80>0,График!AE80,"") -> ТО-0 | AG75: =IF(График!AF80>0,График!AF80,"") -> ТО-1 | AH75: =IF(График!AG80>0,График!AG80,"") -> ТО-0 | AI75: =IF(График!AH80>0,График!AH80,"") -> ТО-0
B76: 11.3 | C76: Трубопроводы и подземные линии | E76: =IF(E77="","","*") -> * | F76: =IF(F77="","","*") -> * | G76: * | H76: * | I76: * | J76: * | K76: * | L76: * | M76: * | N76: * | O76: * | P76: * | Q76: * | R76: * | S76: * | T76: * | U76: * | V76: * | W76: * | X76: * | Y76: * | Z76: * | AA76: * | AB76: * | AC76: * | AD76: * | AE76: * | AF76: * | AG76: * | AH76: * | AI76: *
B77: 11.3.1 | C77: Трубы оцинкованные ЭСВ | E77: =IF(График!D82>0,График!D82,"") -> ТО-1 | F77: =IF(График!E82>0,График!E82,"") -> ТО-0 | G77: =IF(График!F82>0,График!F82,"") -> ТО-0 | H77: =IF(График!G82>0,График!G82,"") -> ТО-0 | I77: =IF(График!H82>0,График!H82,"") -> ТО-0 | J77: =IF(График!I82>0,График!I82,"") -> ТО-0 | K77: =IF(График!J82>0,График!J82,"") -> ТО-0 | L77: =IF(График!K82>0,График!K82,"") -> ТО-1 | M77: =IF(График!L82>0,График!L82,"") -> ТО-2 | N77: =IF(График!M82>0,График!M82,"") -> ТО-0 | O77: =IF(График!N82>0,График!N82,"") -> ТО-0 | P77: =IF(График!O82>0,График!O82,"") -> ТО-0 | Q77: =IF(График!P82>0,График!P82,"") -> ТО-0 | R77: =IF(График!Q82>0,График!Q82,"") -> ТО-0 | S77: =IF(График!R82>0,График!R82,"") -> ТО-1 | T77: =IF(График!S82>0,График!S82,"") -> ТО-0 | U77: =IF(График!T82>0,График!T82,"") -> ТО-0 | V77: =IF(График!U82>0,График!U82,"") -> ТО-0 | W77: =IF(График!V82>0,График!V82,"") -> ТО-0 | X77: =IF(График!W82>0,График!W82,"") -> ТО-0 | Y77: =IF(График!X82>0,График!X82,"") -> ТО-0 | Z77: =IF(График!Y82>0,График!Y82,"") -> ТО-1 | AA77: =IF(График!Z82>0,График!Z82,"") -> ТО-0 | AB77: =IF(График!AA82>0,График!AA82,"") -> ТО-0 | AC77: =IF(График!AB82>0,График!AB82,"") -> ТО-0 | AD77: =IF(График!AC82>0,График!AC82,"") -> ТО-0 | AE77: =IF(График!AD82>0,График!AD82,"") -> ТО-0 | AF77: =IF(График!AE82>0,График!AE82,"") -> ТО-0 | AG77: =IF(График!AF82>0,График!AF82,"") -> ТО-1 | AH77: =IF(График!AG82>0,График!AG82,"") -> ТО-0 | AI77: =IF(График!AH82>0,График!AH82,"") -> ТО-0
B78: 11.4 | C78: Трапы чугунные | E78: =IF(E79="","","*") ->  | F78: =IF(F79="","","*") ->  | AB78: * | AC78: *
B79: 11.4.1 | C79: Трапы | E79: =IF(График!D84>0,График!D84,"") ->  | F79: =IF(График!E84>0,График!E84,"") ->  | G79: =IF(График!F84>0,График!F84,"") ->  | H79: =IF(График!G84>0,График!G84,"") ->  | I79: =IF(График!H84>0,График!H84,"") ->  | J79: =IF(График!I84>0,График!I84,"") ->  | K79: =IF(График!J84>0,График!J84,"") ->  | L79: =IF(График!K84>0,График!K84,"") ->  | M79: =IF(График!L84>0,График!L84,"") ->  | N79: =IF(График!M84>0,График!M84,"") ->  | O79: =IF(График!N84>0,График!N84,"") ->  | P79: =IF(График!O84>0,График!O84,"") ->  | Q79: =IF(График!P84>0,График!P84,"") ->  | R79: =IF(График!Q84>0,График!Q84,"") ->  | S79: =IF(График!R84>0,График!R84,"") ->  | T79: =IF(График!S84>0,График!S84,"") ->  | U79: =IF(График!T84>0,График!T84,"") ->  | V79: =IF(График!U84>0,График!U84,"") ->  | W79: =IF(График!V84>0,График!V84,"") ->  | X79: =IF(График!W84>0,График!W84,"") ->  | Y79: =IF(График!X84>0,График!X84,"") ->  | Z79: =IF(График!Y84>0,График!Y84,"") ->  | AA79: =IF(График!Z84>0,График!Z84,"") ->  | AB79: =IF(График!AA84>0,График!AA84,"") -> ТО-2 | AC79: =IF(График!AB84>0,График!AB84,"") -> ТО-2 | AD79: =IF(График!AC84>0,График!AC84,"") ->  | AE79: =IF(График!AD84>0,График!AD84,"") ->  | AF79: =IF(График!AE84>0,График!AE84,"") ->  | AG79: =IF(График!AF84>0,График!AF84,"") ->  | AH79: =IF(График!AG84>0,График!AG84,"") ->  | AI79: =IF(График!AH84>0,График!AH84,"") -> 
B80: 12 | C80: Унитазы, писсуары, раковины, душевые поддоны | E80: =IF(OR(E81<>"",E82<>"",E83<>"",E84<>"",E85<>"",E86<>"",E87<>"",E88<>""),"*","") -> * | F80: =IF(OR(F81<>"",F82<>"",F83<>"",F84<>"",F85<>"",F86<>"",F87<>"",F88<>""),"*","") -> * | L80: * | S80: * | T80: * | Z80: * | AA80: * | AG80: * | AH80: *
B81: 12.1 | C81: Унитаз для МГН типа Ibo | E81: =IF(График!D86>0,График!D86,"") -> ТО-1 | F81: =IF(График!E86>0,График!E86,"") -> ТО-2 | G81: =IF(График!F86>0,График!F86,"") ->  | H81: =IF(График!G86>0,График!G86,"") ->  | I81: =IF(График!H86>0,График!H86,"") ->  | J81: =IF(График!I86>0,График!I86,"") ->  | K81: =IF(График!J86>0,График!J86,"") ->  | L81: =IF(График!K86>0,График!K86,"") -> ТО-1 | M81: =IF(График!L86>0,График!L86,"") ->  | N81: =IF(График!M86>0,График!M86,"") ->  | O81: =IF(График!N86>0,График!N86,"") ->  | P81: =IF(График!O86>0,График!O86,"") ->  | Q81: =IF(График!P86>0,График!P86,"") ->  | R81: =IF(График!Q86>0,График!Q86,"") ->  | S81: =IF(График!R86>0,График!R86,"") -> ТО-1 | T81: =IF(График!S86>0,График!S86,"") ->  | U81: =IF(График!T86>0,График!T86,"") ->  | V81: =IF(График!U86>0,График!U86,"") ->  | W81: =IF(График!V86>0,График!V86,"") ->  | X81: =IF(График!W86>0,График!W86,"") ->  | Y81: =IF(График!X86>0,График!X86,"") ->  | Z81: =IF(График!Y86>0,График!Y86,"") -> ТО-1 | AA81: =IF(График!Z86>0,График!Z86,"") ->  | AB81: =IF(График!AA86>0,График!AA86,"") ->  | AC81: =IF(График!AB86>0,График!AB86,"") ->  | AD81: =IF(График!AC86>0,График!AC86,"") ->  | AE81: =IF(График!AD86>0,График!AD86,"") ->  | AF81: =IF(График!AE86>0,График!AE86,"") ->  | AG81: =IF(График!AF86>0,График!AF86,"") -> ТО-1 | AH81: =IF(График!AG86>0,График!AG86,"") ->  | AI81: =IF(График!AH86>0,График!AH86,"") -> 
B82: 12.2 | C82: Писсуар Lira | E82: =IF(График!D87>0,График!D87,"") -> ТО-1 | F82: =IF(График!E87>0,График!E87,"") -> ТО-2 | G82: =IF(График!F87>0,График!F87,"") ->  | H82: =IF(График!G87>0,График!G87,"") ->  | I82: =IF(График!H87>0,График!H87,"") ->  | J82: =IF(График!I87>0,График!I87,"") ->  | K82: =IF(График!J87>0,График!J87,"") ->  | L82: =IF(График!K87>0,График!K87,"") -> ТО-1 | M82: =IF(График!L87>0,График!L87,"") ->  | N82: =IF(График!M87>0,График!M87,"") ->  | O82: =IF(График!N87>0,График!N87,"") ->  | P82: =IF(График!O87>0,График!O87,"") ->  | Q82: =IF(График!P87>0,График!P87,"") ->  | R82: =IF(График!Q87>0,График!Q87,"") ->  | S82: =IF(График!R87>0,График!R87,"") -> ТО-1 | T82: =IF(График!S87>0,График!S87,"") ->  | U82: =IF(График!T87>0,График!T87,"") ->  | V82: =IF(График!U87>0,График!U87,"") ->  | W82: =IF(График!V87>0,График!V87,"") ->  | X82: =IF(График!W87>0,График!W87,"") ->  | Y82: =IF(График!X87>0,График!X87,"") ->  | Z82: =IF(График!Y87>0,График!Y87,"") -> ТО-1 | AA82: =IF(График!Z87>0,График!Z87,"") ->  | AB82: =IF(График!AA87>0,График!AA87,"") ->  | AC82: =IF(График!AB87>0,График!AB87,"") ->  | AD82: =IF(График!AC87>0,График!AC87,"") ->  | AE82: =IF(График!AD87>0,График!AD87,"") ->  | AF82: =IF(График!AE87>0,График!AE87,"") ->  | AG82: =IF(График!AF87>0,График!AF87,"") -> ТО-1 | AH82: =IF(График!AG87>0,График!AG87,"") ->  | AI82: =IF(График!AH87>0,График!AH87,"") -> 
B83: 12.3 | C83: Унитаз открытой установки Ideal | E83: =IF(График!D88>0,График!D88,"") -> ТО-1 | F83: =IF(График!E88>0,График!E88,"") ->  | G83: =IF(График!F88>0,График!F88,"") ->  | H83: =IF(График!G88>0,График!G88,"") ->  | I83: =IF(График!H88>0,График!H88,"") ->  | J83: =IF(График!I88>0,График!I88,"") ->  | K83: =IF(График!J88>0,График!J88,"") ->  | L83: =IF(График!K88>0,График!K88,"") -> ТО-1 | M83: =IF(График!L88>0,График!L88,"") ->  | N83: =IF(График!M88>0,График!M88,"") ->  | O83: =IF(График!N88>0,График!N88,"") ->  | P83: =IF(График!O88>0,График!O88,"") ->  | Q83: =IF(График!P88>0,График!P88,"") ->  | R83: =IF(График!Q88>0,График!Q88,"") ->  | S83: =IF(График!R88>0,График!R88,"") -> ТО-1 | T83: =IF(График!S88>0,График!S88,"") -> ТО-2 | U83: =IF(График!T88>0,График!T88,"") ->  | V83: =IF(График!U88>0,График!U88,"") ->  | W83: =IF(График!V88>0,График!V88,"") ->  | X83: =IF(График!W88>0,График!W88,"") ->  | Y83: =IF(График!X88>0,График!X88,"") ->  | Z83: =IF(График!Y88>0,График!Y88,"") -> ТО-1 | AA83: =IF(График!Z88>0,График!Z88,"") ->  | AB83: =IF(График!AA88>0,График!AA88,"") ->  | AC83: =IF(График!AB88>0,График!AB88,"") ->  | AD83: =IF(График!AC88>0,График!AC88,"") ->  | AE83: =IF(График!AD88>0,График!AD88,"") ->  | AF83: =IF(График!AE88>0,График!AE88,"") ->  | AG83: =IF(График!AF88>0,График!AF88,"") -> ТО-1 | AH83: =IF(График!AG88>0,График!AG88,"") ->  | AI83: =IF(График!AH88>0,График!AH88,"") -> 
B84: 12.4 | C84: Умывальник обычный Ideal | E84: =IF(График!D89>0,График!D89,"") -> ТО-1 | F84: =IF(График!E89>0,График!E89,"") ->  | G84: =IF(График!F89>0,График!F89,"") ->  | H84: =IF(График!G89>0,График!G89,"") ->  | I84: =IF(График!H89>0,График!H89,"") ->  | J84: =IF(График!I89>0,График!I89,"") ->  | K84: =IF(График!J89>0,График!J89,"") ->  | L84: =IF(График!K89>0,График!K89,"") -> ТО-1 | M84: =IF(График!L89>0,График!L89,"") ->  | N84: =IF(График!M89>0,График!M89,"") ->  | O84: =IF(График!N89>0,График!N89,"") ->  | P84: =IF(График!O89>0,График!O89,"") ->  | Q84: =IF(График!P89>0,График!P89,"") ->  | R84: =IF(График!Q89>0,График!Q89,"") ->  | S84: =IF(График!R89>0,График!R89,"") -> ТО-1 | T84: =IF(График!S89>0,График!S89,"") -> ТО-2 | U84: =IF(График!T89>0,График!T89,"") ->  | V84: =IF(График!U89>0,График!U89,"") ->  | W84: =IF(График!V89>0,График!V89,"") ->  | X84: =IF(График!W89>0,График!W89,"") ->  | Y84: =IF(График!X89>0,График!X89,"") ->  | Z84: =IF(График!Y89>0,График!Y89,"") -> ТО-1 | AA84: =IF(График!Z89>0,График!Z89,"") ->  | AB84: =IF(График!AA89>0,График!AA89,"") ->  | AC84: =IF(График!AB89>0,График!AB89,"") ->  | AD84: =IF(График!AC89>0,График!AC89,"") ->  | AE84: =IF(График!AD89>0,График!AD89,"") ->  | AF84: =IF(График!AE89>0,График!AE89,"") ->  | AG84: =IF(График!AF89>0,График!AF89,"") -> ТО-1 | AH84: =IF(График!AG89>0,График!AG89,"") ->  | AI84: =IF(График!AH89>0,График!AH89,"") -> 
B85: 12.5 | C85: Мини – раковина Ideal | E85: =IF(График!D90>0,График!D90,"") -> ТО-1 | F85: =IF(График!E90>0,График!E90,"") ->  | G85: =IF(График!F90>0,График!F90,"") ->  | H85: =IF(График!G90>0,График!G90,"") ->  | I85: =IF(График!H90>0,График!H90,"") ->  | J85: =IF(График!I90>0,График!I90,"") ->  | K85: =IF(График!J90>0,График!J90,"") ->  | L85: =IF(График!K90>0,График!K90,"") -> ТО-1 | M85: =IF(График!L90>0,График!L90,"") ->  | N85: =IF(График!M90>0,График!M90,"") ->  | O85: =IF(График!N90>0,График!N90,"") ->  | P85: =IF(График!O90>0,График!O90,"") ->  | Q85: =IF(График!P90>0,График!P90,"") ->  | R85: =IF(График!Q90>0,График!Q90,"") ->  | S85: =IF(График!R90>0,График!R90,"") -> ТО-1 | T85: =IF(График!S90>0,График!S90,"") ->  | U85: =IF(График!T90>0,График!T90,"") ->  | V85: =IF(График!U90>0,График!U90,"") ->  | W85: =IF(График!V90>0,График!V90,"") ->  | X85: =IF(График!W90>0,График!W90,"") ->  | Y85: =IF(График!X90>0,График!X90,"") ->  | Z85: =IF(График!Y90>0,График!Y90,"") -> ТО-1 | AA85: =IF(График!Z90>0,График!Z90,"") -> ТО-2 | AB85: =IF(График!AA90>0,График!AA90,"") ->  | AC85: =IF(График!AB90>0,График!AB90,"") ->  | AD85: =IF(График!AC90>0,График!AC90,"") ->  | AE85: =IF(График!AD90>0,График!AD90,"") ->  | AF85: =IF(График!AE90>0,График!AE90,"") ->  | AG85: =IF(График!AF90>0,График!AF90,"") -> ТО-1 | AH85: =IF(График!AG90>0,График!AG90,"") ->  | AI85: =IF(График!AH90>0,График!AH90,"") -> 
B86: 12.6 | C86: Встраиваемые в столешницу раковины | E86: =IF(График!D91>0,График!D91,"") -> ТО-1 | F86: =IF(График!E91>0,График!E91,"") ->  | G86: =IF(График!F91>0,График!F91,"") ->  | H86: =IF(График!G91>0,График!G91,"") ->  | I86: =IF(График!H91>0,График!H91,"") ->  | J86: =IF(График!I91>0,График!I91,"") ->  | K86: =IF(График!J91>0,График!J91,"") ->  | L86: =IF(График!K91>0,График!K91,"") -> ТО-1 | M86: =IF(График!L91>0,График!L91,"") ->  | N86: =IF(График!M91>0,График!M91,"") ->  | O86: =IF(График!N91>0,График!N91,"") ->  | P86: =IF(График!O91>0,График!O91,"") ->  | Q86: =IF(График!P91>0,График!P91,"") ->  | R86: =IF(График!Q91>0,График!Q91,"") ->  | S86: =IF(График!R91>0,График!R91,"") -> ТО-1 | T86: =IF(График!S91>0,График!S91,"") ->  | U86: =IF(График!T91>0,График!T91,"") ->  | V86: =IF(График!U91>0,График!U91,"") ->  | W86: =IF(График!V91>0,График!V91,"") ->  | X86: =IF(График!W91>0,График!W91,"") ->  | Y86: =IF(График!X91>0,График!X91,"") ->  | Z86: =IF(График!Y91>0,График!Y91,"") -> ТО-1 | AA86: =IF(График!Z91>0,График!Z91,"") -> ТО-2 | AB86: =IF(График!AA91>0,График!AA91,"") ->  | AC86: =IF(График!AB91>0,График!AB91,"") ->  | AD86: =IF(График!AC91>0,График!AC91,"") ->  | AE86: =IF(График!AD91>0,График!AD91,"") ->  | AF86: =IF(График!AE91>0,График!AE91,"") ->  | AG86: =IF(График!AF91>0,График!AF91,"") -> ТО-1 | AH86: =IF(График!AG91>0,График!AG91,"") ->  | AI86: =IF(График!AH91>0,График!AH91,"") -> 
B87: 12.7 | C87: Умывальник МГН | E87: =IF(График!D92>0,График!D92,"") -> ТО-1 | F87: =IF(График!E92>0,График!E92,"") ->  | G87: =IF(График!F92>0,График!F92,"") ->  | H87: =IF(График!G92>0,График!G92,"") ->  | I87: =IF(График!H92>0,График!H92,"") ->  | J87: =IF(График!I92>0,График!I92,"") ->  | K87: =IF(График!J92>0,График!J92,"") ->  | L87: =IF(График!K92>0,График!K92,"") -> ТО-1 | M87: =IF(График!L92>0,График!L92,"") ->  | N87: =IF(График!M92>0,График!M92,"") ->  | O87: =IF(График!N92>0,График!N92,"") ->  | P87: =IF(График!O92>0,График!O92,"") ->  | Q87: =IF(График!P92>0,График!P92,"") ->  | R87: =IF(График!Q92>0,График!Q92,"") ->  | S87: =IF(График!R92>0,График!R92,"") -> ТО-1 | T87: =IF(График!S92>0,График!S92,"") ->  | U87: =IF(График!T92>0,График!T92,"") ->  | V87: =IF(График!U92>0,График!U92,"") ->  | W87: =IF(График!V92>0,График!V92,"") ->  | X87: =IF(График!W92>0,График!W92,"") ->  | Y87: =IF(График!X92>0,График!X92,"") ->  | Z87: =IF(График!Y92>0,График!Y92,"") -> ТО-1 | AA87: =IF(График!Z92>0,График!Z92,"") ->  | AB87: =IF(График!AA92>0,График!AA92,"") ->  | AC87: =IF(График!AB92>0,График!AB92,"") ->  | AD87: =IF(График!AC92>0,График!AC92,"") ->  | AE87: =IF(График!AD92>0,График!AD92,"") ->  | AF87: =IF(График!AE92>0,График!AE92,"") ->  | AG87: =IF(График!AF92>0,График!AF92,"") -> ТО-1 | AH87: =IF(График!AG92>0,График!AG92,"") -> ТО-2 | AI87: =IF(График!AH92>0,График!AH92,"") -> 
B88: 12.8 | C88: Душевой поддон | E88: =IF(График!D93>0,График!D93,"") -> ТО-1 | F88: =IF(График!E93>0,График!E93,"") ->  | G88: =IF(График!F93>0,График!F93,"") ->  | H88: =IF(График!G93>0,График!G93,"") ->  | I88: =IF(График!H93>0,График!H93,"") ->  | J88: =IF(График!I93>0,График!I93,"") ->  | K88: =IF(График!J93>0,График!J93,"") ->  | L88: =IF(График!K93>0,График!K93,"") -> ТО-1 | M88: =IF(График!L93>0,График!L93,"") ->  | N88: =IF(График!M93>0,График!M93,"") ->  | O88: =IF(График!N93>0,График!N93,"") ->  | P88: =IF(График!O93>0,График!O93,"") ->  | Q88: =IF(График!P93>0,График!P93,"") ->  | R88: =IF(График!Q93>0,График!Q93,"") ->  | S88: =IF(График!R93>0,График!R93,"") -> ТО-1 | T88: =IF(График!S93>0,График!S93,"") ->  | U88: =IF(График!T93>0,График!T93,"") ->  | V88: =IF(График!U93>0,График!U93,"") ->  | W88: =IF(График!V93>0,График!V93,"") ->  | X88: =IF(График!W93>0,График!W93,"") ->  | Y88: =IF(График!X93>0,График!X93,"") ->  | Z88: =IF(График!Y93>0,График!Y93,"") -> ТО-1 | AA88: =IF(График!Z93>0,График!Z93,"") ->  | AB88: =IF(График!AA93>0,График!AA93,"") ->  | AC88: =IF(График!AB93>0,График!AB93,"") ->  | AD88: =IF(График!AC93>0,График!AC93,"") ->  | AE88: =IF(График!AD93>0,График!AD93,"") ->  | AF88: =IF(График!AE93>0,График!AE93,"") ->  | AG88: =IF(График!AF93>0,График!AF93,"") -> ТО-1 | AH88: =IF(График!AG93>0,График!AG93,"") -> ТО-2 | AI88: =IF(График!AH93>0,График!AH93,"") -> 
B89: 13 | C89: Отопительные приборы | E89: =IF(E90="","","*") -> * | F89: =IF(F90="","","*") -> * | G89: * | H89: * | I89: * | J89: * | K89: * | L89: * | M89: * | N89: * | O89: * | P89: * | Q89: * | R89: * | S89: * | T89: * | U89: * | V89: * | W89: * | X89: * | Y89: * | Z89: * | AA89: * | AB89: * | AC89: * | AD89: * | AE89: * | AF89: * | AG89: * | AH89: * | AI89: *
B90: 13.1 | C90: Радиаторы | E90: =IF(График!D95>0,График!D95,"") -> ТО-0 | F90: =IF(График!E95>0,График!E95,"") -> ТО-0 | G90: =IF(График!F95>0,График!F95,"") -> ТО-0 | H90: =IF(График!G95>0,График!G95,"") -> ТО-0 | I90: =IF(График!H95>0,График!H95,"") -> ТО-0 | J90: =IF(График!I95>0,График!I95,"") -> ТО-1 | K90: =IF(График!J95>0,График!J95,"") -> ТО-0 | L90: =IF(График!K95>0,График!K95,"") -> ТО-0 | M90: =IF(График!L95>0,График!L95,"") -> ТО-0 | N90: =IF(График!M95>0,График!M95,"") -> ТО-0 | O90: =IF(График!N95>0,График!N95,"") -> ТО-0 | P90: =IF(График!O95>0,График!O95,"") -> ТО-0 | Q90: =IF(График!P95>0,График!P95,"") -> ТО-1 | R90: =IF(График!Q95>0,График!Q95,"") -> ТО-0 | S90: =IF(График!R95>0,График!R95,"") -> ТО-0 | T90: =IF(График!S95>0,График!S95,"") -> ТО-0 | U90: =IF(График!T95>0,График!T95,"") -> ТО-0 | V90: =IF(График!U95>0,График!U95,"") -> ТО-0 | W90: =IF(График!V95>0,График!V95,"") -> ТО-0 | X90: =IF(График!W95>0,График!W95,"") -> ТО-1 | Y90: =IF(График!X95>0,График!X95,"") -> ТО-2 | Z90: =IF(График!Y95>0,График!Y95,"") -> ТО-5 | AA90: =IF(График!Z95>0,График!Z95,"") -> ТО-5 | AB90: =IF(График!AA95>0,График!AA95,"") -> ТО-5 | AC90: =IF(График!AB95>0,График!AB95,"") -> ТО-0 | AD90: =IF(График!AC95>0,График!AC95,"") -> ТО-0 | AE90: =IF(График!AD95>0,График!AD95,"") -> ТО-1 | AF90: =IF(График!AE95>0,График!AE95,"") -> ТО-0 | AG90: =IF(График!AF95>0,График!AF95,"") -> ТО-0 | AH90: =IF(График!AG95>0,График!AG95,"") -> ТО-0 | AI90: =IF(График!AH95>0,График!AH95,"") -> ТО-0
B91: 14 | C91: Фонтанный комплекс | E91: =IF(E92="","","*") ->  | F91: =IF(F92="","","*") ->  | U91: * | V91: * | W91: * | X91: * | Y91: * | Z91: *
B92: 14.1 | C92: Фонтанный комплекс | E92: =IF(График!D97>0,График!D97,"") ->  | F92: =IF(График!E97>0,График!E97,"") ->  | G92: =IF(График!F97>0,График!F97,"") ->  | H92: =IF(График!G97>0,График!G97,"") ->  | I92: =IF(График!H97>0,График!H97,"") ->  | J92: =IF(График!I97>0,График!I97,"") ->  | K92: =IF(График!J97>0,График!J97,"") ->  | L92: =IF(График!K97>0,График!K97,"") ->  | M92: =IF(График!L97>0,График!L97,"") ->  | N92: =IF(График!M97>0,График!M97,"") ->  | O92: =IF(График!N97>0,График!N97,"") ->  | P92: =IF(График!O97>0,График!O97,"") ->  | Q92: =IF(График!P97>0,График!P97,"") ->  | R92: =IF(График!Q97>0,График!Q97,"") ->  | S92: =IF(График!R97>0,График!R97,"") ->  | T92: =IF(График!S97>0,График!S97,"") ->  | U92: =IF(График!T97>0,График!T97,"") -> ТО-2 | V92: =IF(График!U97>0,График!U97,"") -> ТО-2 | W92: =IF(График!V97>0,График!V97,"") -> ТО-2 | X92: =IF(График!W97>0,График!W97,"") -> ТО-3 | Y92: =IF(График!X97>0,График!X97,"") -> ТО-3 | Z92: =IF(График!Y97>0,График!Y97,"") -> ТО-3 | AA92: =IF(График!Z97>0,График!Z97,"") ->  | AB92: =IF(График!AA97>0,График!AA97,"") ->  | AC92: =IF(График!AB97>0,График!AB97,"") ->  | AD92: =IF(График!AC97>0,График!AC97,"") ->  | AE92: =IF(График!AD97>0,График!AD97,"") ->  | AF92: =IF(График!AE97>0,График!AE97,"") ->  | AG92: =IF(График!AF97>0,График!AF97,"") ->  | AH92: =IF(График!AG97>0,График!AG97,"") ->  | AI92: =IF(График!AH97>0,График!AH97,"") -> 
B93: 15 | C93: Комплексная система информатизации, автоматизации, и связи | E93: =IF(OR(E95<>"",E96<>"",E97<>"",E98<>"",E99<>"",E100<>"",E101<>"",E102<>"",E103<>"",E104<>"",E105<>"",E107<>""),"*","") -> * | F93: =IF(OR(F95<>"",F96<>"",F97<>"",F98<>"",F99<>"",F100<>"",F101<>"",F102<>"",F103<>"",F104<>"",F105<>"",F107<>""),"*","") ->  | I93: * | J93: * | K93: * | L93: * | M93: * | N93: * | O93: * | P93: * | Q93: * | R93: * | S93: * | T93: * | U93: * | W93: * | X93: * | Y93: * | Z93: * | AA93: * | AB93: * | AC93: * | AD93: * | AE93: * | AF93: * | AG93: * | AH93: *
B94: 15.1 | C94: Система коллективного информирования | E94: =IF(OR(E95<>"",E96<>"",E97<>"",E98<>"",E99<>"",E100<>"",E101<>"",E102<>"",E103<>"",E104<>"",E105<>""),"*","") ->  | F94: =IF(OR(F95<>"",F96<>"",F97<>"",F98<>"",F99<>"",F100<>"",F101<>"",F102<>"",F103<>"",F104<>"",F105<>""),"*","") ->  | I94: * | J94: * | K94: * | M94: * | N94: * | O94: * | P94: * | Q94: * | R94: * | S94: * | T94: * | U94: * | W94: * | X94: * | Y94: * | AA94: * | AB94: * | AC94: * | AD94: * | AE94: * | AF94: * | AG94: *
B95: 15.1.1 | C95: Информационный статический указатель Trecom | E95: =IF(График!D100>0,График!D100,"") ->  | F95: =IF(График!E100>0,График!E100,"") ->  | G95: =IF(График!F100>0,График!F100,"") ->  | H95: =IF(График!G100>0,График!G100,"") ->  | I95: =IF(График!H100>0,График!H100,"") -> ТО-1 | J95: =IF(График!I100>0,График!I100,"") -> ТО-1 | K95: =IF(График!J100>0,График!J100,"") -> ТО-1 | L95: =IF(График!K100>0,График!K100,"") ->  | M95: =IF(График!L100>0,График!L100,"") ->  | N95: =IF(График!M100>0,График!M100,"") ->  | O95: =IF(График!N100>0,График!N100,"") ->  | P95: =IF(График!O100>0,График!O100,"") -> ТО-1 | Q95: =IF(График!P100>0,График!P100,"") -> ТО-1 | R95: =IF(График!Q100>0,График!Q100,"") -> ТО-1 | S95: =IF(График!R100>0,График!R100,"") -> ТО-3 | T95: =IF(График!S100>0,График!S100,"") -> ТО-3 | U95: =IF(График!T100>0,График!T100,"") -> ТО-3 | V95: =IF(График!U100>0,График!U100,"") ->  | W95: =IF(График!V100>0,График!V100,"") -> ТО-1 | X95: =IF(График!W100>0,График!W100,"") -> ТО-1 | Y95: =IF(График!X100>0,График!X100,"") -> ТО-1 | Z95: =IF(График!Y100>0,График!Y100,"") ->  | AA95: =IF(График!Z100>0,График!Z100,"") ->  | AB95: =IF(График!AA100>0,График!AA100,"") ->  | AC95: =IF(График!AB100>0,График!AB100,"") ->  | AD95: =IF(График!AC100>0,График!AC100,"") -> ТО-1 | AE95: =IF(График!AD100>0,График!AD100,"") -> ТО-1 | AF95: =IF(График!AE100>0,График!AE100,"") -> ТО-1 | AG95: =IF(График!AF100>0,График!AF100,"") ->  | AH95: =IF(График!AG100>0,График!AG100,"") ->  | AI95: =IF(График!AH100>0,График!AH100,"") -> 
B96: 15.1.2 | C96: Информационный пилон Trecom | E96: =IF(График!D101>0,График!D101,"") ->  | F96: =IF(График!E101>0,График!E101,"") ->  | G96: =IF(График!F101>0,График!F101,"") ->  | H96: =IF(График!G101>0,График!G101,"") ->  | I96: =IF(График!H101>0,График!H101,"") ->  | J96: =IF(График!I101>0,График!I101,"") ->  | K96: =IF(График!J101>0,График!J101,"") -> ТО-1 | L96: =IF(График!K101>0,График!K101,"") ->  | M96: =IF(График!L101>0,График!L101,"") ->  | N96: =IF(График!M101>0,График!M101,"") ->  | O96: =IF(График!N101>0,График!N101,"") ->  | P96: =IF(График!O101>0,График!O101,"") ->  | Q96: =IF(График!P101>0,График!P101,"") ->  | R96: =IF(График!Q101>0,График!Q101,"") -> ТО-1 | S96: =IF(График!R101>0,График!R101,"") ->  | T96: =IF(График!S101>0,График!S101,"") ->  | U96: =IF(График!T101>0,График!T101,"") ->  | V96: =IF(График!U101>0,График!U101,"") ->  | W96: =IF(График!V101>0,График!V101,"") ->  | X96: =IF(График!W101>0,График!W101,"") ->  | Y96: =IF(График!X101>0,График!X101,"") -> ТО-1 | Z96: =IF(График!Y101>0,График!Y101,"") ->  | AA96: =IF(График!Z101>0,График!Z101,"") ->  | AB96: =IF(График!AA101>0,График!AA101,"") ->  | AC96: =IF(График!AB101>0,График!AB101,"") ->  | AD96: =IF(График!AC101>0,График!AC101,"") ->  | AE96: =IF(График!AD101>0,График!AD101,"") ->  | AF96: =IF(График!AE101>0,График!AE101,"") -> ТО-1 | AG96: =IF(График!AF101>0,График!AF101,"") -> ТО-3 | AH96: =IF(График!AG101>0,График!AG101,"") ->  | AI96: =IF(График!AH101>0,График!AH101,"") -> 
B97: 15.1.3 | C97: Информационный модуль Trecom | E97: =IF(График!D102>0,График!D102,"") ->  | F97: =IF(График!E102>0,График!E102,"") ->  | G97: =IF(График!F102>0,График!F102,"") ->  | H97: =IF(График!G102>0,График!G102,"") ->  | I97: =IF(График!H102>0,График!H102,"") ->  | J97: =IF(График!I102>0,График!I102,"") ->  | K97: =IF(График!J102>0,График!J102,"") -> ТО-1 | L97: =IF(График!K102>0,График!K102,"") ->  | M97: =IF(График!L102>0,График!L102,"") ->  | N97: =IF(График!M102>0,График!M102,"") ->  | O97: =IF(График!N102>0,График!N102,"") ->  | P97: =IF(График!O102>0,График!O102,"") ->  | Q97: =IF(График!P102>0,График!P102,"") ->  | R97: =IF(График!Q102>0,График!Q102,"") -> ТО-1 | S97: =IF(График!R102>0,График!R102,"") ->  | T97: =IF(График!S102>0,График!S102,"") ->  | U97: =IF(График!T102>0,График!T102,"") ->  | V97: =IF(График!U102>0,График!U102,"") ->  | W97: =IF(График!V102>0,График!V102,"") ->  | X97: =IF(График!W102>0,График!W102,"") ->  | Y97: =IF(График!X102>0,График!X102,"") -> ТО-1 | Z97: =IF(График!Y102>0,График!Y102,"") ->  | AA97: =IF(График!Z102>0,График!Z102,"") ->  | AB97: =IF(График!AA102>0,График!AA102,"") ->  | AC97: =IF(График!AB102>0,График!AB102,"") ->  | AD97: =IF(График!AC102>0,График!AC102,"") ->  | AE97: =IF(График!AD102>0,График!AD102,"") ->  | AF97: =IF(График!AE102>0,График!AE102,"") -> ТО-1 | AG97: =IF(График!AF102>0,График!AF102,"") -> ТО-3 | AH97: =IF(График!AG102>0,График!AG102,"") ->  | AI97: =IF(График!AH102>0,График!AH102,"") -> 
B98: 15.1.4 | C98: Щит платформенный ЗАО «Информсвязь Холдинг» | E98: =IF(График!D103>0,График!D103,"") ->  | F98: =IF(График!E103>0,График!E103,"") ->  | G98: =IF(График!F103>0,График!F103,"") ->  | H98: =IF(График!G103>0,График!G103,"") ->  | I98: =IF(График!H103>0,График!H103,"") ->  | J98: =IF(График!I103>0,График!I103,"") ->  | K98: =IF(График!J103>0,График!J103,"") -> ТО-1 | L98: =IF(График!K103>0,График!K103,"") ->  | M98: =IF(График!L103>0,График!L103,"") ->  | N98: =IF(График!M103>0,График!M103,"") ->  | O98: =IF(График!N103>0,График!N103,"") ->  | P98: =IF(График!O103>0,График!O103,"") ->  | Q98: =IF(График!P103>0,График!P103,"") ->  | R98: =IF(График!Q103>0,График!Q103,"") -> ТО-1 | S98: =IF(График!R103>0,График!R103,"") ->  | T98: =IF(График!S103>0,График!S103,"") ->  | U98: =IF(График!T103>0,График!T103,"") ->  | V98: =IF(График!U103>0,График!U103,"") ->  | W98: =IF(График!V103>0,График!V103,"") ->  | X98: =IF(График!W103>0,График!W103,"") ->  | Y98: =IF(График!X103>0,График!X103,"") -> ТО-1 | Z98: =IF(График!Y103>0,График!Y103,"") ->  | AA98: =IF(График!Z103>0,График!Z103,"") ->  | AB98: =IF(График!AA103>0,График!AA103,"") ->  | AC98: =IF(График!AB103>0,График!AB103,"") ->  | AD98: =IF(График!AC103>0,График!AC103,"") ->  | AE98: =IF(График!AD103>0,График!AD103,"") ->  | AF98: =IF(График!AE103>0,График!AE103,"") -> ТО-1 | AG98: =IF(График!AF103>0,График!AF103,"") -> ТО-3 | AH98: =IF(График!AG103>0,График!AG103,"") ->  | AI98: =IF(График!AH103>0,График!AH103,"") -> 
B99: 15.1.5 | C99: Фасадная вывеска ЗАО «Информсвязь Холдинг» | E99: =IF(График!D104>0,График!D104,"") ->  | F99: =IF(График!E104>0,График!E104,"") ->  | G99: =IF(График!F104>0,График!F104,"") ->  | H99: =IF(График!G104>0,График!G104,"") ->  | I99: =IF(График!H104>0,График!H104,"") ->  | J99: =IF(График!I104>0,График!I104,"") -> ТО-1 | K99: =IF(График!J104>0,График!J104,"") ->  | L99: =IF(График!K104>0,График!K104,"") ->  | M99: =IF(График!L104>0,График!L104,"") ->  | N99: =IF(График!M104>0,График!M104,"") ->  | O99: =IF(График!N104>0,График!N104,"") ->  | P99: =IF(График!O104>0,График!O104,"") ->  | Q99: =IF(График!P104>0,График!P104,"") -> ТО-1 | R99: =IF(График!Q104>0,График!Q104,"") -> ТО-3 | S99: =IF(График!R104>0,График!R104,"") ->  | T99: =IF(График!S104>0,График!S104,"") ->  | U99: =IF(График!T104>0,График!T104,"") ->  | V99: =IF(График!U104>0,График!U104,"") ->  | W99: =IF(График!V104>0,График!V104,"") ->  | X99: =IF(График!W104>0,График!W104,"") -> ТО-1 | Y99: =IF(График!X104>0,График!X104,"") ->  | Z99: =IF(График!Y104>0,График!Y104,"") ->  | AA99: =IF(График!Z104>0,График!Z104,"") ->  | AB99: =IF(График!AA104>0,График!AA104,"") ->  | AC99: =IF(График!AB104>0,График!AB104,"") ->  | AD99: =IF(График!AC104>0,График!AC104,"") ->  | AE99: =IF(График!AD104>0,График!AD104,"") -> ТО-1 | AF99: =IF(График!AE104>0,График!AE104,"") ->  | AG99: =IF(График!AF104>0,График!AF104,"") ->  | AH99: =IF(График!AG104>0,График!AG104,"") ->  | AI99: =IF(График!AH104>0,График!AH104,"") -> 
B100: 15.1.6 | C100: Система телефонной, оперативно – технологической связи Cisco System, Philips | E100: =IF(График!D105>0,График!D105,"") ->  | F100: =IF(График!E105>0,График!E105,"") ->  | G100: =IF(График!F105>0,График!F105,"") ->  | H100: =IF(График!G105>0,График!G105,"") ->  | I100: =IF(График!H105>0,График!H105,"") ->  | J100: =IF(График!I105>0,График!I105,"") -> ТО-1 | K100: =IF(График!J105>0,График!J105,"") ->  | L100: =IF(График!K105>0,График!K105,"") ->  | M100: =IF(График!L105>0,График!L105,"") ->  | N100: =IF(График!M105>0,График!M105,"") ->  | O100: =IF(График!N105>0,График!N105,"") ->  | P100: =IF(График!O105>0,График!O105,"") ->  | Q100: =IF(График!P105>0,График!P105,"") -> ТО-1 | R100: =IF(График!Q105>0,График!Q105,"") -> ТО-3 | S100: =IF(График!R105>0,График!R105,"") ->  | T100: =IF(График!S105>0,График!S105,"") ->  | U100: =IF(График!T105>0,График!T105,"") ->  | V100: =IF(График!U105>0,График!U105,"") ->  | W100: =IF(График!V105>0,График!V105,"") ->  | X100: =IF(График!W105>0,График!W105,"") -> ТО-1 | Y100: =IF(График!X105>0,График!X105,"") ->  | Z100: =IF(График!Y105>0,График!Y105,"") ->  | AA100: =IF(График!Z105>0,График!Z105,"") ->  | AB100: =IF(График!AA105>0,График!AA105,"") ->  | AC100: =IF(График!AB105>0,График!AB105,"") ->  | AD100: =IF(График!AC105>0,График!AC105,"") ->  | AE100: =IF(График!AD105>0,График!AD105,"") -> ТО-1 | AF100: =IF(График!AE105>0,График!AE105,"") ->  | AG100: =IF(График!AF105>0,График!AF105,"") ->  | AH100: =IF(График!AG105>0,График!AG105,"") ->  | AI100: =IF(График!AH105>0,График!AH105,"") -> 
B101: 15.1.7 | C101: Система экстренной связи (терминалы пассажир – кассир, пассажир – дежурный по вокзалу) Stentofon | E101: =IF(График!D106>0,График!D106,"") ->  | F101: =IF(График!E106>0,График!E106,"") ->  | G101: =IF(График!F106>0,График!F106,"") ->  | H101: =IF(График!G106>0,График!G106,"") ->  | I101: =IF(График!H106>0,График!H106,"") ->  | J101: =IF(График!I106>0,График!I106,"") -> ТО-1 | K101: =IF(График!J106>0,График!J106,"") ->  | L101: =IF(График!K106>0,График!K106,"") ->  | M101: =IF(График!L106>0,График!L106,"") ->  | N101: =IF(График!M106>0,График!M106,"") ->  | O101: =IF(График!N106>0,График!N106,"") ->  | P101: =IF(График!O106>0,График!O106,"") ->  | Q101: =IF(График!P106>0,График!P106,"") -> ТО-1 | R101: =IF(График!Q106>0,График!Q106,"") -> ТО-3 | S101: =IF(График!R106>0,График!R106,"") -> ТО-3 | T101: =IF(График!S106>0,График!S106,"") ->  | U101: =IF(График!T106>0,График!T106,"") ->  | V101: =IF(График!U106>0,График!U106,"") ->  | W101: =IF(График!V106>0,График!V106,"") ->  | X101: =IF(График!W106>0,График!W106,"") -> ТО-1 | Y101: =IF(График!X106>0,График!X106,"") ->  | Z101: =IF(График!Y106>0,График!Y106,"") ->  | AA101: =IF(График!Z106>0,График!Z106,"") ->  | AB101: =IF(График!AA106>0,График!AA106,"") ->  | AC101: =IF(График!AB106>0,График!AB106,"") ->  | AD101: =IF(График!AC106>0,График!AC106,"") ->  | AE101: =IF(График!AD106>0,График!AD106,"") -> ТО-1 | AF101: =IF(График!AE106>0,График!AE106,"") ->  | AG101: =IF(График!AF106>0,График!AF106,"") ->  | AH101: =IF(График!AG106>0,График!AG106,"") ->  | AI101: =IF(График!AH106>0,График!AH106,"") -> 
B102: 15.1.8 | C102: Система часофикации MobaTime | E102: =IF(График!D107>0,График!D107,"") ->  | F102: =IF(График!E107>0,График!E107,"") ->  | G102: =IF(График!F107>0,График!F107,"") ->  | H102: =IF(График!G107>0,График!G107,"") ->  | I102: =IF(График!H107>0,График!H107,"") ->  | J102: =IF(График!I107>0,График!I107,"") -> ТО-1 | K102: =IF(График!J107>0,График!J107,"") ->  | L102: =IF(График!K107>0,График!K107,"") ->  | M102: =IF(График!L107>0,График!L107,"") ->  | N102: =IF(График!M107>0,График!M107,"") ->  | O102: =IF(График!N107>0,График!N107,"") ->  | P102: =IF(График!O107>0,График!O107,"") ->  | Q102: =IF(График!P107>0,График!P107,"") -> ТО-1 | R102: =IF(График!Q107>0,График!Q107,"") -> ТО-3 | S102: =IF(График!R107>0,График!R107,"") ->  | T102: =IF(График!S107>0,График!S107,"") ->  | U102: =IF(График!T107>0,График!T107,"") ->  | V102: =IF(График!U107>0,График!U107,"") ->  | W102: =IF(График!V107>0,График!V107,"") ->  | X102: =IF(График!W107>0,График!W107,"") -> ТО-1 | Y102: =IF(График!X107>0,График!X107,"") ->  | Z102: =IF(График!Y107>0,График!Y107,"") ->  | AA102: =IF(График!Z107>0,График!Z107,"") ->  | AB102: =IF(График!AA107>0,График!AA107,"") ->  | AC102: =IF(График!AB107>0,График!AB107,"") ->  | AD102: =IF(График!AC107>0,График!AC107,"") ->  | AE102: =IF(График!AD107>0,График!AD107,"") -> ТО-1 | AF102: =IF(График!AE107>0,График!AE107,"") ->  | AG102: =IF(График!AF107>0,График!AF107,"") ->  | AH102: =IF(График!AG107>0,График!AG107,"") ->  | AI102: =IF(График!AH107>0,График!AH107,"") -> 
B103: 15.1.9 | C103: Система телевидения и радиотрансляции EXTRON | E103: =IF(График!D108>0,График!D108,"") ->  | F103: =IF(График!E108>0,График!E108,"") ->  | G103: =IF(График!F108>0,График!F108,"") ->  | H103: =IF(График!H110>0,График!H110,"") ->  | I103: =IF(График!H108>0,График!H108,"") ->  | J103: =IF(График!I108>0,График!I108,"") -> ТО-1 | K103: =IF(График!J108>0,График!J108,"") ->  | L103: =IF(График!K108>0,График!K108,"") ->  | M103: =IF(График!L108>0,График!L108,"") ->  | N103: =IF(График!M108>0,График!M108,"") ->  | O103: =IF(График!N108>0,График!N108,"") ->  | P103: =IF(График!O108>0,График!O108,"") ->  | Q103: =IF(График!P108>0,График!P108,"") -> ТО-1 | R103: =IF(График!Q108>0,График!Q108,"") -> ТО-3 | S103: =IF(График!R108>0,График!R108,"") ->  | T103: =IF(График!S108>0,График!S108,"") ->  | U103: =IF(График!T108>0,График!T108,"") ->  | V103: =IF(График!U108>0,График!U108,"") ->  | W103: =IF(График!V108>0,График!V108,"") ->  | X103: =IF(График!W108>0,График!W108,"") -> ТО-1 | Y103: =IF(График!X108>0,График!X108,"") ->  | Z103: =IF(График!Y108>0,График!Y108,"") ->  | AA103: =IF(График!Z108>0,График!Z108,"") ->  | AB103: =IF(График!AA108>0,График!AA108,"") ->  | AC103: =IF(График!AB108>0,График!AB108,"") ->  | AD103: =IF(График!AC108>0,График!AC108,"") ->  | AE103: =IF(График!AD108>0,График!AD108,"") -> ТО-1 | AF103: =IF(График!AE108>0,График!AE108,"") ->  | AG103: =IF(График!AF108>0,График!AF108,"") ->  | AH103: =IF(График!AG108>0,График!AG108,"") ->  | AI103: =IF(График!AH108>0,График!AH108,"") -> 
B104: 15.1.10 | C104: Динамик громкоговорящего оповещения Bosch LB1H-UW06-L, LB1H-UM06E. LBC3200. LBC3201 | E104: =IF(График!D109>0,График!D109,"") ->  | F104: =IF(График!E109>0,График!E109,"") ->  | G104: =IF(График!F109>0,График!F109,"") ->  | H104: =IF(График!G109>0,График!G109,"") ->  | I104: =IF(График!H109>0,График!H109,"") -> ТО-1 | J104: =IF(График!I109>0,График!I109,"") -> ТО-1 | K104: =IF(График!J109>0,График!J109,"") -> ТО-1 | L104: =IF(График!K109>0,График!K109,"") ->  | M104: =IF(График!L109>0,График!L109,"") -> ТО-3 | N104: =IF(График!M109>0,График!M109,"") -> ТО-3 | O104: =IF(График!N109>0,График!N109,"") -> ТО-3 | P104: =IF(График!O109>0,График!O109,"") -> ТО-1 | Q104: =IF(График!P109>0,График!P109,"") -> ТО-1 | R104: =IF(График!Q109>0,График!Q109,"") -> ТО-1 | S104: =IF(График!R109>0,График!R109,"") ->  | T104: =IF(График!S109>0,График!S109,"") ->  | U104: =IF(График!T109>0,График!T109,"") ->  | V104: =IF(График!U109>0,График!U109,"") ->  | W104: =IF(График!V109>0,График!V109,"") -> ТО-1 | X104: =IF(График!W109>0,График!W109,"") -> ТО-1 | Y104: =IF(График!X109>0,График!X109,"") -> ТО-1 | Z104: =IF(График!Y109>0,График!Y109,"") ->  | AA104: =IF(График!Z109>0,График!Z109,"") -> ТО-3 | AB104: =IF(График!AA109>0,График!AA109,"") -> ТО-3 | AC104: =IF(График!AB109>0,График!AB109,"") -> ТО-3 | AD104: =IF(График!AC109>0,График!AC109,"") -> ТО-1 | AE104: =IF(График!AD109>0,График!AD109,"") -> ТО-1 | AF104: =IF(График!AE109>0,График!AE109,"") -> ТО-1 | AG104: =IF(График!AF109>0,График!AF109,"") ->  | AH104: =IF(График!AG109>0,График!AG109,"") ->  | AI104: =IF(График!AH109>0,График!AH109,"") -> 
B105: 15.1.11 | C105: Система позиционных датчиков для навигации на вокзале Датчик Smart Beacon | E105: =IF(График!D110>0,График!D110,"") ->  | F105: =IF(График!E110>0,График!E110,"") ->  | G105: =IF(График!F110>0,График!F110,"") ->  | H105: =IF(График!G110>0,График!G110,"") ->  | I105: =IF(График!H110>0,График!H110,"") ->  | J105: =IF(График!I110>0,График!I110,"") ->  | K105: =IF(График!J110>0,График!J110,"") -> ТО-1 | L105: =IF(График!K110>0,График!K110,"") ->  | M105: =IF(График!L110>0,График!L110,"") ->  | N105: =IF(График!M110>0,График!M110,"") ->  | O105: =IF(График!N110>0,График!N110,"") ->  | P105: =IF(График!O110>0,График!O110,"") ->  | Q105: =IF(График!P110>0,График!P110,"") ->  | R105: =IF(График!Q110>0,График!Q110,"") -> ТО-1 | S105: =IF(График!R110>0,График!R110,"") ->  | T105: =IF(График!S110>0,График!S110,"") ->  | U105: =IF(График!T110>0,График!T110,"") ->  | V105: =IF(График!U110>0,График!U110,"") ->  | W105: =IF(График!V110>0,График!V110,"") ->  | X105: =IF(График!W110>0,График!W110,"") ->  | Y105: =IF(График!X110>0,График!X110,"") -> ТО-1 | Z105: =IF(График!Y110>0,График!Y110,"") ->  | AA105: =IF(График!Z110>0,График!Z110,"") ->  | AB105: =IF(График!AA110>0,График!AA110,"") ->  | AC105: =IF(График!AB110>0,График!AB110,"") ->  | AD105: =IF(График!AC110>0,График!AC110,"") -> ТО-3 | AE105: =IF(График!AD110>0,График!AD110,"") -> ТО-3 | AF105: =IF(График!AE110>0,График!AE110,"") -> ТО-1 | AG105: =IF(График!AF110>0,График!AF110,"") ->  | AH105: =IF(График!AG110>0,График!AG110,"") ->  | AI105: =IF(График!AH110>0,График!AH110,"") -> 
B106: 15.2 | C106: Система управления и диспетчеризации инженерного оборудования (СУДИО) | E106: =IF(E107="","","*") -> * | F106: =IF(F107="","","*") ->  | L106: * | S106: * | Z106: * | AG106: * | AH106: *
B107: 15.2.1 | C107: Система управления и диспетчеризации инженерного оборудования (СУДИО) Siemens | E107: =IF(График!D112>0,График!D112,"") -> ТО-1 | F107: =IF(График!E112>0,График!E112,"") ->  | G107: =IF(График!F112>0,График!F112,"") ->  | H107: =IF(График!G112>0,График!G112,"") ->  | I107: =IF(График!H112>0,График!H112,"") ->  | J107: =IF(График!I112>0,График!I112,"") ->  | K107: =IF(График!J112>0,График!J112,"") ->  | L107: =IF(График!K112>0,График!K112,"") -> ТО-1 | M107: =IF(График!L112>0,График!L112,"") ->  | N107: =IF(График!M112>0,График!M112,"") ->  | O107: =IF(График!N112>0,График!N112,"") ->  | P107: =IF(График!O112>0,График!O112,"") ->  | Q107: =IF(График!P112>0,График!P112,"") ->  | R107: =IF(График!Q112>0,График!Q112,"") ->  | S107: =IF(График!R112>0,График!R112,"") -> ТО-1 | T107: =IF(График!S112>0,График!S112,"") ->  | U107: =IF(График!T112>0,График!T112,"") ->  | V107: =IF(График!U112>0,График!U112,"") ->  | W107: =IF(График!V112>0,График!V112,"") ->  | X107: =IF(График!W112>0,График!W112,"") ->  | Y107: =IF(График!X112>0,График!X112,"") ->  | Z107: =IF(График!Y112>0,График!Y112,"") -> ТО-1 | AA107: =IF(График!Z112>0,График!Z112,"") ->  | AB107: =IF(График!AA112>0,График!AA112,"") ->  | AC107: =IF(График!AB112>0,График!AB112,"") ->  | AD107: =IF(График!AC112>0,График!AC112,"") ->  | AE107: =IF(График!AD112>0,График!AD112,"") ->  | AF107: =IF(График!AE112>0,График!AE112,"") ->  | AG107: =IF(График!AF112>0,График!AF112,"") -> ТО-1 | AH107: =IF(График!AG112>0,График!AG112,"") -> ТО-3 | AI107: =IF(График!AH112>0,График!AH112,"") -> 
B110: Представитель Исполнителя: _______________________________ /_____________________/
B113: Представитель Заказчика: __________________________________ /_____________________/

Sheet Закрытие ТО (hidden)
A2: Наименование ед. обслуживания | B2: Ед. изм. | C2: Кол-во ед. | D2: План закрытия технического обслуживания инженерных систем и оборудования за | M2: =График!D10 -> октябрь
D3: ТО-0 | G3: ТО-1 | J3: ТО-2 | M3: ТО-3 | P3: ТО-4 | S3: ТО-5
D4: Кол.-во обслуж. в месяц | E4: без НДС | F4: Итого без НДС | G4: Кол.-во обслуж. в месяц | H4: без НДС | I4: Итого без НДС | J4: Кол.-во обслуж. в месяц | K4: без НДС | L4: Итого без НДС | M4: Кол.-во обслуж. в месяц | N4: без НДС | O4: Итого без НДС | P4: Кол.-во обслуж. в месяц | Q4: без НДС | R4: Итого без НДС | S4: Кол.-во обслуж. в месяц | T4: без НДС | U4: Итого без НДС
A5: Установки вентиляции и кондиционирования воздуха
A6: Система вентиляциии кондиционирования инв. № 14003312 | B6: ед. | C6: 1 | D6: =График!AI14 -> 0 | G6: =График!AJ14 -> 4 | H6: 580 | I6: =C6*G6*H6 -> 2320 | J6: =График!AK14 -> 1 | K6: 2320 | L6: =C6*J6*K6 -> 2320 | M6: =График!AL14 -> 0 | N6: 3480 | O6: =C6*M6*N6 -> 0 | P6: =График!AM14 -> 0 | Q6: 4640 | R6: =C6*P6*Q6 -> 0 | S6: =График!AN14 -> 0 | T6: 5800 | U6: =C6*S6*T6 -> 0
A7: Тепловые завесы
A8: Viento А1 инв. № 14001186 | B8: шт. | C8: 1 | D8: =График!AI16 -> 0 | G8: =График!AJ16 -> 4 | H8: 116 | I8: =C8*G8*H8 -> 464 | J8: =График!AK16 -> 1 | K8: 290 | L8: =C8*J8*K8 -> 290 | M8: =График!AL16 -> 0 | N8: 406 | O8: =C8*M8*N8 -> 0 | P8: =График!AM16 -> 0 | Q8: 522 | R8: =C8*P8*Q8 -> 0 | S8: =График!AN16 -> 0 | T8: 638 | U8: =C8*S8*T8 -> 0
A9: Viento А2 без нагрева инв. № 14001188 | B9: шт. | C9: 1 | D9: =График!AI17 -> 0 | G9: =График!AJ17 -> 4 | H9: 116 | I9: 464 | J9: =График!AK17 -> 1 | K9: 290 | L9: 290 | M9: =График!AL17 -> 0 | N9: 406 | O9: 0 | P9: =График!AM17 -> 0 | Q9: 522 | R9: 0 | S9: =График!AN17 -> 0 | T9: 638 | U9: 0
A10: Viento А1 без нагрева инв. № 14001189 | B10: шт. | C10: 1 | D10: =График!AI18 -> 0 | G10: =График!AJ18 -> 4 | H10: 116 | I10: 464 | J10: =График!AK18 -> 1 | K10: 290 | L10: 290 | M10: =График!AL18 -> 0 | N10: 406 | O10: 0 | P10: =График!AM18 -> 0 | Q10: 522 | R10: 0 | S10: =График!AN18 -> 0 | T10: 638 | U10: 0
A11: Viento А2 инв. № 14001187 | B11: шт. | C11: 1 | D11: =График!AI19 -> 0 | G11: =График!AJ19 -> 4 | H11: 116 | I11: 464 | J11: =График!AK19 -> 1 | K11: 290 | L11: 290 | M11: =График!AL19 -> 0 | N11: 406 | O11: 0 | P11: =График!AM19 -> 0 | Q11: 522 | R11: 0 | S11: =График!AN19 -> 0 | T11: 638 | U11: 0
A12: Аппаратура местного климатконтроля (фанкойлы)
A13: CARRIER, 42GW04 | B13: шт. | C13: 75 | D13: =График!AI21 -> 0 | G13: =График!AJ21 -> 5 | H13: 116 | I13: 43500 | J13: =График!AK21 -> 1 | K13: 290 | L13: 21750 | M13: =График!AL21 -> 0 | N13: 406 | O13: 0 | P13: =График!AM21 -> 0 | Q13: 522 | R13: 0 | S13: =График!AN21 -> 0 | T13: 638 | U13: 0
A14: CARRIER, 42DW07 | B14: шт. | C14: 6 | D14: =График!AI22 -> 0 | G14: =График!AJ22 -> 4 | H14: 116 | I14: 2784 | J14: =График!AK22 -> 1 | K14: 290 | L14: 1740 | M14: =График!AL22 -> 0 | N14: 406 | O14: 0 | P14: =График!AM22 -> 0 | Q14: 522 | R14: 0 | S14: =График!AN22 -> 0 | T14: 638 | U14: 0
A15: CARRIER, 42DW09 | B15: шт. | C15: 6 | D15: =График!AI23 -> 0 | G15: =График!AJ23 -> 4 | H15: 117 | I15: =C15*G15*H15 -> 2808 | J15: =График!AK23 -> 1 | K15: 291 | L15: =C15*J15*K15 -> 1746 | M15: =График!AL23 -> 0 | N15: 407 | O15: =C15*M15*N15 -> 0 | P15: =График!AM23 -> 0 | Q15: 523 | R15: =C15*P15*Q15 -> 0 | S15: =График!AN23 -> 0 | T15: 639 | U15: =C15*S15*T15 -> 0
A16: MOHLENHOFF, QSK HK360-140-2750 | B16: шт. | C16: 64 | D16: =График!AI24 -> 0 | G16: =График!AJ24 -> 4 | H16: 116 | I16: =C16*G16*H16 -> 29696 | J16: =График!AK24 -> 1 | K16: 290 | L16: =C16*J16*K16 -> 18560 | M16: =График!AL24 -> 0 | N16: 406 | O16: =C16*M16*N16 -> 0 | P16: =График!AM24 -> 0 | Q16: 522 | R16: =C16*P16*Q16 -> 0 | S16: =График!AN24 -> 0 | T16: 638 | U16: =C16*S16*T16 -> 0
A17: Чиллеры
A18: Blue Box OMEGA VECHOS-95.2 | B18: шт. | C18: 2 | D18: =График!AI26 -> 0 | G18: =График!AJ26 -> 5 | H18: 667 | I18: =C18*G18*H18 -> 6670 | J18: =График!AK26 -> 1 | K18: 2320 | L18: =C18*J18*K18 -> 4640 | M18: =График!AL26 -> 0 | N18: 3480 | O18: =C18*M18*N18 -> 0 | P18: =График!AM26 -> 0 | Q18: 4640 | R18: =C18*P18*Q18 -> 0 | S18: =График!AN26 -> 0 | T18: 5800 | U18: =C18*S18*T18 -> 0
A19: Сплит системы
A20: CHIGO, CS/CU-61H3A-P124 | B20: шт. | C20: 2 | D20: =График!AI28 -> 0 | G20: =График!AJ28 -> 0 | J20: =График!AK28 -> 0 | M20: =График!AL28 -> 0 | N20: 493 | O20: 0 | P20: =График!AM28 -> 0 | Q20: 1131 | R20: 0 | S20: =График!AN28 -> 0 | T20: 1450 | U20: 0
A21: KENTATSU, KSRE70HFAN1 | B21: шт. | C21: 1 | D21: =График!AI29 -> 0 | G21: =График!AJ29 -> 0 | J21: =График!AK29 -> 0 | M21: =График!AL29 -> 0 | N21: 493 | O21: 0 | P21: =График!AM29 -> 0 | Q21: 1131 | R21: 0 | S21: =График!AN29 -> 0 | T21: 1450 | U21: 0
A22: CHIGO, CS/CU-25H3A-V124 | B22: шт. | C22: 1 | D22: =График!AI30 -> 0 | G22: =График!AJ30 -> 0 | J22: =График!AK30 -> 0 | M22: =График!AL30 -> 0 | N22: 493 | O22: 0 | P22: =График!AM30 -> 0 | Q22: 1131 | R22: 0 | S22: =График!AN30 -> 0 | T22: 1450 | U22: 0
A23: CHIGO, CS/CU-61H3A-P124 | B23: шт. | C23: 2 | D23: =График!AI31 -> 0 | G23: =График!AJ31 -> 0 | J23: =График!AK31 -> 0 | M23: =График!AL31 -> 0 | N23: 493 | O23: 0 | P23: =График!AM31 -> 0 | Q23: 1131 | R23: 0 | S23: =График!AN31 -> 0 | T23: 1450 | U23: 0
A24: DAIKIN, 2MXS50H | B24: шт. | C24: 5 | D24: =График!AI32 -> 0 | G24: =График!AJ32 -> 0 | J24: =График!AK32 -> 0 | M24: =График!AL32 -> 0 | N24: 493 | O24: 0 | P24: =График!AM32 -> 0 | Q24: 1131 | R24: 0 | S24: =График!AN32 -> 0 | T24: 1450 | U24: 0
A25: DAIKIN, 3MXS68G | B25: шт. | C25: 1 | D25: =График!AI33 -> 0 | G25: =График!AJ33 -> 0 | J25: =График!AK33 -> 0 | M25: =График!AL33 -> 0 | N25: 464 | O25: 0 | P25: =График!AM33 -> 0 | Q25: 1131 | R25: 0 | S25: =График!AN33 -> 0 | T25: 1450 | U25: 0
A26: DAIKIN, 5MXS90E | B26: шт. | C26: 3 | D26: =График!AI34 -> 0 | G26: =График!AJ34 -> 0 | J26: =График!AK34 -> 0 | M26: =График!AL34 -> 0 | N26: 493 | O26: 0 | P26: =График!AM34 -> 0 | Q26: 1131 | R26: 0 | S26: =График!AN34 -> 0 | T26: 1450 | U26: 0
A27: DAIKIN, FFQ35B | B27: шт. | C27: 8 | D27: =График!AI35 -> 0 | G27: =График!AJ35 -> 0 | J27: =График!AK35 -> 0 | M27: =График!AL35 -> 0 | N27: 493 | O27: 0 | P27: =График!AM35 -> 0 | Q27: 1131 | R27: 0 | S27: =График!AN35 -> 0 | T27: 1450 | U27: 0
A28: DAIKIN, FFQ25B | B28: шт. | C28: 4 | D28: =График!AI36 -> 0 | G28: =График!AJ36 -> 0 | J28: =График!AK36 -> 0 | M28: =График!AL36 -> 0 | N28: 493 | O28: 0 | P28: =График!AM36 -> 0 | Q28: 1131 | R28: 0 | S28: =График!AN36 -> 0 | T28: 1450 | U28: 0
A29: DAIKIN, FFQ50B | B29: шт. | C29: 6 | D29: =График!AI37 -> 0 | G29: =График!AJ37 -> 0 | J29: =График!AK37 -> 0 | M29: =График!AL37 -> 0 | N29: 493 | O29: 0 | P29: =График!AM37 -> 0 | Q29: 1131 | R29: 0 | S29: =График!AN37 -> 0 | T29: 1450 | U29: 0
A30: DAIKIN, FAQ71B/RR71BV-W | B30: шт. | C30: 2 | D30: =График!AI38 -> 0 | G30: =График!AJ38 -> 0 | J30: =График!AK38 -> 0 | M30: =График!AL38 -> 0 | N30: 493 | O30: 0 | P30: =График!AM38 -> 0 | Q30: 1131 | R30: 0 | S30: =График!AN38 -> 0 | T30: 1450 | U30: 0
A31: DAIKIN, FAQ100B/RR100BV | B31: шт. | C31: 2 | D31: =График!AI39 -> 0 | G31: =График!AJ39 -> 0 | J31: =График!AK39 -> 0 | M31: =График!AL39 -> 0 | N31: 493 | O31: 0 | P31: =График!AM39 -> 0 | Q31: 1131 | R31: 0 | S31: =График!AN39 -> 0 | T31: 1450 | U31: 0
A32: DAIKIN, FFT25/R25 | B32: шт. | C32: 2 | D32: =График!AI40 -> 0 | G32: =График!AJ40 -> 0 | J32: =График!AK40 -> 0 | M32: =График!AL40 -> 0 | N32: 493 | O32: 0 | P32: =График!AM40 -> 0 | Q32: 1131 | R32: 0 | S32: =График!AN40 -> 0 | T32: 1450 | U32: 0
A33: DAIKIN, FFQ35B/RX35J | B33: шт. | C33: 1 | D33: =График!AI41 -> 0 | G33: =График!AJ41 -> 0 | J33: =График!AK41 -> 0 | M33: =График!AL41 -> 0 | N33: 493 | O33: =C33*M33*N33 -> 0 | P33: =График!AM41 -> 0 | Q33: 1131 | R33: 0 | S33: =График!AN41 -> 0 | T33: 1450 | U33: =C33*S33*T33 -> 0
A34: DAIKIN, FFQ50B/RX50J | B34: шт. | C34: 4 | D34: =График!AI42 -> 0 | G34: =График!AJ42 -> 0 | J34: =График!AK42 -> 0 | M34: =График!AL42 -> 0 | N34: 493 | O34: 0 | P34: =График!AM42 -> 0 | Q34: 1131 | R34: 0 | S34: =График!AN42 -> 0 | T34: 1450 | U34: 0
A35: Шлагбаумы, автоматические двери, автоматические ворота, механические (распашные) и противопожарные двери
A36: Шлагбаум CAME G0402 | B36: шт. | C36: 3 | D36: =График!AI44 -> 0 | G36: =График!AJ44 -> 0 | J36: =График!AK44 -> 1 | K36: 4210.8 | L36: =C36*J36*K36 -> 12632.4 | M36: =График!AL44 -> 0 | N36: 9256.8 | O36: 0 | P36: =График!AM44 -> 0 | S36: =График!AN44 -> 0
A37: Автоматические ворота Doorhan | B37: шт. | C37: 2 | D37: =График!AI45 -> 0 | G37: =График!AJ45 -> 0 | J37: =График!AK45 -> 1 | K37: 4350 | L37: 8700 | M37: =График!AL45 -> 0 | P37: =График!AM45 -> 0 | S37: =График!AN45 -> 0
A38: Автоматические двери GEZE SlimDrive | B38: шт. | C38: 10 | D38: =График!AI46 -> 0 | G38: =График!AJ46 -> 0 | J38: =График!AK46 -> 1 | K38: 2146 | L38: 21460 | M38: =График!AL46 -> 0 | P38: =График!AM46 -> 0 | S38: =График!AN46 -> 0
A39: Механические (распашные), пожарные двери Krilak | B39: шт. | C39: 467 | D39: =График!AI47 -> 0 | G39: =График!AJ47 -> 0 | J39: =График!AK47 -> 1 | K39: 34.8 | L39: 16251.6 | M39: =График!AL47 -> 0 | P39: =График!AM47 -> 0 | S39: =График!AN47 -> 0
A40: Электрооборудование
A41: Шкаф универсальный (щит ЩРН-12;18;24;36) | B41: шт. | C41: 95 | D41: =График!AI49 -> 31 | E41: 17.4 | F41: =C41*D41*E41 -> 51243 | G41: =График!AJ49 -> 0 | J41: =График!AK49 -> 0 | M41: =График!AL49 -> 1 | N41: 174 | O41: 16530 | P41: =График!AM49 -> 0 | S41: =График!AN49 -> 1 | T41: 406 | U41: 38570
A42: Внутреннее электроосвещение: Щиты 1.1.ЩО-1, ЩАО-1; 1.2.ЩО-1, ЩАО-1; 1.3.ЩО-1, ЩАО-1; 1.3.ЩО-2, ЩАО-2; 1.5.ЩО-1, ЩАО-1; 1.6.ЩО-1, ЩАО-1; 1.7.ЩО-1, ЩО-2, ЩАО-1; 2.1.ЩО-1, ЩАО-1; 2.2.ЩО-1, ЩО-2, ЩАО-1; 2.3.ЩО-1; 3.1.ЩО-1, ЩАО-1; 4.1.ЩО-1, ЩАО-1; | B42: шт. | C42: 25 | D42: =График!AI50 -> 31 | E42: 17.4 | F42: 13485 | G42: =График!AJ50 -> 0 | J42: =График!AK50 -> 0 | M42: =График!AL50 -> 1 | N42: 174 | O42: 4350 | P42: =График!AM50 -> 0 | S42: =График!AN50 -> 1 | T42: 406 | U42: 10150
A43: Шкаф универсальный (ВРУ-21Л-80-308К УХЛ4;ВРУ-21Л-200-200К УХЛ4;ВРУ-21Л-32-301К УХЛ4;УКМ58-0,4-50-10УЗ;УКМ58-0,4-30-10УЗ; ПМ12-063120У2;ПМ12-040120У2) | B43: шт. | C43: 15 | D43: =График!AI51 -> 31 | E43: 17.4 | F43: 8091 | G43: =График!AJ51 -> 0 | J43: =График!AK51 -> 0 | M43: =График!AL51 -> 1 | N43: 174 | O43: 2610 | P43: =График!AM51 -> 0 | S43: =График!AN51 -> 1 | T43: 406 | U43: 6090
A44: Коробки установочные EAE | B44: шт. | C44: 238 | D44: =График!AI52 -> 31 | E44: 0.0058 | F44: 42.7924 | G44: =График!AJ52 -> 0 | J44: =График!AK52 -> 0 | M44: =График!AL52 -> 1 | N44: 40.6 | O44: 9662.8 | P44: =График!AM52 -> 0 | S44: =График!AN52 -> 0
A45: Ящик с трансформатором ABB | B45: шт. | C45: 38 | D45: =График!AI53 -> 31 | E45: 0.0058 | F45: 6.8324 | G45: =График!AJ53 -> 0 | J45: =График!AK53 -> 0 | M45: =График!AL53 -> 1 | N45: 133.4 | O45: 5069.2 | P45: =График!AM53 -> 0 | S45: =График!AN53 -> 0
A46: Коробка разветвительная JB-701, 720, 730 | B46: шт. | C46: 500 | D46: =График!AI54 -> 31 | E46: 0.0058 | F46: 89.9 | G46: =График!AJ54 -> 0 | J46: =График!AK54 -> 0 | M46: =График!AL54 -> 1 | N46: 87 | O46: 43500 | P46: =График!AM54 -> 0 | S46: =График!AN54 -> 0
A47: Кабельные линии связи, проложенные на лотках | B47: м. | C47: 31020 | D47: =График!AI55 -> 31 | E47: 0.0058 | F47: 5577.396 | G47: =График!AJ55 -> 0 | J47: =График!AK55 -> 0 | M47: =График!AL55 -> 0 | N47: 1.74 | O47: 0 | P47: =График!AM55 -> 0 | S47: =График!AN55 -> 0
A48: Кабельные линии связи, проложенные в коробах с открываемыми крышками | B48: шт. | C48: 162 | D48: =График!AI56 -> 31 | E48: 0.0058 | F48: 29.1276 | G48: =График!AJ56 -> 0 | J48: =График!AK56 -> 0 | M48: =График!AL56 -> 0 | N48: 1.74 | O48: 0 | P48: =График!AM56 -> 0 | S48: =График!AN56 -> 0
A49: Выключатели Shneider Electric | B49: шт. | C49: 423 | D49: =График!AI57 -> 31 | E49: 0.0058 | F49: 76.0554 | G49: =График!AJ57 -> 0 | J49: =График!AK57 -> 0 | M49: =График!AL57 -> 1 | N49: 20.3 | O49: 8586.9 | P49: =График!AM57 -> 0 | S49: =График!AN57 -> 0
A50: Розетки Shneider Electric | B50: шт. | C50: 595 | D50: =График!AI58 -> 31 | E50: 0.0058 | F50: 106.981 | G50: =График!AJ58 -> 0 | J50: =График!AK58 -> 0 | M50: =График!AL58 -> 1 | N50: 18.56 | O50: 11043.2 | P50: =График!AM58 -> 0 | S50: =График!AN58 -> 0
A51: Прожектор с натриевыми лампами IP66 Т5, IP65 | B51: шт. | C51: 168 | D51: =График!AI59 -> 31 | E51: 0.0058 | F51: 30.2064 | G51: =График!AJ59 -> 0 | J51: =График!AK59 -> 0 | M51: =График!AL59 -> 1 | N51: 55.1 | O51: 9256.8 | P51: =График!AM59 -> 0 | S51: =График!AN59 -> 0
A52: Лампа люминесцентная Т5, IP54 | B52: шт. | C52: 545 | D52: =График!AI60 -> 31 | E52: 0.0058 | F52: 97.991 | G52: =График!AJ60 -> 0 | J52: =График!AK60 -> 0 | M52: =График!AL60 -> 0 | N52: 15.66 | O52: 0 | P52: =График!AM60 -> 0 | S52: =График!AN60 -> 0
A53: Светильники с ЭПРА, для ЛЛ Т5, IP54 | B53: шт. | C53: 1704 | D53: =График!AI61 -> 31 | E53: 0.0058 | F53: 306.3792 | G53: =График!AJ61 -> 0 | J53: =График!AK61 -> 0 | M53: =График!AL61 -> 1 | N53: 15.66 | O53: 26684.64 | P53: =График!AM61 -> 0 | S53: =График!AN61 -> 0
A54: Счетчик потребления электроэнергии Меркурий 230AR-03С | B54: шт. | C54: 4 | D54: =График!AI62 -> 0 | G54: =График!AJ62 -> 0 | J54: =График!AK62 -> 0 | M54: =График!AL62 -> 0 | N54: 133.4 | O54: 0 | P54: =График!AM62 -> 0 | S54: =График!AN62 -> 0 | T54: 319 | U54: 0
A55: Системы наружного освещения
A56: Фасадная вывеска ЗАО «Информсвязь Холдинг» | B56: шт. | C56: 9 | D56: =График!AI64 -> 0 | G56: =График!AJ64 -> 0 | J56: =График!AK64 -> 0 | M56: =График!AL64 -> 1 | N56: 1160 | O56: 10440 | P56: =График!AM64 -> 0 | S56: =График!AN64 -> 0
A57: Светильник наружнего освещения на опоре c лампой ДРЛ IP65 (светильник Alumet Control/I) | B57: шт. | C57: 1346 | D57: =График!AI65 -> 0 | G57: =График!AJ65 -> 0 | J57: =График!AK65 -> 0 | M57: =График!AL65 -> 1 | N57: 49.3 | O57: 66357.8 | P57: =График!AM65 -> 0 | S57: =График!AN65 -> 0
A58: Системы молниезащиты | B58: ед. | C58: 1 | D58: =График!AI66 -> 0 | G58: =График!AJ66 -> 0 | J58: =График!AK66 -> 0 | M58: =График!AL66 -> 0 | P58: =График!AM66 -> 0 | S58: =График!AN66 -> 0 | T58: 5800
A59: Системы технологического и рабочего заземления | B59: ед. | C59: 1 | D59: =График!AI67 -> 0 | G59: =График!AJ67 -> 0 | J59: =График!AK67 -> 0 | M59: =График!AL67 -> 0 | N59: 5510 | O59: 0 | P59: =График!AM67 -> 0 | S59: =График!AN67 -> 0
A60: Системы уравнивания потенциалов | B60: шт. | C60: 95 | D60: =График!AI68 -> 0 | G60: =График!AJ68 -> 0 | J60: =График!AK68 -> 0 | M60: =График!AL68 -> 0 | N60: 551 | O60: 0 | P60: =График!AM68 -> 0 | S60: =График!AN68 -> 0
A61: Дизель-генераторные установки
A62: FG Wilson P635P5 | B62: шт. | C62: 1 | D62: =График!AI70 -> 0 | G62: =График!AJ70 -> 4 | H62: 870 | I62: =C62*G62*H62 -> 3480 | J62: =График!AK70 -> 1 | K62: 1566 | L62: =C62*J62*K62 -> 1566 | M62: =График!AL70 -> 0 | P62: =График!AM70 -> 0 | S62: =График!AN70 -> 0 | T62: 4060 | U62: 0
A63: Блоки бесперебойного питания
A64: APC SymmetraPX 250/500кВт | B64: шт. | C64: 1 | D64: =График!AI72 -> 0 | G64: =График!AJ72 -> 0 | J64: =График!AK72 -> 0 | M64: =График!AL72 -> 1 | N64: 9860 | O64: 9860 | P64: =График!AM72 -> 0 | S64: =График!AN72 -> 0 | T64: 14500 | U64: 0
A65: Система холодного и горячего водоснабжения
A66: Запорная арматура
A67: Кран шаровой шаровой Ду32,24 | B67: шт. | C67: 370 | D67: =График!AI75 -> 0 | G67: =График!AJ75 -> 4 | H67: 1.74 | I67: =C67*G67*H67 -> 2575.2 | J67: =График!AK75 -> 1 | K67: 1.74 | L67: =C67*J67*K67 -> 643.8 | M67: =График!AL75 -> 0 | P67: =График!AM75 -> 0 | S67: =График!AN75 -> 0 | T67: 3.48 | U67: =C67*S67*T67 -> 0
A68: Задвижка AVK магистральная | B68: шт. | C68: 13 | D68: =График!AI76 -> 0 | G68: =График!AJ76 -> 4 | H68: 5.8 | I68: =C68*G68*H68 -> 301.6 | J68: =График!AK76 -> 1 | K68: 14.5 | L68: 188.5 | M68: =График!AL76 -> 0 | P68: =График!AM76 -> 0 | S68: =График!AN76 -> 0 | T68: 29 | U68: 0
A69: Трубопроводы
A70: Трубы оцинкованные ЭСВ | B70: м | C70: 918 | D70: =График!AI78 -> 31 | E70: 0.29 | F70: =C70*D70*E70 -> 8252.82 | G70: =График!AJ78 -> 5 | H70: 0.87 | I70: =C70*G70*H70 -> 3993.3 | J70: =График!AK78 -> 0 | M70: =График!AL78 -> 0 | P70: =График!AM78 -> 0 | S70: =График!AN78 -> 0 | T70: 2.9 | U70: =C70*S70*T70 -> 0
A71: Труба полиэтиленовая ПНД | B71: м | C71: 806 | D71: =График!AI79 -> 31 | E71: 0.17 | F71: 4247.62 | G71: =График!AJ79 -> 5 | H71: 0.87 | I71: 3506.1 | J71: =График!AK79 -> 0 | M71: =График!AL79 -> 0 | P71: =График!AM79 -> 0 | S71: =График!AN79 -> 0 | T71: 2.9 | U71: 0
A72: Ревизии | B72: шт. | C72: 23 | D72: =График!AI80 -> 31 | E72: 4.64 | F72: 3308.32 | G72: =График!AJ80 -> 5 | H72: 11.6 | I72: 1334 | J72: =График!AK80 -> 1 | K72: 29 | L72: =C72*J72*K72 -> 667 | M72: =График!AL80 -> 0 | P72: =График!AM80 -> 0 | S72: =График!AN80 -> 0 | T72: 87 | U72: 0
A73: Трубопроводы и подземные линии
A74: Трубы оцинкованные ЭСВ | B74: м | C74: 918 | D74: =График!AI82 -> 31 | E74: 0.44 | F74: =C74*D74*E74 -> 12521.52 | G74: =График!AJ82 -> 5 | H74: 1.74 | I74: =C74*G74*H74 -> 7986.6 | J74: =График!AK82 -> 1 | K74: 1.74 | L74: =C74*J74*K74 -> 1597.32 | M74: =График!AL82 -> 0 | P74: =График!AM82 -> 0 | Q74: 2.9 | R74: =C74*P74*Q74 -> 0 | S74: =График!AN82 -> 0 | T74: 5.8 | U74: =C74*S74*T74 -> 0
A75: Трапы чугунные
A76: Трапы | B76: шт. | C76: 56 | D76: =График!AI84 -> 0 | G76: =График!AJ84 -> 0 | J76: =График!AK84 -> 1 | K76: 29 | L76: =C76*J76*K76 -> 1624 | M76: =График!AL84 -> 0 | P76: =График!AM84 -> 0 | Q76: 43.5 | R76: =C76*P76*Q76 -> 0 | S76: =График!AN84 -> 0
A77: Унитазы, писсуары, раковины, душевые поддоны
A78: Унитаз для МГН типа Ibo | B78: шт. | C78: 10 | D78: =График!AI86 -> 0 | G78: =График!AJ86 -> 5 | H78: 17.4 | I78: =C78*G78*H78 -> 870 | J78: =График!AK86 -> 1 | K78: 29 | L78: =C78*J78*K78 -> 290 | M78: =График!AL86 -> 0 | P78: =График!AM86 -> 0 | Q78: 43.5 | R78: =C78*P78*Q78 -> 0 | S78: =График!AN86 -> 0
A79: Писсуар Lira | B79: шт. | C79: 16 | D79: =График!AI87 -> 0 | G79: =График!AJ87 -> 5 | H79: 8.7 | I79: 696 | J79: =График!AK87 -> 1 | K79: 17.4 | L79: 278.4 | M79: =График!AL87 -> 0 | P79: =График!AM87 -> 0 | S79: =График!AN87 -> 0 | T79: 34.8 | U79: =C79*S79*T79 -> 0
A80: Унитаз открытой установки Ideal | B80: шт. | C80: 39 | D80: =График!AI88 -> 0 | G80: =График!AJ88 -> 5 | H80: 17.4 | I80: 3393 | J80: =График!AK88 -> 1 | K80: 34.8 | L80: 1357.2 | M80: =График!AL88 -> 0 | P80: =График!AM88 -> 0 | S80: =График!AN88 -> 0 | T80: 69.6 | U80: 0
A81: Умывальник обычный Ideal | B81: шт. | C81: 76 | D81: =График!AI89 -> 0 | G81: =График!AJ89 -> 5 | H81: 8.7 | I81: =C81*G81*H81 -> 3306 | J81: =График!AK89 -> 1 | K81: 17.4 | L81: 1322.4 | M81: =График!AL89 -> 0 | P81: =График!AM89 -> 0 | S81: =График!AN89 -> 0 | T81: 34.8 | U81: 0
A82: Мини – раковина Ideal | B82: шт. | C82: 24 | D82: =График!AI90 -> 0 | G82: =График!AJ90 -> 5 | H82: 11.6 | I82: 1392 | J82: =График!AK90 -> 1 | K82: 23.2 | L82: =C82*J82*K82 -> 556.8 | M82: =График!AL90 -> 0 | P82: =График!AM90 -> 0 | S82: =График!AN90 -> 0 | T82: 46.4 | U82: 0
A83: Встраиваемые в столешницу раковины | B83: шт. | C83: 24 | D83: =График!AI91 -> 0 | G83: =График!AJ91 -> 5 | H83: 5.8 | I83: 696 | J83: =График!AK91 -> 1 | K83: 11.6 | L83: =C83*J83*K83 -> 278.4 | M83: =График!AL91 -> 0 | P83: =График!AM91 -> 0 | S83: =График!AN91 -> 0 | T83: 23.2 | U83: 0
A84: Умывальник МГН | B84: шт. | C84: 10 | D84: =График!AI92 -> 0 | G84: =График!AJ92 -> 5 | H84: 5.8 | I84: =C84*G84*H84 -> 290 | J84: =График!AK92 -> 1 | K84: 11.6 | L84: =C84*J84*K84 -> 116 | M84: =График!AL92 -> 0 | P84: =График!AM92 -> 0 | S84: =График!AN92 -> 0 | T84: 23.2 | U84: 0
A85: Душевой поддон | B85: шт. | C85: 62 | D85: =График!AI93 -> 0 | G85: =График!AJ93 -> 5 | H85: 8.7 | I85: 2697 | J85: =График!AK93 -> 1 | K85: 17.4 | L85: 1078.8 | M85: =График!AL93 -> 0 | P85: =График!AM93 -> 0 | S85: =График!AN93 -> 0 | T85: 34.8 | U85: 0
A86: Отопительные приборы
A87: Радиаторы | B87: шт. | C87: 118 | D87: =График!AI95 -> 31 | E87: 8.7 | F87: =C87*D87*E87 -> 31824.6 | G87: =График!AJ95 -> 4 | H87: 11.6 | I87: 5475.2 | J87: =График!AK95 -> 1 | K87: 14.5 | L87: =C87*J87*K87 -> 1711 | M87: =График!AL95 -> 0 | N87: 26.68 | O87: =C87*M87*N87 -> 0 | P87: =График!AM95 -> 0 | S87: =График!AN95 -> 1 | T87: 29 | U87: 3422
A88: Фонтанный комплекс
A89: Фонтанный комплекс | B89: шт. | C89: 1 | D89: =График!AI97 -> 0 | G89: =График!AJ97 -> 0 | J89: =График!AK97 -> 1 | K89: 6380 | L89: =C89*J89*K89 -> 6380 | M89: =График!AL97 -> 1 | N89: 11600 | O89: =C89*M89*N89 -> 11600 | P89: =График!AM97 -> 0 | S89: =График!AN97 -> 0 | T89: 30740.01 | U89: 0
A90: Комплексная система информатизации, автоматизации, и связи
A91: Система коллективного информирования
A92: Информационный статический указатель Trecom | B92: шт. | C92: 193 | D92: =График!AI100 -> 0 | G92: =График!AJ100 -> 4 | H92: 20.3 | I92: 15671.6 | J92: =График!AK100 -> 0 | M92: =График!AL100 -> 1 | N92: 29 | O92: =C92*M92*N92 -> 5597 | P92: =График!AM100 -> 0 | Q92: 49.3 | R92: =C92*P92*Q92 -> 0 | S92: =График!AN100 -> 0 | T92: 58 | U92: 0
A93: Информационный пилон Trecom | B93: шт. | C93: 1 | D93: =График!AI101 -> 0 | G93: =График!AJ101 -> 4 | H93: 116 | I93: =C93*G93*H93 -> 464 | J93: =График!AK101 -> 0 | M93: =График!AL101 -> 1 | N93: 203 | O93: 203 | P93: =График!AM101 -> 0 | Q93: 435 | R93: 0 | S93: =График!AN101 -> 0 | T93: 522 | U93: 0
A94: Информационный модуль Trecom | B94: шт. | C94: 11 | D94: =График!AI102 -> 0 | G94: =График!AJ102 -> 4 | H94: 58 | I94: 2552 | J94: =График!AK102 -> 0 | M94: =График!AL102 -> 1 | N94: 104.4 | O94: 1148.4 | P94: =График!AM102 -> 0 | Q94: 232 | R94: =C94*P94*Q94 -> 0 | S94: =График!AN102 -> 0 | T94: 348 | U94: 0
A95: Щит платформенный ЗАО «Информсвязь Холдинг» | B95: шт. | C95: 18 | D95: =График!AI103 -> 0 | G95: =График!AJ103 -> 4 | H95: 58 | I95: =C95*G95*H95 -> 4176 | J95: =График!AK103 -> 0 | M95: =График!AL103 -> 1 | N95: 104.4 | O95: 1879.2 | P95: =График!AM103 -> 0 | Q95: 464 | R95: =C95*P95*Q95 -> 0 | S95: =График!AN103 -> 0 | T95: 522 | U95: 0
A96: Фасадная вывеска ЗАО «Информсвязь Холдинг» | B96: шт. | C96: 9 | D96: =График!AI104 -> 0 | G96: =График!AJ104 -> 4 | H96: 116 | I96: 4176 | J96: =График!AK104 -> 0 | M96: =График!AL104 -> 1 | N96: 191.4 | O96: 1722.6 | P96: =График!AM104 -> 0 | Q96: 377 | R96: 0 | S96: =График!AN104 -> 0 | T96: 423.4 | U96: 0
A97: Система телефонной, оперативно – технологической связи Cisco System, Philips | B97: ед. | C97: 1 | D97: =График!AI105 -> 0 | G97: =График!AJ105 -> 4 | H97: 116 | I97: 464 | J97: =График!AK105 -> 0 | M97: =График!AL105 -> 1 | N97: 203 | O97: 203 | P97: =График!AM105 -> 0 | Q97: 365.4 | R97: 0 | S97: =График!AN105 -> 0 | T97: 406 | U97: 0
A98: Система экстренной связи (терминалы пассажир – кассир, пассажир – дежурный по вокзалу) Stentofon | B98: шт. | C98: 41 | D98: =График!AI106 -> 0 | G98: =График!AJ106 -> 4 | H98: 87 | I98: 14268 | J98: =График!AK106 -> 0 | M98: =График!AL106 -> 1 | N98: 191.4 | O98: 7847.4 | P98: =График!AM106 -> 0 | Q98: 348 | R98: 0 | S98: =График!AN106 -> 0 | T98: 406 | U98: 0
A99: Система часофикации MobaTime | B99: ед. | C99: 1 | D99: =График!AI107 -> 0 | G99: =График!AJ107 -> 4 | H99: 145 | I99: 580 | J99: =График!AK107 -> 0 | M99: =График!AL107 -> 1 | N99: 214.6 | O99: 214.6 | P99: =График!AM107 -> 0 | Q99: 388.6 | R99: 0 | S99: =График!AN107 -> 0 | T99: 435 | U99: 0
A100: Система телевидения и радиотрансляции EXTRON | B100: ед. | C100: 1 | D100: =График!AI108 -> 0 | G100: =График!AJ108 -> 4 | H100: 145 | I100: 580 | J100: =График!AK108 -> 0 | M100: =График!AL108 -> 1 | N100: 214.6 | O100: 214.6 | P100: =График!AM108 -> 0 | Q100: 388.6 | R100: 0 | S100: =График!AN108 -> 0 | T100: 435 | U100: 0
A101: Динамик громкоговорящего оповещения Bosch LB1H-UW06-L, LB1H-UM06E. LBC3200. LBC3201 | B101: шт. | C101: 918 | D101: =График!AI109 -> 0 | G101: =График!AJ109 -> 4 | H101: 11.6 | I101: 42595.2 | J101: =График!AK109 -> 0 | M101: =График!AL109 -> 1 | N101: 20.3 | O101: 18635.4 | P101: =График!AM109 -> 0 | Q101: 40.6 | R101: 0 | S101: =График!AN109 -> 0 | T101: 55.1 | U101: 0
A102: Система позиционных датчиков для навигации на вокзале Датчик Smart Beacon | B102: шт. | C102: 74 | D102: =График!AI110 -> 0 | G102: =График!AJ110 -> 4 | H102: 20.3 | I102: 6008.8 | J102: =График!AK110 -> 0 | M102: =График!AL110 -> 1 | N102: 23.2 | O102: 1716.8 | P102: =График!AM110 -> 0 | Q102: 52.2 | R102: 0 | S102: =График!AN110 -> 0 | T102: 75.4 | U102: 0
A103: Система управления и диспетчеризации инженерного оборудования (СУДИО)
A104: Система управления и диспетчеризации инженерного оборудования (СУДИО) Siemens | B104: ед. | C104: 1 | D104: =График!AI112 -> 0 | G104: =График!AJ112 -> 5 | H104: 1392 | I104: 6960 | J104: =График!AK112 -> 0 | M104: =График!AL112 -> 1 | N104: 2900 | O104: =C104*M104*N104 -> 2900 | P104: =График!AM112 -> 0 | Q104: 4060 | R104: 0 | S104: =График!AN112 -> 0 | T104: 5220 | U104: 0
F105: =SUM(F6:F104) -> 139337.5414 | I105: =SUM(I6:I104) -> 230121.6 | L105: =SUM(L6:L104) -> 130615.62 | O105: =SUM(O6:O104) -> 277833.34 | R105: =SUM(R6:R104) -> 0 | U105: =SUM(U6:U104) -> 58232
D106: =SUM(F105,I105,L105,O105,R105,U105) -> 836140.1014
